Workbook

Sheet Methods
C1: =AA40 -> 369 | D1: proposed new (baseline & Monitoring) large scale methodologies sent to the Executive Board | G1: (Resubmitted methodologies are only counted once, CCS methodologies not included) | W1: Table 3:
A2: The Pipeline was produced by Aiymgul Kerimray, UNEP Copenhagen Climate Centre, 1 April 2023, Aiymgul.kerimray@un.org, Phone (+45)45335287 | X2: Initial | Y2: Days | AA2: Number | AE2: Number
A3: Table 1: | K3: Open comment | M3: Decision | N3: Days to | P3: Decision | Q3: Days to | X3: decision | Y3: Rejection | Z3: Approval | AA3: Per round | AE3: Cumulative
A4: Round | B4: Meth. No. | C4: Type | D4: Description | E4: AM/ACM | F4: GHG reduction/yr | G4: Host country | H4: Credit buyer | I4: Consultant | J4: Title | K4: date | L4: 1. Mark | M4: 1.Mark | N4: 1. Mark | O4: End mark | P4: End mark | Q4: End mark | W4: Round | X4: average | Y4: average | Z4: average | AA4: Submitted | AB4: A | AC4: C/ withdrawn | AD4: Pending | AE4: A | AF4: C/ withdrawn | AG4: Pending
A5: 1 | B5: 1 | C5: Biomass energy | D5: Bagasse power | E5: AM15 | F5: 40 ktCO2 | G5: Brazil | H5: n.a. | I5: ECONERGY Brasil | J5: Vale Do Rosário bagasse cogeneration | K5: 2003-04-15 | L5: B | M5: 2003-06-08 | N5: =M5-K5 -> 54 | O5: A | P5: 2003-11-28 | Q5: =P5-K5 -> 227 | W5: 1 | X5: =+S16 -> 54 | Y5: =+S17 -> 54 | Z5: =+S18 -> 219 | AA5: 14 | AB5: 6 | AC5: 8 | AD5: =AA5-AB5-AC5 -> 0 | AE5: =+AB5 -> 6 | AF5: =AC5 -> 8 | AG5: =AD5 -> 0
A6: 1 | B6: 2 | C6: Fugitive | D6: Fuel switch from coke to charcoal in steel works (=NM29=NM104=NM278) | F6: 384 ktCO2 | G6: Brazil | H6: IFC-Netherlands & Japan | I6: EcoSecurities | J6: V&M Do Brazil avoided fuel switch project | K6: 2003-04-15 | L6: C | M6: 2003-06-08 | N6: 54 | W6: 2 | X6: =+S19 -> 61 | Y6: =+S20 -> 61 | Z6: =+S21 -> 141 | AA6: 2 | AB6: 1 | AC6: 1 | AD6: =AA6-AB6-AC6 -> 0 | AE6: =AB6+AE5 -> 7 | AF6: 9 | AG6: 0
A7: 1 | B7: 3 | C7: CO2 recycling | D7: CO2 from NH3 production used in methanol prod. | F7: 229 ktCO2 | G7: Trinidad & Tobago | H7: Germany | I7: Hamburg Inst. of Int. Economics | J7: M5000 plant in Republic of TrinidAB and Tobago | K7: 2003-04-15 | L7: C | M7: 2003-06-08 | N7: 54 | W7: 3 | X7: =+S23 -> 175.6 | Y7: =+S24 -> 668 | Z7: =+S25 -> 259.25 | AA7: 5 | AB7: 4 | AC7: 1 | AD7: 0 | AE7: 11 | AF7: 10 | AG7: 0
A8: 1 | B8: 4 | C8: Landfill | D8: Landfill gas flaring | E8: AM2 | F8: ca. 800 ktCO2 | G8: Brazil | H8: n.a. | I8: ICF Consulting UK | J8: SalvABor Da Bahia landfill gas project | K8: 2003-04-15 | L8: B | M8: 2003-06-08 | N8: 54 | O8: A | P8: 2003-07-29 | Q8: =P8-K8 -> 105 | W8: 4 | X8: =+S37 -> 218.2142857 | Y8: =+S38 -> 343.8 | Z8: =+S39 -> 308.25 | AA8: 14 | AB8: 8 | AC8: 6 | AD8: 0 | AE8: 19 | AF8: 16 | AG8: 0
A9: 1 | B9: 5 | C9: Landfill | D9: Landfill gas electricity | E9: AM3 | F9: ca. 300 ktCO2 | G9: Brazil | H9: WB NCDF | I9: Ecosecurities | J9: NovaGerar landfill gas to energy project | K9: 2003-04-15 | L9: B | M9: 2003-06-08 | N9: 54 | O9: A | P9: 2003-10-17 | Q9: =P9-K9 -> 185 | W9: 5 | X9: =+S46 -> 250.8888889 | Y9: =+S47 -> 217 | Z9: =+S48 -> 422.375 | AA9: 9 | AB9: 8 | AC9: 1 | AD9: 0 | AE9: 27 | AF9: 17 | AG9: 0
A10: 1 | B10: 6 | C10: Hydro | D10: Hydro Power | F10: 144 ktCO2 | G10: Guatamala | H10: PCF | I10: Hernan Garcia | J10: Guatamala El CanABa Hydroelectric project | K10: 2003-04-15 | L10: C | M10: 2003-06-08 | N10: 54 | W10: 6 | X10: =+S57 -> 199.5454545 | Y10: =+S58 -> 201.6666667 | Z10: =+S59 -> 351 | AA10: 11 | AB10: 5 | AC10: 6 | AD10: 0 | AE10: 32 | AF10: 23 | AG10: 0
A11: 1 | B11: 7 | C11: HFCs | D11: Burning HFC23 from HCFC22 production | E11: AM1 | F11: 1400 ktCO2 | G11: South Korea | H11: Japan | I11: Climate Experts Ltd. | J11: HFCs decomposition project in Ulsan | K11: 2003-04-15 | L11: B | M11: 2003-06-08 | N11: 54 | O11: A | P11: 2003-07-29 | Q11: =P11-K11 -> 105 | W11: 7 | X11: =+S66 -> 194.7777778 | Y11: =+S67 -> 179.1428571 | Z11: =+S68 -> 249.5 | AA11: 9 | AB11: 2 | AC11: 7 | AD11: 0 | AE11: 34 | AF11: 30 | AG11: 0
A12: 1 | B12: 8 | C12: Hydro | D12: Hydro Power | F12: 100 ktCO2 | G12: Costa Rica | H12: CERUPT | I12: Costa Rica Institute of Electricity | J12: Peñas Blancas hydroelectric project | K12: 2003-04-15 | L12: C | M12: 2003-06-08 | N12: 54 | W12: 8 | X12: =+S86 -> 208.7894737 | Y12: =+S87 -> 225.9090909 | Z12: =+S88 -> 360.4444444 | AA12: 20 | AB12: 9 | AC12: 11 | AD12: 0 | AE12: 43 | AF12: 41 | AG12: 0
A13: 1 | B13: 9 | C13: Biomass energy | D13: Rice husk power plant (el + steam + cement) | F13: 400 ktCO2 | G13: Thailand | H13: n.a. | I13: Mitsubishi Securities | J13: A.T. Biopower rice husk power project | K13: 2003-04-15 | L13: C | M13: 2003-06-08 | N13: 54 | W13: 9 | X13: =+S103 -> 165.6470588 | Y13: =+S104 -> 135.875 | Z13: =+S105 -> 216.8888889 | AA13: 17 | AB13: 9 | AC13: 8 | AD13: 0 | AE13: 52 | AF13: 49 | AG13: 0
A14: 1 | B14: 10 | C14: Landfill | D14: Landfill gas electricity | E14: AM10 | F14: 400 ktCO2 | G14: South Africa | H14: PCF | I14: PCF | J14: Durban, South Africa landfill gas to electricity | K14: 2003-04-15 | L14: B | M14: 2003-06-08 | N14: 54 | O14: A | P14: 2003-10-17 | Q14: =P14-K14 -> 185 | W14: 10 | X14: =+S116 -> 150.8461538 | Y14: =+S117 -> 226 | Z14: =+S118 -> 362.6666667 | AA14: 13 | AB14: 6 | AC14: 7 | AD14: 0 | AE14: 58 | AF14: 56 | AG14: 0
A15: 1 | B15: 11 | C15: Biomass energy | D15: Bagasse Power | F15: 100 ktCO2 | G15: India | H15: n.a. | I15: SCM Sugars Limited (India) | J15: 26 MW bagasse/Biomass cogenerationpower project , Koppa | K15: 2003-04-15 | L15: C | M15: 2003-06-08 | N15: 54 | R15: Average time: | W15: 11 | X15: =+S126 -> 182.3 | Y15: =+S127 -> 268.5 | Z15: =+S128 -> 383.5 | AA15: 10 | AB15: 2 | AC15: 8 | AD15: 0 | AE15: 60 | AF15: 64 | AG15: 0
A16: 1 | B16: 12 | C16: Wind | D16: Wind farm | E16: ACM2 | F16: 53 ktCO2 | G16: Jamaica | H16: CERUPT | I16: EcoSecurities | J16: Wigton wind farm project | K16: 2003-04-15 | L16: B | M16: 2003-06-08 | N16: 54 | O16: Con | P16: 2004-09-03 | Q16: =P16-K16 -> 507 | R16: Initial | S16: =SUM(N5:N18)/14 -> 54 | W16: 12 | X16: =+S133 -> 176.2857143 | Y16: =+S134 -> 329.3333333 | Z16: =+S135 -> 225.6666667 | AA16: 7 | AB16: 3 | AC16: 4 | AD16: 0 | AE16: 63 | AF16: 68 | AG16: 0
A17: 1 | B17: 14 | C17: Biomass energy | D17: Rice husk power plant (Combined with NM9) | F17: 400 ktCO2 | G17: Thailand | H17: n.a. | I17: Mitsubishi Securities | J17: A.T. Biopower rice husk power project | K17: 2003-04-15 | L17: C | M17: 2003-06-08 | N17: 54 | R17: Rejection | S17: =(N6+N7+N10+N12+N13+N15+N17+N18)/8 -> 54 | W17: 13 | X17: =+S144 -> 155.9090909 | Y17: =+S145 -> 293.1666667 | Z17: =+S146 -> 368.4 | AA17: 11 | AB17: 5 | AC17: 6 | AD17: 0 | AE17: 68 | AF17: 74 | AG17: 0
A18: 1 | B18: 15 | C18: Biomass energy | D18: Rice husk power plant (Combined with NM9) | F18: 400 ktCO2 | G18: Thailand | H18: n.a. | I18: Mitsubishi Securities | J18: A.T. Biopower rice husk power project | K18: 2003-04-15 | L18: C | M18: 2003-06-08 | N18: 54 | R18: Approval | S18: =(Q5+Q8+Q9+Q11+Q14+Q16)/6 -> 219 | W18: 14 | X18: =+S169 -> 204.826087 | Y18: =+S170 -> 316.0909091 | Z18: =+S171 -> 249.25 | AA18: 23 | AB18: 12 | AC18: 11 | AD18: 0 | AE18: 80 | AF18: 85 | AG18: 0
A19: 2 | B19: 13 | C19: Biogas | D19: 0,65 MW biogas power from palm oil waste water | F19: 27 ktCO2 | G19: Malaysia | H19: Japan | I19: EX Corporation, Japan | J19: FELDA Lepar Hilir palm oil mill, biogas project in Malaysia | K19: 2003-05-29 | L19: C | M19: 2003-07-29 | N19: 61 | R19: Initial | S19: =SUM(N19:N20)/2 -> 61 | W19: 15 | X19: =+S184 -> 228.0666667 | Y19: =S185 -> 212.25 | Z19: =S186 -> 377.1428571 | AA19: 15 | AB19: 7 | AC19: 8 | AD19: 0 | AE19: 87 | AF19: 93 | AG19: 0
A20: 2 | B20: 16 | C20: Fuel switch | D20: Fuel switch from coal to natural gas | E20: AM8/ACM9 | F20: 18 ktCO2 | G20: Chile | H20: Japan (J-Power) | I20: MGM International | J20: Graneros plant fuel switching project | K20: 2003-05-29 | L20: B | M20: 2003-07-29 | N20: 61 | O20: A | P20: 2003-10-17 | Q20: =P20-K20 -> 141 | R20: Rejection | S20: =+N19 -> 61 | W20: 16 | X20: =+S193 -> 176.2 | Y20: =S194 -> 152.2857143 | Z20: =+S195 -> 344.5 | AA20: 9 | AB20: 2 | AC20: 7 | AD20: 0 | AE20: 89 | AF20: 100 | AG20: 0
A21: 3 | B21: 17 | C21: EE industry | D21: Efficiency improvement of steam use at refinery | E21: AM17 | F21: 100 ktCO2 | G21: China | H21: n.a. | I21: Armstrong | J21: Steam system efficiency improvement in refineris in Fushun, China | K21: 2003-07-16 | L21: B | M21: 2004-03-26 | N21: 254 | O21: A | P21: 2004-12-03 | Q21: =P21-K21 -> 506 | R21: Approval | S21: =Q20 -> 141 | W21: 17 | X21: =+S203 -> 179.9 | Y21: =+S204 -> 164.2857143 | Z21: =+S205 -> 367.3333333 | AA21: 10 | AB21: 3 | AC21: 7 | AD21: 0 | AE21: 92 | AF21: 107 | AG21: 0
A22: 3 | B22: 18 | C22: EE supply side | D22: New cogeneration industrial plant using natural gas | E22: AM14 | F22: 115 ktCO2 | G22: Chile | H22: Japan (J-Power) | I22: MGM International | J22: Metrogas package cogeneration project | K22: 2003-07-16 | L22: B | M22: 2004-03-26 | N22: 254 | O22: A | P22: 2004-09-03 | Q22: =P22-K22 -> 415 | W22: 18 | X22: =+S224 -> 176.3 | Y22: =+S225 -> 191.2727273 | Z22: =+S226 -> 229.7 | AA22: 21 | AB22: 10 | AC22: 11 | AD22: 0 | AE22: =AB22+AE21 -> 102 | AF22: 118 | AG22: 0
A23: 3 | B23: 19 | C23: Biomass energy | D23: Rice husk power plant (only electricity, =NM9) | E23: AM4 | F23: 400 ktCO2 | G23: Thailand | H23: n.a. | I23: Mitsubishi Securities | J23: A.T. Biopower rice husk power project | K23: 2003-09-10 | L23: A | M23: 2003-10-17 | N23: 37 | R23: Initial | S23: =SUM(N21:N25)/5 -> 175.6 | W23: 19 | X23: =+S232 -> 269.625 | Y23: =+S232 -> 269.625 | Z23: =+S232 -> 269.625 | AA23: 8 | AB23: 5 | AC23: 3 | AD23: 0 | AE23: 107 | AF23: 121 | AG23: 0
A24: 3 | B24: 20 | C24: Hydro | D24: Hydro Power (=NM125) | F24: 70 ktCO2 | G24: Colombia | H24: Japan (J-Power) | I24: MGM International | J24: La Vuelta and La Herradura hydroelectric project | K24: 2003-07-16 | L24: B | M24: 2004-03-26 | N24: 254 | O24: C | P24: 2005-05-14 | Q24: =P24-K24 -> 668 | R24: Rejection | S24: =+Q24 -> 668 | W24: 20 | X24: =+S244 -> 337 | Y24: =+S245 -> 307.1428571 | Z24: =+S246 -> 378.8 | AA24: 12 | AB24: 5 | AC24: 6 | AD24: 1 | AE24: 112 | AF24: 127 | AG24: 1
A25: 3 | B25: 21 | C25: Landfill | D25: Landfill gas power for on site usage | E25: AM11 | F25: 70 ktCO2 | G25: Brazil | H25: CERUPT | I25: ONYX | J25: CERUPT methodology for landfill gas recovery | K25: 2003-09-10 | L25: A | M25: 2003-11-28 | N25: 79 | R25: Approval | S25: =(Q21+Q22+N23+N25)/4 -> 259.25 | W25: 21 | X25: =+S254 -> 341.1 | Y25: =+S255 -> 261.1666667 | Z25: =+S256 -> 461 | AA25: 10 | AB25: 4 | AC25: 6 | AD25: 0 | AE25: 116 | AF25: 133 | AG25: 1
A26: 4 | B26: 22 | C26: Biogas | D26: Biogas power from swine manure | E26: AM6 | F26: 90 ktCO2 | G26: Chile | H26: Canada | I26: Poch Ambiental, Chile | J26: CH4 capture and combustion from swine manure treatment at Peralillo | K26: 2003-09-10 | L26: B | M26: 2004-03-26 | N26: 198 | O26: A | P26: 2004-06-14 | Q26: =P26-K26 -> 278 | W26: 22 | X26: =+S264 -> 223.3 | Y26: =+S265 -> 190.5 | Z26: =+S266 -> 272.5 | AA26: 10 | AB26: 4 | AC26: 6 | AD26: 0 | AE26: 120 | AF26: 139 | AG26: 1
A27: 4 | B27: 23 | C27: Hydro | D27: Hydro power | E27: AM5 | F27: 70 ktCO2 | G27: Mexico | H27: PCF | I27: PCF | J27: El Gallo hydroelectric project (<60MW) | K27: 2003-09-09 | L27: A | M27: 2003-11-28 | N27: 80 | W27: 23 | X27: =+S277 -> 322.8461538 | Y27: =+S278 -> 299.1428571 | Z27: =+S269 -> 0 | AA27: 13 | AB27: 6 | AC27: 7 | AD27: 0 | AE27: 126 | AF27: 146 | AG27: 1
A28: 4 | B28: 24 | C28: Wind | D28: Wind farm | E28: ACM2 | F28: 45 ktCO2 | G28: Colombia | H28: PCF | I28: PCF | J28: Jepirachi wind power project | K28: 2003-09-10 | L28: B | M28: 2004-03-26 | N28: 198 | O28: Con | P28: 2004-09-03 | Q28: =P28-K28 -> 359 | W28: 24 | X28: =+S286 -> 312.375 | Y28: =+S287 -> 280.875 | Z28: =+S288 -> 506 | AA28: 9 | AB28: 2 | AC28: 7 | AD28: 0 | AE28: 128 | AF28: 153 | AG28: 1
A29: 4 | B29: 25 | C29: Biomass energy | D29: Biomass residues power plant | F29: 85 ktCO2 | G29: India | H29: Swedish Energy Agency | I29: Raghu Rama Ren. Energy ltd. | J29: 18 MW biomass power porject in Tamilnadu, India | K29: 2003-09-09 | L29: C | M29: 2004-03-26 | N29: 199 | W29: 25 | X29: =+S296 -> 372.375 | Y29: =+S297 -> 267 | Z29: =+S298 -> 606.6666667 | AA29: 10 | AB29: 3 | AC29: 7 | AD29: 0 | AE29: 131 | AF29: 160 | AG29: 1
A30: 4 | B30: 26 | C30: Fugitive | D30: Recovering associated gas in stead of flaring | E30: AM9 | F30: 670 ktCO2 | G30: Vietnam | H30: Japan | I30: Japan Vietnam Petroleum | J30: Rang Dong oil filed associated gas recovery and utilization project | K30: 2003-09-10 | L30: A | M30: 2004-03-26 | N30: 198 | W30: 26 | X30: =+S300 -> 114 | Y30: =+S301 -> 114 | Z30: =+S302 -> 0 | AA30: 4 | AB30: 0 | AC30: 4 | AD30: =AA30-AB30-AC30 -> 0 | AE30: 131 | AF30: 164 | AG30: 1
A31: 4 | B31: 27 | C31: Biomass energy | D31: Bagasse power expansion | F31: 23 ktCO2 | G31: Brazil | H31: CERUPT | I31: Ecoinvest | J31: Catanduva Sugarcane Mill, Biomas power plants expansion | K31: 2003-09-15 | L31: Withdrawn | M31: 2004-03-26 | N31: 193 | W31: 27 | AA31: 0 | AB31: 0 | AC31: 0 | AD31: =AA31-AB31-AC31 -> 0 | AE31: 131 | AF31: 164 | AG31: 1
A32: 4 | B32: 28 | C32: Biomass energy | D32: Switch from coal/lignite to agro-biomass power | E32: AM7 | F32: 600 ktCO2 | G32: India | H32: PCF | I32: Winrock International India (WII) | J32: TA Sugars proposed sugar cogeneration plant and fuel switch project | K32: 2003-09-10 | L32: A | M32: 2004-06-14 | N32: 278 | W32: 28 | X32: =+S313 -> 276.1 | Y32: =+S314 -> 327.4 | Z32: =+S315 -> 373.5 | AA32: 12 | AB32: 1 | AC32: 11 | AD32: 0 | AE32: 132 | AF32: 175 | AG32: 1
A33: 4 | B33: 29 | C33: Fugitive | D33: Fuel switch from coke to charcoal in steel works (=NM2=NM104) | F33: 384 ktCO2 | G33: Brazil | H33: IFC-Netherlands & Japan | I33: EcoSecurities | J33: V&M Do Brazil avoided fuel switch project | K33: 2003-09-10 | L33: C | M33: 2005-02-25 | N33: 534 | W33: 29 | X33: =+S321 -> 229.375 | Y33: =+S322 -> 152.8333333 | Z33: =+S323 -> 459 | AA33: 8 | AB33: 2 | AC33: 6 | AD33: 0 | AE33: 134 | AF33: 181 | AG33: =AD33+AG32 -> 1
A34: 4 | B34: 30 | C34: Biomass energy | D34: Bagasse power and steam | F34: 95 ktCO2 | G34: India | H34: n.a. | I34: Balrampampur Chini Mills ltd. | J34: Haidargarh bagasse based cogeneration power project, Balrampur Chini Mills | K34: 2003-09-10 | L34: B | M34: 2004-03-26 | N34: 198 | O34: C | P34: 2004-10-22 | Q34: =P34-K34 -> 408 | W34: 30 | X34: =+S326 -> 248 | Y34: =+S327 -> 195.3333333 | Z34: =+S328 -> 316.5 | AA34: 5 | AB34: 2 | AC34: 3 | AD34: =AA34-AB34-AC34 -> 0 | AE34: =AB34+AE33 -> 136 | AF34: 184 | AG34: 1
A35: 4 | B35: 31 | C35: EE own generation | D35: 10 MW power from waste heat in iron kiln | E35: ACM4 | F35: 37 ktCO2 | G35: India | H35: n.a. | I35: OSIL, India | J35: OSIL 10 MW waste heat recovery based captive power project | K35: 2003-09-10 | L35: B | M35: 2004-03-26 | N35: 198 | O35: A | P35: 2005-07-08 | Q35: =P35-K35 -> 667 | W35: 31 | X35: =+S329 -> 277 | Y35: =+S330 -> 277 | Z35: =+S331 -> 0 | AA35: 3 | AB35: 0 | AC35: 3 | AD35: =AA35-AB35-AC35 -> 0 | AE35: 136 | AF35: 187 | AG35: 1
A36: 4 | B36: 32 | C36: Landfill | D36: 5.6 MW power from municipal waste (landfill) | E36: AM12 | F36: 100 ktCO2 | G36: India | H36: PCF | I36: IDFC, ACIL,PCF | J36: Municipal solid waste treatment cum energy generation project, Lucknow | K36: 2003-09-10 | L36: A | M36: 2004-03-26 | N36: 198 | W36: 32 | X36: =+S333 -> 412.75 | Y36: =+S334 -> 311 | Z36: =+S335 -> 514.5 | AA36: 4 | AB36: 2 | AC36: 2 | AD36: 0 | AE36: 138 | AF36: 189 | AG36: 1
A37: 4 | B37: 33 | C37: EE industry | D37: Energy efficient expansion of cement factory | F37: 80 ktCO2 | G37: Costa Rica | H37: CERUPT | I37: HOLCIM | J37: Holcim Cartago plant expansion project | K37: 2003-09-16 | L37: B | M37: 2004-03-26 | N37: 192 | O37: Withdrawn | P37: 2004-03-26 | Q37: =M37-K37 -> 192 | R37: Initial | S37: =SUM(N26:N39)/14 -> 218.2142857 | W37: 33 | X37: =+S340 -> 628.8333333 | Y37: =+S341 -> 525 | Z37: =+S342 -> 549.5 | AA37: 7 | AB37: 4 | AC37: 3 | AD37: 0 | AE37: =AB37+AE36 -> 142 | AF37: 192 | AG37: 1
A38: 4 | B38: 34 | C38: Agriculture | D38: CH4 & N2O reductions from manure management | E38: AM16 | F38: 20 ktCO2 | G38: Brazil | H38: Canada | I38: AgCert Canada Co. | J38: Granja Becker GHG mitigation project | K38: 2003-09-10 | L38: B | M38: 2004-03-26 | N38: 198 | O38: A | P38: 2004-10-22 | Q38: =P38-K38 -> 408 | R38: Rejection | S38: =(N29+N31+N33+Q34+Q37+N39)/5 -> 343.8 | W38: 34 | X38: =+S344 -> 196.5 | Y38: =+S345 -> 65 | Z38: =+S346 -> 240.3333333 | AA38: 4 | AB38: 3 | AC38: 1 | AD38: 0 | AE38: 145 | AF38: 193 | AG38: 1
A39: 4 | B39: 35 | C39: Biomass energy | D39: Capacity augmentation component of NM28 | F39: 600 ktCO2 | G39: India | H39: PCF | I39: Winrock International India (WII) | J39: TA Sugars proposed sugar cogeneration plant and fuel swtich project | K39: 2003-09-15 | L39: Withdrawn | M39: 2004-03-26 | N39: 193 | R39: Approval | S39: =(Q26+N27+Q28+N30+N32+Q35+N36+Q38)/8 -> 308.25 | W39: 35 | X39: =+S384 -> 268.9375 | Y39: =+S385 -> 180.8 | Z39: =+S386 -> 290.4166667 | AA39: 30 | AB39: 21 | AC39: 8 | AD39: 1 | AE39: =AB39+AE38 -> 166 | AF39: =AC39+AF38 -> 201 | AG39: =AD39+AG38 -> 2
A40: 5 | B40: 36 | C40: Wind | D40: 120 MW wind farm in Zafarana | E40: ACM2 | F40: 227 ktCO2 | G40: Egypt | H40: Japan (JBIC) | I40: Mitsubishi Securities | J40: Zafarana wind power plant project | K40: 2003-11-17 | L40: Con | M40: 2004-09-03 | N40: 291 | W40: Average | Y40: =(Y5*AC5+Y6*AC6+Y7*AC7+Y8*AC8+Y9*AC9+Y10*AC10+Y11*AC11+Y12*AC12+Y13*AC13+Y14*AC14+Y15*AC15+Y16*AC16+Y17*AC17+Y18*AC18+Y19*AC19+Y20*AC20+Y21*AC21+Y22*AC22+Y23*AC23+Y24*AC24+Y25*AC25+Y26*AC26+Y27*AC27+Y28*AC28+Y29*AC29+Y30*AC30+Y31*AC31+Y32*AC32+Y33*AC33+Y34*AC34+Y35*AC35+Y36*AC36+Y37*AC37+Y38*AC38+Y39*AC39)/AF40 -> 234.6705994 | Z40: =(Z5*AB5+Z6*AB6+Z7*AB7+Z8*AB8+Z9*AB9+Z10*AB10+Z11*AB11+Z12*AB12+Z13*AB13+Z14*AB14+Z15*AB15+Z16*AB16+Z17*AB17+Z18*AB18+Z19*AB19+Z20*AB20+Z21*AB21+Z22*AB22+Z23*AB23+Z24*AB24+Z25*AB25+Z26*AB26+Z27*AB27+Z28*AB28+Z29*AB29+Z30*AB30+Z31*AB31+Z32*AB32+Z33*AB33+Z34*AB34+Z35*AB35+Z36*AB36+Z37*AB37+Z38*AB38++Z39*AB39)/AE40 -> 312.935994 | AA40: =SUM(AA5:AA39) -> 369 | AE40: =+AE39 -> 166 | AF40: =+AF39 -> 201 | AG40: =+AG39 -> 2
A41: 5 | B41: 37 | C41: EE industry | D41: Energy efficiency in ammonia fertilizer plant | E41: AM18 | F41: 23 ktCO2 | G41: India | H41: Italy | I41: Indo Gulf Fertilizers Limeted | J41: Energy efficiency through installation of modified CO2 removal system in ammonia plant | K41: 2004-01-23 | L41: B | M41: 2004-09-03 | N41: 224 | O41: A | P41: 2004-12-03 | Q41: =P41-K41 -> 315
A42: 5 | B42: 38 | C42: Biogas | D42: 1,4 MW biogas power from sewage water | E42: AM13 | F42: 73 ktCO2 | G42: Moldavia | H42: Denmark (EPA) | I42: COWI | J42: Methane gas capture and electricity production at Chisinau wastewater treatment plant | K42: 2004-01-23 | L42: B | M42: 2004-12-03 | N42: 315 | O42: A | P42: 2006-05-12 | Q42: =P42-K42 -> 840
A43: 5 | B43: 39 | C43: Biogas | D43: 1,5 MW biogas power from palm oil effluent | E43: AM13 | F43: 55 ktCO2 | G43: Malaysia | H43: Japan | I43: Mitsubishi Securities | J43: Bumibiopower methane extraction and power generation project | K43: 2004-01-30 | L43: A | M43: 2004-09-03 | N43: 217
A44: 5 | B44: 41 | C44: Biogas | D44: Biogas for drying & power at starch factory | E44: AM22 | F44: 372 ktCO2 | G44: Thailand | H44: n.a. | I44: EcoSecurities | J44: Korat waste to energy project, Thailand | K44: 2004-01-23 | L44: B | M44: 2004-10-22 | N44: 273 | O44: A | P44: 2005-05-14 | Q44: =P44-K44 -> 477
A45: 5 | B45: 42 | C45: EE service | D45: Water pumping efficiency improvement | E45: AM20 | F45: 36 ktCO2 | G45: India | H45: WB Carbon Finance | I45: QualityTonnes India | J45: Energy efficiency improvements in municipal water utilities in Karnataka | K45: 2004-01-23 | L45: B | M45: 2004-10-22 | N45: 273 | O45: A | P45: 2005-02-25 | Q45: =P45-K45 -> 399
A46: 5 | B46: 43 | C46: Hydro | D46: A 86 MW hydro added & 2 units upgraded | E46: ACM2 | F46: 39 ktCO2 | G46: Panama | H46: n.a. | I46: AES Panama | J46: Bayano hydroelectric project | K46: 2004-01-23 | L46: Con | M46: 2004-09-03 | N46: 224 | R46: Initial | S46: =SUM(N40:N48)/9 -> 250.8888889
A47: 5 | B47: 44 | C47: EE service | D47: Water pumping power factor improvement | F47: 36 ktCO2 | G47: India | H47: WB Carbon Finance | I47: QualityTonnes India | J47: Power factor improvements in municipal water utilities in Karnataka, India | K47: 2004-01-30 | L47: C | M47: 2004-09-03 | N47: 217 | R47: Rejection | S47: =N47 -> 217
A48: 5 | B48: 45 | C48: Cement | D48: Fly ash utilization in cement production | E48: ACM5 | F48: 250 ktCO2 | G48: India | H48: n.a. | I48: Birla Corporation Limited | J48: Optimal utilization of clinker and conversion factor improvement | K48: 2004-01-23 | L48: B | M48: 2004-09-03 | N48: 224 | O48: Con | P48: 2005-09-30 | Q48: =P48-K48 -> 616 | R48: Approval | S48: =(N40+Q41+Q42+N43+Q44+Q45+N46+Q48)/8 -> 422.375
A49: 6 | B49: 46 | C49: Energy distribution | D49: Reconstruction of a district heating network (=NM103) | F49: 39 ktCO2 | G49: Uzbekistan | H49: PCF | I49: PCF | J49: Andijan district heating project | K49: 2004-02-20 | L49: C | M49: 2004-09-03 | N49: =M49-K49 -> 196
A50: 6 | B50: 47 | C50: Cement | D50: Reducing clinker component in cement by adding pozzolan | E50: ACM5 | F50: 100 ktCO2 | G50: Indonesia | H50: PCF | I50: Indocement + DP Solusi | J50: Indocement's alternative cement production project - blended cement component | K50: 2004-04-15 | L50: B | M50: 2004-10-22 | N50: 190 | O50: Con | P50: 2005-09-30 | Q50: =P50-K50 -> 533
A51: 6 | B51: 48 | C51: EE industry | D51: Fuel switch from coal to biomass & waste in cement factory | E51: ACM3 | F51: 100 ktCO2 | G51: Indonesia | H51: PCF | I51: Indocement + DP Solusi | J51: Indocement's alternative cement production project - alternative fuel component component | K51: 2004-04-15 | L51: B | M51: 2004-10-22 | N51: 190 | O51: Con | P51: 2005-02-25 | Q51: =P51-K51 -> 316
A52: 6 | B52: 49 | C52: EE own generation | D52: Recovery of BOF waste gas at steel plant | F52: 88 ktCO2 | G52: India | H52: n.a. | I52: PriceWaterhouseCoopers | J52: BOF Gas Waste heat recovery | K52: 2004-03-02 | L52: C | M52: 2004-09-03 | N52: 185
A53: 6 | B53: 50 | C53: Biomass energy | D53: 34 MW bagasse power plant | E53: ACM6 | F53: 100 ktCO2 | G53: Thailand | H53: Denmark | I53: Agrinergy Ltd | J53: Ratchasima Small Power Producer (SPP) Expansion Project | K53: 2004-04-15 | L53: B | M53: 2004-12-03 | N53: 232 | O53: Con | P53: 2005-09-30 | Q53: =P53-K53 -> 533
A54: 6 | B54: 51 | C54: Hydro | D54: 30 MW hydro power in a hydro dominated grid | F54: 94 ktCO2 | G54: Brazil | H54: n.a. | I54: Ecoinvest | J54: PCH Passo do Meio (Small hydropower plant project feedign into a hydro dominating grid) | K54: 2004-04-15 | L54: C | M54: 2004-12-03 | N54: 232
A55: 6 | B55: 52 | C55: Transport | D55: Expansion of the bus system in Bogoto | F55: 250 ktCO2 | G55: Colombia | H55: Netherlands | I55: Servicios Ambientales, J82CAF | J55: Urban Mass Transportation System (TransMilenio), Bogotá DC, Colombia | K55: 2004-04-16 | L55: C | M55: 2004-09-03 | N55: 140
A56: 6 | B56: 53 | C56: Geothermal | D56: 55 MW geothermal power at Lihir gold mine | E56: AM19 | F56: 300 ktCO2 | G56: Papua New Guinea | H56: n.a. | I56: EcoSecurities | J56: Lihir Geothermal Power Project | K56: 2004-04-15 | L56: A | M56: 2004-12-03 | N56: 232
A57: 6 | B57: 54 | C57: Hydro | D57: 15 MW run-of-river hydro power | F57: 68 ktCO2 | G57: Ecuador | H57: WB-CF | I57: WB-CF | J57: Sibimbe Hydroelectric Project | K57: 2004-04-15 | L57: C | M57: 2005-02-25 | N57: 316 | R57: Initial | S57: =SUM(N49:N59)/11 -> 199.5454545
A58: 6 | B58: 55 | C58: Geothermal | D58: 110 MW geothermal power in west Java | E58: ACM2 | F58: 780 ktCO2 | G58: Indonesia | H58: n.a. | I58: Amoseas Indonesia Inc. | J58: Darajat Unit III Geothermal Project | K58: 2004-04-15 | L58: Con | M58: 2004-09-03 | N58: 141 | R58: Rejection | S58: =(N49+N52+N54+N55+N57+N59)/6 -> 201.6666667
A59: 6 | B59: 56 | C59: Biogas | D59: Biogas from alcohol wastewater | F59: 100 ktCO2 | G59: Nicaragua | H59: the Netherlands | I59: CAF | J59: Vinasse Anaerobic Treatment Project - Compañía Licorera de Nicaragua | K59: 2004-04-15 | L59: C | M59: 2004-09-03 | N59: 141 | R59: Approval | S59: =(Q50+Q51+Q53+N56+N58)/5 -> 351
A60: 7 | B60: 40 | C60: EE industry | D60: Fuel switch from coal to palm oil shells at cement plant | E60: ACM3 | F60: 145 ktCO2 | G60: Malaysia | H60: UK | I60: Lafarge Malayan Cement | J60: Replacement of Fossil Fuel by Palm Kernel Shell Biomass in the production of Portland Cement | K60: 2004-06-16 | L60: Con | M60: 2005-02-25 | N60: 254
A61: 7 | B61: 57 | C61: PFCs | D61: PFC reduction by continous feeding of Aluminium plant | F61: 286 ktCO2 | G61: India | H61: n.a. | I61: PriceWaterhouseCoopers | J61: PFC Emission reductions through installation of point break feeders (PBF) in horizontal stud Soderberg (HSS) cells in aluminum plants | K61: 2004-06-11 | L61: C | M61: 2005-02-25 | N61: 259
A62: 7 | B62: 58 | C62: Energy distribution | D62: Power plant waste heat in new district heating system (=NM96) | F62: 93 ktCO2 | G62: China | H62: Denmark (DANIDA) | I62: COWI | J62: Energy Efficiency Improvements-Hou Ma District Heating, Shanxi Province, China | K62: 2004-07-12 | L62: C | M62: 2004-12-03 | N62: 144
A63: 7 | B63: 59 | C63: EE own generation | D63: CO collection el-gen & el-motor savings at steel plant =NM64) | F63: 47 ktCO2 | G63: Brazil | H63: n.a. | I63: CST + PriceWaterhouseCoopers | J63: Optimization and Co-Generation of Energy from Steel Making Process - energy co-generation from steel making gas recovery | K63: 2004-06-24 | L63: C | M63: 2004-12-03 | N63: 162
A64: 7 | B64: 60 | C64: Biomass energy | D64: Upgrade & expansion of biomass plant from 24MW to 53MW | F64: 80 ktCO2 | G64: Thailand | H64: n.a. | I64: ERM-Siam Co, Ltd, Thailand | J64: Dan Chang Bio-Energy Cogeneration project (DCBC) | K64: 2004-06-25 | L64: C | M64: 2004-12-03 | N64: 161
A65: 7 | B65: 61 | C65: N2O | D65: Thermal destruction of N2O from Adipic acid production | E65: AM21 | F65: 9147 ktCO2 | G65: South Korea | H65: France (Rhodia) | I65: Rhodia + Axel Michaelowa | J65: N2O Emission Reduction in Onsan, South Korea | K65: 2004-06-25 | L65: A | M65: 2005-02-25 | N65: 245
A66: 7 | B66: 62 | C66: EE supply side | D66: 120 MW nat.gas. combined cycle replaces average fuel | F66: 232 ktCO2 | G66: India | H66: n.a. | I66: ACAN Power Company Ltm. | J66: APCL Electricity Generation Project With Cleaner Fuel | K66: 2004-07-05 | L66: C | M66: 2005-02-25 | N66: 235 | R66: Initial | S66: =SUM(N60:N68)/9 -> 194.7777778
A67: 7 | B67: 63 | C67: Landfill | D67: Avoiding landfilling by composting municipal waste in Dhaka | F67: 40 ktCO2 | G67: Bangladesh | H67: the Netherlands | I67: Royal Haskoning, Netherlands | J67: Organic Green Waste Composting | K67: 2004-07-05 | L67: C | M67: 2004-12-03 | N67: 151 | R67: Rejection | S67: =(N61+N62+N63+N64+N66+N67+N68)/7 -> 179.1428571
A68: 7 | B68: 64 | C68: EE own generation | D68: CO collection el-gen & el-motor savings at steel plant (NM59) | F68: 47 ktCO2 | G68: Brazil | H68: n.a. | I68: CST + PriceWaterhouseCoopers | J68: Optimization and Co-Generation of Energy from Steel Making Process - energy co-generation from steel making gas recovery | K68: 2004-07-14 | L68: C | M68: 2004-12-03 | N68: 142 | R68: Approval | S68: =(N60+N65)/2 -> 249.5
A69: 8 | B69: 66 | C69: Coal bed/mine methane | D69: Coalmine Methane Utilization Project at Nanshan Mine | E69: ACM8 | F69: 62 ktCO2 | G69: China | H69: Japan | I69: Trexler Climate+Energy Services | J69: CH4 collected will be used for electricity production, but CERs only claimed for the 40% CH4 releasd to atm. | K69: 2004-08-09 | L69: B | M69: 2005-11-25 | N69: =M69-K69 -> 473 | O69: Con | P69: 2005-11-25 | Q69: =P69-K69 -> 473
A70: 8 | B70: 67 | C70: EE supply side | D70: Capture of CH4 in new charcoal production process | F70: 250 ktCO2 | G70: Brazil | H70: n.a. | I70: EcoSecurities | J70: Gerdau carbonisation improvemnet project | K70: 2004-10-18 | L70: C | M70: 2005-02-25 | N70: 130
A71: 8 | B71: 68 | C71: PFCs | D71: Reduce PFC emissions by reducing anode events in Al production | F71: 85 ktCO2 | G71: Argentina | H71: Japan (J-Power) | I71: MGM International | J71: GHG emission reduction at ALUAR Aluminio Argentino | K71: 2004-10-28 | L71: C | M71: 2005-05-14 | N71: 198
A72: 8 | B72: 69 | C72: Biofuel | D72: Biodiesel from oil seeds on Jatropa and Pongamia trees (=NM108) | F72: 26 ktCO2 | G72: India | H72: n.a. | I72: Zenith Corporate Services | J72: 30 TPD Biodiesel project in Adra Pradesh, India | K72: 2004-10-28 | L72: C | M72: 2005-02-25 | N72: 120
A73: 8 | B73: 70 | C73: EE supply side | D73: Conversion of 2 gasturbines from open (112MW) to closed cycle (200 MW) | E73: ACM7 | F73: 340 ktCO2 | G73: Bolivia | H73: Independent Power Corp. UK | I73: IPC + KPMG | J73: Conversion of existing open cycle gas turbine to combined cycle operation at Guarachi power station, Santa Cruz | K73: 2004-11-03 | L73: B | M73: 2005-07-08 | N73: 247 | O73: Con | P73: 2005-11-25 | Q73: =P73-K73 -> 387
A74: 8 | B74: 71 | C74: EE own generation | D74: BOF gas delivered to power plant in stead of flaring its CO content (rev) | F74: 61 ktCO2 | G74: India | H74: n.a. | I74: PriceWaterhouseCoopers | J74: BOF Gas recovery at Jindal Vijayanagar Steel Limited and combustion for power generation and supply to Karnataka grid, India | K74: 2004-10-28 | L74: B | M74: 2005-05-14 | N74: 198 | O74: C | P74: 2005-07-08 | Q74: =P74-K74 -> 253
A75: 8 | B75: 72 | C75: EE households | D75: Improved air conditioning standard | F75: 435 ktCO2 | G75: Ghana | H75: n.a. | I75: QualityTonnes | J75: Mandatory energy-efficiency standard for room air conditioning in Ghana | K75: 2004-11-04 | L75: B | O75: Withdrawn | P75: 2006-02-24 | Q75: =P75-K75 -> 477
A76: 8 | B76: 73 | C76: Fuel switch | D76: Fuel switch from oil to natural gas in a power plant | F76: 414 ktCO2 | G76: India | H76: n.a. | I76: PriceWaterhouseCoopers | J76: Switching of fossil fuel from naphtha to natural gas as Essar Power ltd at Hazira, Gujarat for power supply and to Essar Steel ltd. | K76: 2004-10-26 | L76: C | M76: 2005-02-25 | N76: =M76-K76 -> 122
A77: 8 | B77: 74 | C77: Cement | D77: Introduction of a vertical grinding mill reducing clinker use and kWh-use (= NM106) | F77: 186 ktCO2 | G77: Israel | H77: n.a. | I77: EcoSecurities | J77: Optimisation of clinker use and energy conservation through technical improvement in Ramla Cement Plant in Israel | K77: 2004-11-03 | L77: C | M77: 2005-02-25 | N77: 114
A78: 8 | B78: 75 | C78: Coal bed/mine methane | D78: Coal-bed CH4 for utilisation in households & power, the rest is flared | E78: ACM8 | F78: 170 ktCO2 | G78: China | H78: UK (ICECAP) | I78: IT Power Ltd + Armstrong | J78: Pansan coal mine methane utilisation and destruction | K78: 2004-10-28 | L78: B | M78: 2005-11-25 | N78: 393 | O78: Con | P78: 2005-11-25 | Q78: =P78-K78 -> 393
A79: 8 | B79: 76 | C79: Hydro | D79: 26 MW run-of-river hydro power plant | E79: AM26 | F79: 120 ktCO2 | G79: Chile | H79: PCF | I79: PCF | J79: Chile: ChacACuquito 26 MW run-of-river hydropower projects | K79: 2004-10-28 | L79: B | M79: 2005-05-14 | N79: 198 | O79: A | P79: 2005-11-25 | Q79: =P79-K79 -> 393
A80: 8 | B80: 77 | C80: Fuel switch | D80: Switch from burning asphalt, fuel oil etc. to natural gas at refinery CHP | F80: 107 ktCO2 | G80: Argentina | H80: UK & Japan (Shell) | I80: MGM International | J80: Shell fuel switch and cogeneration project | K80: 2004-10-28 | L80: C | M80: 2005-05-14 | N80: 198
A81: 8 | B81: 78 | C81: EE supply side | D81: Conversion of single-cycle to combined cycle power generation | E81: ACM7 | F81: 596 ktCO2 | G81: Ghana | H81: n.a. | I81: QualityTonnes | J81: Conversion of single-cycle to combined cycle power generation in Ghana | K81: 2004-10-28 | L81: B | M81: 2005-07-08 | N81: 253 | O81: Con | P81: 2005-11-25 | Q81: =P81-K81 -> 393
A82: 8 | B82: 79 | C82: EE own generation | D82: Waste heat from cement kiln for 13.2 MW power to cement works (rev). | E82: AM24 | F82: 144 ktCO2 | G82: China | H82: n.a. | I82: Natsource Europe + Westlake | J82: Taishan Huafeng cement works waste heat recovery and utilisation for power generation project | K82: 2004-10-28 | L82: B | M82: 2005-05-14 | N82: 198 | O82: A | P82: 2005-09-30 | Q82: =P82-K82 -> 337
A83: 8 | B83: 80 | C83: EE supply side | D83: New 1050 MW natural gas power plant replacing coal and oil | E83: AM29 | F83: n.a. | G83: India | H83: n.a. | I83: PriceWaterhouseCoopers | J83: Natural gas based grid connected combined cycle power generation project for Torrent Power Generation Ltd in Akhakhol Gujarat | K83: 2004-10-28 | L83: B | M83: 2005-07-08 | N83: 253 | O83: A | P83: 2006-05-12 | Q83: =P83-K83 -> 561
A84: 8 | B84: 81 | C84: Biomass energy | D84: Trupán (30 MW) Biomass CHP plant using sawmill and forest op. waste | E84: ACM6 | F84: 87 ktCO2 | G84: Chile | H84: n.a. | I84: Celulosa Arauco | J84: Trupán biomass power plant | K84: 2004-10-28 | L84: Con | M84: 2005-02-25 | N84: 120
A85: 8 | B85: 82 | C85: Biofuel | D85: 85000 litre ethanol/dayfrom sugar cane molasses for a 10% blend | F85: 53 ktCO2 | G85: Thailand | H85: Denmark | I85: Agrinergy Ltd | J85: Baseline methodology for the production of sugar cane based anhydrous bio-ethanol for transportation using LCA (Khon Kaen fuel ethanol project) | K85: 2004-10-28 | L85: B | M85: 2005-07-08 | N85: 253 | O85: C | P85: 2006-05-12 | Q85: =P85-K85 -> 561
A86: 8 | B86: 83 | C86: Transport | D86: Establish 1500 retail outlets for LPG for 2-,3-, and 4-wheelers | F86: 363 ktCO2 | G86: India | H86: n.a. | I86: E F Energy Limited | J86: AutoLPG in India - A road transport sector fuel-switching project | K86: 2004-10-27 | L86: C | M86: 2005-02-25 | N86: 121 | R86: Initial | S86: =SUM(N69:N88)/19 -> 208.7894737
A87: 8 | B87: 84 | C87: Fuel switch | D87: Oil burners replaced by natural gas combined cycle at corn refine factory | F87: 90 ktCO2 | G87: Brazil | H87: n.a. | I87: ICF Consulting | J87: Natural gas-fired cogeneration plant replacing oil-fired boilers | K87: 2004-11-04 | L87: C | M87: 2005-05-14 | N87: 191 | R87: Rejection | S87: =(N70+N71+N72+Q74+Q75+N76+N77+N80+Q85+N86+N87)/11 -> 225.9090909
A88: 8 | B88: 85 | C88: Biogas | D88: Biogas wastewater from alcohol production replace fuel-oil + grid-elect. | E88: AM13 | F88: 50 ktCO2 | G88: Nicaragua | H88: Netherlands-CAF | I88: ECONERGY | J88: Vinasse Anaerobic Treatment Project - Compañía Licorera de Nicaragua, S. A. (CLNSA) | K88: 2004-11-08 | L88: A | M88: 2005-05-14 | N88: 187 | R88: Approval | S88: =(Q69+Q73+Q78+Q79+Q81+Q82+Q83+N84+N88)/9 -> 360.4444444
A89: 9 | B89: 86 | C89: EE industry | D89: Energy savings in petrochemical industry | F89: 304 ktCO2 | G89: Mexico | H89: Japan (EDPC) | I89: MGM International | J89: Petromex Energy Integration Project | K89: 2005-02-04 | L89: C | M89: 2005-05-14 | N89: 99
A90: 9 | B90: 87 | C90: EE own generation | D90: Electricity production from waste heat gases in sponge iron production | F90: 127 ktCO2 | G90: India | H90: Netherlands (BHP - Billiton) | I90: Agrinergy Ltd | J90: Shri Bajrang WHR CDM project | K90: 2005-02-08 | L90: C | M90: 2005-05-14 | N90: 95 | O90: Con | P90: 2005-07-08 | Q90: =P90-K90 -> 150
A91: 9 | B91: 88 | C91: EE own generation | D91: Heat recovery for el-prod. in sulphuric acid prod. at phosphor fertilizer plant | E91: ACM4 | F91: 88 ktCO2 | G91: Marocco | H91: n.a. | I91: EcoSecurities | J91: Jorf Lasfar heat recovery enhancement for power project | K91: 2005-02-08 | L91: Con | M91: 2005-07-08 | N91: 150
A92: 9 | B92: 89 | C92: Fuel switch | D92: New natural gas power plant (25 MW) replacing coal and oil | F92: 57 ktCO2 | G92: India | H92: n.a. | I92: PriceWaterhouseCoopers | J92: CECL’s natural gas based engine fired captive power plant in Tamilnadu | K92: 2005-02-11 | L92: C | M92: 2005-05-14 | N92: 92
A93: 9 | B93: 90 | C93: Waste | D93: Composting plant replacing landfilling of organic city waste | E93: AM25 | F93: 71 ktCO2 | G93: Bangladesh | H93: Netherlands | I93: Royal Haskoning | J93: Organic waste composting at the Matuail landfill site Dhaka | K93: 2005-02-18 | L93: B | M93: 2005-07-08 | N93: 140 | O93: A | P93: 2005-09-30 | Q93: =P93-K93 -> 224
A94: 9 | B94: 91 | C94: Energy distribution | D94: Leak reduction from natural gas pipeline compressor and gate stations | E94: AM23 | F94: 41 ktCO2 | G94: Moldova | H94: n.a. | I94: QualityTonnes | J94: Leak reduction from natural gas pipeline compressor and gate stations | K94: 2005-02-11 | L94: A | M94: 2005-07-08 | N94: 147
A95: 9 | B95: 92 | C95: EE industry | D95: Retrofitting of electric furnaces making manganese alloys for steel making | F95: 90 ktCO2 | G95: South Africa | H95: UK | I95: EcoSecurities | J95: Transalloys manganese alloy smelter upgrade & energy efficiency project | K95: 2005-02-14 | L95: B | M95: 2005-07-08 | N95: 144 | O95: C | P95: 2005-09-30 | Q95: =P95-K95 -> 228
A96: 9 | B96: 93 | C96: Coal bed/mine methane | D96: Coal-bed CH4 (like in NM75) + coal-mine CH4 | E96: ACM8 | F96: 713 ktCO2 | G96: China | H96: ADB CDM Facility | I96: ADB + Westlake | J96: Fuxin coal mine methane/coal bed methane utilization project, Liaoning Province | K96: 2005-02-18 | L96: B | M96: 2005-11-25 | N96: 280 | O96: Con | P96: 2005-11-25 | Q96: =P96-K96 -> 280
A97: 9 | B97: 94 | C97: Coal bed/mine methane | D97: Coal-bed & Coal-mine CH4 used in generators that can use CH4 conc. down to 30% | E97: ACM8 | F97: 411 ktCO2 | G97: China | H97: n.a. | I97: Raven Ridge Resources (US) | J97: Huainan Panyi and Xieqiao coal mine methane utilization project | K97: 2005-02-14 | L97: B | M97: 2005-11-25 | N97: 284 | O97: Con | P97: 2005-11-25 | Q97: =P97-K97 -> 284
A98: 9 | B98: 95 | C98: Cement | D98: Increase of the fly-ash content in cement | E98: ACM5 | F98: 136 ktCO2 | G98: India | H98: Austria | I98: Agrinergy Ltd | J98: ACC New Wadi blended cement project | K98: 2005-02-11 | L98: Con | M98: 2005-09-30 | N98: 231
A99: 9 | B99: 96 | C99: Energy distribution | D99: Power plant waste heat in new district heating system (=NM58) | F99: 93 ktCO2 | G99: China | H99: Denmark (DANIDA) | I99: COWI | J99: Energy Efficiency Improvements-Hou Ma District Heating, Shanxi Province, China | K99: 2005-02-14 | L99: C | M99: 2005-07-08 | N99: 144
A100: 9 | B100: 97 | C100: EE industry | D100: Reduced coal use at pulp factory by efficient black liquor utilization | F100: 50 ktCO2 | G100: India | H100: n.a. | I100: PriceWaterhouseCoopers | J100: Improvement in recovery of black liquor solids...and its use for steam generation in Soda Recovery Boiler | K100: 2005-02-14 | L100: C | M100: 2005-07-08 | N100: 144
A101: 9 | B101: 98 | C101: Biomass energy | D101: Industries that switch steam production from fossil sawmill waste | E101: ACM6 | F101: 116 ktCO2 | G101: Brazil | H101: UK | I101: EcoSecurities | J101: Nobrecel Fossil-to-Biomass Fuel Switch Project in Brazil | K101: 2005-02-21 | L101: Con | M101: 2005-09-30 | N101: 221
A102: 9 | B102: 99 | C102: EE industry | D102: Several energy efficency measures in cement production | F102: 108 ktCO2 | G102: India | H102: n.a. | I102: Emergent Ventures India (EVI) | J102: Energy Efficiency Improvement in a Cement Plant at Jaypee Associates (Cement), Madhya Pradesh | K102: 2005-03-07 | L102: C | M102: 2005-07-08 | N102: 123
A103: 9 | B103: 100 | C103: EE industry | D103: Electric motors in Industry replaced with tighter voluntary standards motors | F103: 81 ktCO2 | G103: Mexico | H103: Japan (J-Power) | I103: MGM International | J103: Electric motor replacement program in Mexico | K103: 2005-03-08 | L103: C | M103: 2005-07-08 | N103: 122 | R103: Initial | S103: =SUM(N89:N105)/17 -> 165.6470588
A104: 9 | B104: 101 | C104: EE industry | D104: Energy efficency measures (extra preheater) in cement production | F104: 24 ktCO2 | G104: India | H104: n.a. | I104: Vikram Cement | J104: Vikram Cement (VC): Energy efficiency improvement by upgradation of preheater in cement manufacture. | K104: 2005-02-23 | L104: C | M104: 2005-07-08 | N104: 135 | R104: Rejection | S104: =(N89+N92+Q95+N99+N100+N102+N103+N104)/8 -> 135.875
A105: 9 | B105: 102 | C105: Coal bed/mine methane | D105: Coal-mine CH4 as fuel for a 120 MW power plant | E105: ACM8 | F105: 1974 ktCO2 | G105: China | H105: PCF | I105: PCF | J105: China Jincheng Coal Mine Methane Power Generation Project | K105: 2005-03-05 | L105: B | M105: 2005-11-25 | N105: 265 | O105: Con | P105: 2005-11-25 | Q105: =P105-K105 -> 265 | R105: Approval | S105: =(Q90+N91+Q93+N94+Q96+Q97+N98+N101+Q105)/9 -> 216.8888889
A106: 10 | B106: 103 | C106: Energy distribution | D106: Reconstruction of a district heating network (=NM46) | F106: 36 ktCO2 | G106: Uzbekistan | H106: PCF | I106: PCF | J106: Andijan distric heating project | K106: 2005-04-12 | L106: C | M106: 2005-07-08 | N106: 87
A107: 10 | B107: 104 | C107: Fugitive | D107: Fuel switch from coke to charcoal in steel works (=NM2) | F107: 384 ktCO2 | G107: Brazil | H107: IFC-Netherlands & Japan | I107: EcoSecurities | J107: V&M do Brasil RenewACle Reducing Agent Project | K107: 2005-04-18 | L107: C | M107: 2005-07-08 | N107: 81
A108: 10 | B108: 105 | C108: Transport | D108: Expansion of the bus system in Bogota (=NM52) | E108: AM31 | F108: 295 ktCO2 | G108: Colombia | H108: Netherlands | I108: Grütter consulting, CAF | J108: Bus Rapid Transit System for Bogotá, Colombia: TransMilenio Phase II to IV | K108: 2005-04-19 | L108: B | M108: 2005-11-25 | N108: 220 | O108: A | P108: 2006-07-28 | Q108: =P108-K108 -> 465
A109: 10 | B109: 106 | C109: Cement | D109: Introduction of a vertical grinding mill reducing clinker use and kWh-use (= NM74) | E109: ACM5 | F109: 121 ktCO2 | G109: Israel | H109: UK | I109: EcoSecurities | J109: Optimisation of clinker use in ramla cement plant in Israel through investment in grinding technology | K109: 2005-04-18 | L109: Con | M109: 2005-09-30 | N109: 165
A110: 10 | B110: 107 | C110: EE own generation | D110: Waste gas from carbon black factory used for cogeneration | E110: AM32 | F110: 147 ktCO2 | G110: Egypt | H110: n.a. | I110: Alexandria Carbon Black Co. | J110: Waste gas based cogeneration system for power & steam generation | K110: 2005-04-19 | L110: B | M110: 2005-09-30 | N110: 164 | O110: A | P110: 2006-07-28 | Q110: =P110-K110 -> 465
A111: 10 | B111: 108 | C111: Biofuel | D111: Biodiesel from oil seeds on Jatropa and Pongamia trees & waste oil (=NM69) | F111: 26 ktCO2 | G111: India | H111: n.a. | I111: Zenith Corporate Services | J111: Biodiesel production and switching fossil fuels from petro-diesel to biodiesel in transport sector - 30 TPD Biodiesel CDM Project in Andhra Pradesh, India. Clarifications submitted | K111: 2005-04-19 | L111: B | M111: 2005-09-30 | N111: 164 | O111: C | P111: 2007-03-23 | Q111: =P111-K111 -> 703
A112: 10 | B112: 109 | C112: Biofuel | D112: Methyl-ester biodiesel from sunflower on unused land (=NM129) | F112: 33 ktCO2 | G112: Thailand | H112: Japan | I112: Climate Experts Ltd. | J112: Sunflower Methyl-Ester Biodiesel Project in Thailand | K112: 2005-04-19 | L112: C | M112: 2005-07-08 | N112: 80
A113: 10 | B113: 110 | C113: EE supply side | D113: Reduction of CH4 emissions from charcoal production | E113: AM41 | F113: 62 ktCO2 | G113: Brazil | H113: PCF | I113: PCF | J113: Mitigation of Methane Emissions in the Charcoal Production of Plantar, Brazil | K113: 2005-04-19 | L113: B | M113: 2005-09-30 | N113: 164 | O113: A | P113: 2006-11-01 | Q113: =P113-K113 -> 561
A114: 10 | B114: 111 | C114: N2O | D114: 90% catalytic destruction of N2O from the tail gas streams at a nitric acid plant | E114: AM28 | F114: 1423 ktCO2 | G114: Egypt | H114: Austria | I114: KWI Management & Auditors GmbH | J114: Baseline Methodology for catalytic N2O destruction in the tail gas of Nitric Acid Plants | K114: 2005-04-20 | L114: A (to be reformatted) | M114: 2005-11-25 | N114: 219 | O114: A | P114: 2006-02-24 | Q114: =P114-K114 -> 310
A115: 10 | B115: 112 | C115: EE supply side | D115: Increased output from existing hydropowerplants (4) by installation of Advanced decison support suystem | F115: 203 ktCO2 | G115: Azerbaijan | H115: WB-CF | I115: WB-CF & Quality Tonnes | J115: Increased electricity generation from existing hydropower stations through Decision Support System optimization | K115: 2005-04-19 | L115: B | M115: 2005-09-30 | N115: 164 | O115: C | P115: 2006-05-12 | Q115: =P115-K115 -> 388
A116: 10 | B116: 113 | C116: EE supply side | D116: New natural gas combined cycle turbine at paper factory (see NM140) | F116: 245 ktCO2 | G116: South Africa | H116: n.a. | I116: Mondi Buniness Paper, S.A. | J116: Mondi Gas Turbine Co-generation in Richards Bay, South Africa | K116: 2005-04-19 | L116: C | M116: 2005-09-30 | N116: 164 | R116: Initial | S116: =SUM(N106:N118)/13 -> 150.8461538
A117: 10 | B117: 114 | C117: EE supply side | D117: Increased output from existing hydropower by installation of advanced decison support system | F117: 234 ktCO2 | G117: Azerbadjan | H117: WB-CF | I117: WB-CF & Quality Tonnes | J117: Improved Efficiency of Electrical Power System Generation through advanced SCABA Control Systems and Related Energy Management Protocol | K117: 2005-04-20 | L117: C | M117: 2005-07-08 | N117: 79 | R117: Rejection | S117: =(N106+N107+Q111+N112+Q115+N116+N117)/7 -> 226
A118: 10 | B118: 115 | C118: Biomass energy | D118: Replacing fossil CO2 with CO2 from biomass in production of chemical salts + bagasse based electricity and steam | E118: AM27 | F118: 35 ktCO2 | G118: Brazil | H118: n.a. | I118: Ecoinvest | J118: CO2, electricity and steam from renewable sources in the production of inorganic compounds (Raudi Chemical Salts) | K118: 2005-04-29 | L118: A | M118: 2005-11-25 | N118: 210 | R118: Approval | S118: =(Q108+N109+Q110+Q113+Q114+N118)/6 -> 362.6666667
A119: 11 | B119: 116 | C119: Cement | D119: Decrease ordinary cement content of concrete using water reducing mixturs & increase of the fly-ash content | F119: 100 ktCO2 | G119: India | H119: n.a. | I119: PriceWaterhouseCoopers | J119: Reduction in Ordinary Portland Cement Consumption in Concrete mix preparation utilizing lower cement concrete technology | K119: 2005-05-01 | L119: C | M119: 2005-09-30 | N119: 152
A120: 11 | B120: 117 | C120: N2O | D120: Reducing N2O from Nitric acid production | F120: 662 ktCO2 | G120: China | H120: n.a. | I120: Carbon Ventures | J120: Nanjing Chemical Industries Co Ltd (NCIC) Nitrous Oxide ACatement Project | K120: 2005-06-01 | L120: B | M120: 2005-11-25 | N120: 177 | O120: C | P120: 2006-05-12 | Q120: =P120-K120 -> 345
A121: 11 | B121: 118 | C121: EE industry | D121: Savings in brewery: Steam, vapor, cooling, sterilizer, biogas. | F121: 12 ktCO2 | G121: Vietnam | H121: Japan | I121: Climate Experts Ltd. & NEDO | J121: The model project for renovation to increase the efficient use of energy in brewery | K121: 2005-06-01 | L121: B | M121: 2005-11-25 | N121: 177 | O121: C | P121: 2006-07-28 | Q121: =P121-K121 -> 422
A122: 11 | B122: 119 | C122: EE industry | D122: Savings by process energy integration at polyester raw material plant | F122: 27 ktCO2 | G122: Mexico | H122: Japan | I122: MGM International | J122: Petrotemex Energy Integration Project | K122: 2005-06-01 | L122: C | M122: 2005-09-30 | N122: 121
A123: 11 | B123: 120 | C123: EE service | D123: Energy savings in food retailers, supermarkets, shopping centres. | F123: 66 ktCO2 | G123: Brazil | H123: n.a. | I123: Ecoinvest | J123: Demand side electricity management program at Companhia Brasileira de Distribuição | K123: 2005-06-01 | L123: C | M123: 2005-09-30 | N123: 121
A124: 11 | B124: 121 | C124: Hydro | D124: Hydro power (850 MW) from existing dam (project stopped by war) | F124: 215 ktCO2 | G124: Sierra Leone | H124: WB | I124: QualityTonnes | J124: Bumbuna Hydroelectric Project | K124: 2005-06-01 | L124: B | M124: 2006-09-29 | N124: 485 | O124: C | P124: 2007-06-22 | Q124: =+P124-K124 -> 751
A125: 11 | B125: 122 | C125: EE own generation | D125: Replacemnet of steam turbine with gas turbine at refinery | F125: 107 ktCO2 | G125: Argentina | H125: Japan, UK | I125: MGM International | J125: Shell Cogeneration Project | K125: 2005-06-01 | L125: C | M125: 2005-09-30 | N125: 121
A126: 11 | B126: 123 | C126: Cement | D126: Replacing some limestone with pig-iron slag in cement production | E126: AM33 | F126: 13 ktCO2 | G126: Brazil | H126: France | I126: Lafarge + ICF Consulting | J126: Substitution of raw material in cement processing | K126: 2005-06-01 | L126: B | M126: 2005-11-25 | N126: 177 | O126: A | P126: 2006-07-28 | Q126: =P126-K126 -> 422 | R126: Initial | S126: =SUM(N119:N128)/10 -> 182.3
A127: 11 | B127: 124 | C127: PFCs | D127: Reduction of PFC from aluminium production | E127: AM30 | F127: 122 ktCO2 | G127: Argentina | H127: Japan | I127: MGM International | J127: PFC emission reductions at ALUAR Aluminio Argentino | K127: 2005-06-01 | L127: B | M127: 2005-11-25 | N127: 177 | O127: A | P127: 2006-05-12 | Q127: =P127-K127 -> 345 | R127: Rejection | S127: =(N119+Q120+Q121+N122+N123+Q124+N125+N128)/8 -> 268.5
A128: 11 | B128: 125 | C128: Hydro | D128: Hydro power (=NM20) | F128: 70 ktCO2 | G128: Colombia | H128: Japan (J-Power) | I128: MGM International | J128: La Vuelta and La Herradura hydroelectric project | K128: 2005-06-07 | L128: C | M128: 2005-09-30 | N128: 115 | R128: Approval | S128: =(Q126+Q127)/2 -> 383.5
A129: 12 | B129: 126 | C129: N2O | D129: 90% catalytic destruction of N2O at a nitric acid plant | F129: 357 ktCO2 | G129: India | H129: UK, Germany | I129: Carbon Ventures | J129: National Fertilizers Limited (NFL) Nitrous Oxide ACatement Project | K129: 2005-07-05 | L129: B | M129: 2005-11-25 | N129: 143 | O129: C | P129: 2006-02-24 | Q129: =P129-K129 -> 234
A130: 12 | B130: 127 | C130: Waste | D130: Landfill gas recovery + gasification of municipal solid waste by pyrolysis + biogas digestor | E130: AM25 | F130: 160 ktCO2 | G130: Indonesia | H130: n.a. | I130: Mitsubishi Securities | J130: PT Navigat Organic Energy Indonesia Integrated Solid Waste Management (GALFAD) Project in Bali | K130: 2005-07-07 | L130: B | M130: 2005-11-25 | N130: 141 | O130: Con | P130: 2006-02-24 | Q130: =P130-K130 -> 232
A131: 12 | B131: 128 | C131: Transport | D131: Change from road to sea transport of wood to pulp factory | F131: 6 ktCO2 | G131: Brazil | H131: n.a. | I131: ICF Consultinf & Aracruz | J131: Modal shifting in industry for transport of product/feedstocks | K131: 2005-07-12 | L131: C | M131: 2005-11-25 | N131: 136
A132: 12 | B132: 129 | C132: Biofuel | D132: Methyl-ester biodiesel from sunflower on unused land (=NM109) | F132: 33 ktCO2 | G132: Thailand | H132: Japan | I132: Climate Experts Ltd. | J132: Generalized baseline methodology for transportation Bio-Fuel production project with Life-Cycle-Assessment | K132: 2005-07-13 | L132: B | M132: 2005-11-25 | N132: 135 | O132: C | P132: 2007-03-23 | Q132: =P132-K132 -> 618
A133: 12 | B133: 130 | C133: Hydro | D133: Hydro power with high power density dam (250W/m2) | F133: 339 ktCO2 | G133: Vietnam | H133: Japan | I133: Mitsubishi Securities | J133: The Nho Que Hydropower Project | K133: 2005-07-05 | L133: B | M133: 2006-02-24 | N133: 234 | O133: Withdrawn | P133: 2006-06-13 | Q133: 343 | R133: Initial | S133: =SUM(N129:N135)/7 -> 1900-06-24T06:51:25.714
A134: 12 | B134: 131 | C134: Fuel switch | D134: Switch from petroleum fuels to natural gas at industrial facilities | E134: ACM9 | F134: 25 ktCO2 | G134: Peru | H134: Japan | I134: MGM International | J134: Peruvian Fuel-Switching Project | K134: 2005-07-20 | L134: B | M134: 2006-02-24 | N134: 219 | O134: Con | P134: 2006-02-24 | Q134: 219 | R134: Rejection | S134: =(N131+Q132+N133)/3 -> 329.3333333
A135: 12 | B135: 132 | C135: Fuel switch | D135: Switch from heavy fuel oil to natural gas at cement plant in Sinai | E135: ACM9 | F135: 120 ktCO2 | G135: Egypt | H135: n.a. | I135: Nexant | J135: Industrial fuel switching from petroleum fuels to natural gas without extension of capacity and lifetime of the facility where barriers to switching exist | K135: 2005-07-13 | L135: B | M135: 2006-02-24 | N135: 226 | O135: Con | P135: 2006-02-24 | Q135: 226 | R135: Approval | S135: =(Q130+Q134+Q135)/3 -> 225.6666667
A136: 13 | B136: 133 | C136: Biomass energy | D136: Grid-connected electricity from plantation biomass | E136: AM42 | F136: 1129 ktCO2 | G136: Thailand | H136: Japan | I136: Mitsubishi Securities | J136: Grid-connected power generation project using biomass fuel from newly developed dedicated plantations, in Nakhon Ratchasima Province | K136: 2005-10-05 | L136: B | M136: 2006-02-24 | N136: 142 | O136: A | P136: 2006-11-01 | Q136: 392
A137: 13 | B137: 134 | C137: Biomass energy | D137: Steam generation from biomass residues displacing fossil fuels | F137: 85 ktCO2 | G137: Peru | H137: n.a. | I137: CAEMA | J137: Paramonga CDM Bagasse Boiler Project | K137: 2005-10-03 | L137: B | M137: 2006-02-24 | N137: 144 | O137: C | P137: 2006-09-29 | Q137: 361
A138: 13 | B138: 135 | C138: SF6 | D138: SF6 reductions in High-Voltage Transmission/Distribution | E138: AM35 | F138: 129 ktCO2 | G138: Nigeria | H138: Italy (Carbon Fund) | I138: Quality Tonnes | J138: Reducing SF6 Emissions in High-Voltage Transmission/Distribution Systems | K138: 2005-10-03 | L138: A | M138: 2006-09-29 | N138: 361
A139: 13 | B139: 136 | C139: Energy distribution | D139: Reduction of electricity transmission & distribution losses | F139: 247 ktCO2 | G139: Nigeria | H139: Italy (Carbon Fund) | I139: Quality Tonnes | J139: Reduction of Transmission and Distribution Losses | K139: 2005-10-03 | L139: B | M139: 2006-02-24 | N139: 144 | O139: C | P139: 2006-05-12 | Q139: =P139-K139 -> 221
A140: 13 | B140: 137 | C140: EE industry | D140: Energy Efficiency Improvement in Cement Plants | F140: 108 ktCO2 | G140: India | H140: n.a. | I140: Ashutosh Pandey | J140: Energy Efficiency Improvement in Cement Plants | K140: 2005-10-25 | L140: C | M140: 2006-02-24 | N140: =M140-K140 -> 122
A141: 13 | B141: 138 | C141: Fuel switch | D141: Switch from oil to natural gas cogeneration (more general than AM14, all owners and sales to grid)) | F141: 628 ktCO2 | G141: Israel | H141: n.a. | I141: EcoTraders | J141: American Israel Paper Mill (AIPM) Natural Gas Cogeneration | K141: 2005-10-05 | L141: B | M141: 2006-02-24 | N141: 142 | O141: C | P141: 2006-09-29 | Q141: =P141-K141 -> 359
A142: 13 | B142: 139 | C142: Fugitive | D142: Methane Leak Reduction From Natural Gas Pipeline (based on mass balance of the system) | F142: 1460 ktCO2 | G142: Georgia | H142: WB | I142: Quality Tonnes | J142: Methane Leak Reduction From Natural Gas Pipeline | K142: 2005-10-27 | L142: C | M142: 2006-02-24 | N142: 120
A143: 13 | B143: 140 | C143: Biomass energy | D143: Replacing coal with biomass waste, presently landfilled or left to decay, for steam generation (see NM113) | E143: AM36 | F143: 120 ktCO2 | G143: South Africa | H143: n.a. | I143: SouthSouthNorth | J143: Mondi Richards Bay Biomass Project | K143: 2005-10-05 | L143: B | M143: 2006-02-24 | N143: 142 | O143: A | P143: 2006-09-29 | Q143: =P143-K143 -> 359
A144: 13 | B144: 141 | C144: EE supply side | D144: Switching grid/off-grid self-generation to natural gas | E144: AM48 | F144: 181 ktCO2 | G144: Nigeria | H144: Italy (Carbon Fund) | I144: Quality Tonnes | J144: Displacing grid/off-grid steam and electricity generation with less carbon intensive fuels | K144: 2005-10-05 | L144: B | M144: 2006-02-24 | N144: 142 | O144: A | P144: 2007-05-04 | Q144: =P144-K144 -> 576 | R144: Initial | S144: =SUM(N136:N146)/11 -> 155.9090909
A145: 13 | B145: 142 | C145: Biofuel | D145: 10% Palm oil methyl ester added to diesel | F145: 218 ktCO2 | G145: Thailand | H145: Japan | I145: Japan Transport Cooperation Association | J145: Palm Methyl Ester - Biodiesel Fuel (PME-BDF) production and use for transportation | K145: 2005-10-05 | L145: B | M145: 2006-02-24 | N145: 142 | O145: C | P145: 2007-05-04 | Q145: =P145-K145 -> 576 | R145: Rejection | S145: =(Q137+Q139+N140+Q141+N142+Q145)/6 -> 293.1666667
A146: 13 | B146: 143 | C146: N2O | D146: Catalytic reduction of N2O inside the ammonia burner of the nitric acid plant | E146: AM34 | F146: 76 ktCO2 | G146: Israel | H146: UK, Germany | I146: N.serve Environmental Services | J146: Catalytic reduction of N2O inside the ammonia burner of the nitric acid plant at Fertilizers & Chemicals Ltd. | K146: 2005-11-02 | L146: B | M146: 2006-02-24 | N146: 114 | O146: A | P146: 2006-07-28 | Q146: =P146-M146 -> 154 | R146: Approval | S146: =(Q136+N138+Q146+Q143+Q144)/5 -> 368.4
A147: 14 | B147: 144 | C147: EE industry | D147: Energy efficiency improvement projects: boiler rehabilitation or replacement in industrial and district heating sectors | E147: AM44 | F147: 23 ktCO2 | G147: Mongolia | H147: Japan | I147: Mitsubishi Securities | J147: Energy efficiency improvements carried out by an Energy Service Company (ESCO) in Ulaanbaatar, Mongolia to replace old boilers with new ones | K147: 2006-01-11 | L147: B | M147: 2006-09-29 | N147: 261 | O147: A | P147: 2006-12-15 | Q147: =+P147-K147 -> 338
A148: 14 | B148: 145 | C148: Fugitive | D148: Natural gas used for methanol production in stead of being flared | E148: AM37 | F148: 2356 ktCO2 | G148: Equatorial Guinea | H148: n.a. | I148: QualityTonnes | J148: Reduction of Flaring and Use of Recovered Gas for Methanol Production | K148: 2006-12-31 | L148: A | M148: 2006-09-29 | N148: -93
A149: 14 | B149: 146 | C149: EE industry | D149: EE in electric arc furnaces (10-20% red.) in SiMn alloy production | E149: AM38 | F149: 52ktCO2 | G149: South Africa | H149: United K. | I149: Transalloys | J149: Transalloys Manganese Alloy Smelter Energy Efficiency Project in South Africa | K149: 2006-12-31 | L149: A | M149: 2006-09-29 | N149: -93
A150: 14 | B150: 147 | C150: Waste | D150: Composting of empty fruit bunches & liquid palm oil waste | E150: AM39 | F150: 165 ktCO2 | G150: Malaysia | H150: Denmark | I150: Danish Energy Management | J150: Methane abatement through composting | K150: 2006-01-05 | L150: A | M150: 2006-09-29 | N150: 267
A151: 14 | B151: 148 | C151: Fuel switch | D151: Switching from oil/coal to natural gas in power generation/industy | F151: 277 ktCO2 | G151: India | H151: n.a. | I151: Kondapally Power C.L. | J151: Fuel switch project for generation of cleaner power | K151: 2006-01-05 | L151: C | M151: 2006-05-12 | N151: 127
A152: 14 | B152: 149 | C152: Fuel switch | D152: Switch from coal to natural gas as feedstock in the production of synthesis gas (CO + H2) for chemicals and synthetic liquid fuels | F152: 6100 ktCO2 | G152: South Africa | H152: n.a. | I152: Sasol & KPMG | J152: Coal to natural gas feedstock conversion for the large-scale manufacture of Pure gas at Sasol facilities, South Africa | K152: 2006-01-11 | L152: B | M152: 2006-07-21 | N152: 191 | O152: Withdrawn | P152: 2007-02-16 | Q152: =P152-K152 -> 401
A153: 14 | B153: 150 | C153: EE households | D153: Large scale replacement of incandescent lamps by compact fluorescent lamps | E153: AM46 | F153: 122 ktCO2 | G153: Ghana | H153: Germany | I153: Axel Michelowa | J153: Ghana efficient lighting retrofit project. NM150-rev submitted. | K153: 2006-01-11 | L153: B | M153: 2006-07-21 | N153: 191 | O153: A | P153: 2007-02-16 | Q153: =P153-K153 -> 401
A154: 14 | B154: 151 | C154: Energy distribution | D154: Reduction of CH4 emissions in gas network by replacing cast iron pipes by polyethylene pipes | E154: AM43 | F154: 39 ktCO2 | G154: Brazil | H154: n.a. | I154: EcoSecurities | J154: CEG Gas Distribution Pipeline Replacement Project in Rio de Janeiro | K154: 2006-01-10 | L154: A | M154: 2006-11-01 | N154: =+M154-K154 -> 295
A155: 14 | B155: 152 | C155: EE supply side | D155: Isolated diesel powered grids to be connected to main grid with a lower GHG emission factor | E155: AM45 | F155: 107 ktCO2 | G155: Brazil | H155: n.a. | I155: Ecoinvest Carbon | J155: Celpa, Celtins and Cemat grid connection of isolated systems CDM Project | K155: 2006-01-11 | L155: B | M155: 2006-07-21 | N155: =M155-K155 -> 191 | O155: A | P155: 2006-12-15 | Q155: =+P155-K155 -> 338
A156: 14 | B156: 153 | C156: EE supply side | D156: New combined cycle power plant using natural gas | E156: AM29 | F156: 174 ktCO2 | G156: India | H156: n.a. | I156: Reliance Energy Ltd | J156: Grid connected electricity generation plant of 220 MW capacity using Natural Gas (NG) as fuel and based on combined cycle technology of Reliance Energy Limited –Samalkot, Andhra Pradesh | K156: 2006-01-11 | L156: A | M156: 2006-05-12 | N156: =M156-K156 -> 121
A157: 14 | B157: 154 | C157: EE industry | D157: Energy efficiency improvement of preheater in cement manufacturing | F157: 25 ktCO2 | G157: India | H157: n.a. | I157: Vikram Cement & Grasim Industries | J157: Vikram Cement (VC): Energy efficiency improvement by up-gradation of preheater in cement manufacturing | K157: 2006-01-16 | L157: C | M157: 2006-07-28 | N157: =+M157-K157 -> 193
A158: 14 | B158: 155 | C158: EE own generation | D158: Flared gas utilisation for steam and power generation | F158: 71 ktCO2 | G158: India | H158: n.a. | I158: Reliance Energy Ltd | J158: Waste gas utilisation for steam and power generation at RIL Jamnagar refinery | K158: 2006-01-11 | L158: B | M158: 2006-09-29 | N158: =M158-K158 -> 261 | O158: C | P158: 2007-02-16 | Q158: =P158-K158 -> 401
A159: 14 | B159: 156 | C159: Biogas | D159: Biogas from Municipal waste | F159: 225 ktCO2 | G159: China | H159: Germany | I159: Steinbeis Technology Transfer Centre | J159: Shanghai Putuo District Municipal Solid Waste Transfer and Comprehensive Treatment Plant | K159: 2006-01-05 | L159: C | M159: 2006-07-28 | N159: =+M159-K159 -> 204
A160: 14 | B160: 157 | C160: EE households | D160: Enhancement of penetration of CFL lamps | F160: 85 ktCO2 | G160: China | H160: Japan | I160: Climate Experts Ltd. | J160: Open-DSM type CDM for Green Lighting in Shijiazhuang city | K160: 2006-01-11 | L160: B | M160: 2006-07-21 | N160: =M160-K160 -> 191 | O160: C | P160: 2007-02-16 | Q160: =P160-K160 -> 401
A161: 14 | B161: 158 | C161: Transport | D161: Creation of a pilot corridor with exclusive bus lanes | F161: 26 ktCO2 | G161: Mexico | H161: Spain | I161: METROBUS | J161: Mexico City Insurgentes Avenue Bus Rapid Transit Pilot Project | K161: 2006-01-06 | L161: C | M161: 2006-11-01 | N161: =M161-K161 -> 299
A162: 14 | B162: 159 | C162: EE households | D162: Activities to Increase Market Penetration of Energy Efficient Appliances (See NM72) | F162: 435 ktCO2 | G162: Ghana | H162: n.a. | I162: QualityTonnes | J162: Implementation of an Efficiency Testing, Consumer Labelling and Quality-Assurance Program for Air Conditioners in Ghana | K162: 2006-01-11 | L162: B | M162: 2006-09-29 | N162: =M162-K162 -> 261 | O162: C | P162: 2007-02-16 | Q162: =P162-K162 -> 401
A163: 14 | B163: 160 | C163: Fuel switch | D163: Natural gas powered cogeneration replacing asphalt, fuel oil, and refinery gas use | F163: 107 ktCO2 | G163: Argentina | H163: Japan United K. | I163: MGM International | J163: Shell Cogeneration Project | K163: 2006-01-11 | L163: B | M163: 2006-09-29 | N163: =M163-K163 -> 261 | O163: C | P163: 2007-06-22 | Q163: =P163-K163 -> 527
A164: 14 | B164: 161 | C164: EE supply side | D164: Natural gas powered cogeneration in an industrial facility | E164: AM49 | F164: 245 ktCO2 | G164: South Africa | H164: n.a. | I164: Mondi Buniness Paper, S.A. | J164: Mondi Gas Turbine Co-generation in Richards Bay | K164: 2006-01-11 | L164: B | M164: 2006-12-15 | N164: =M164-K164 -> 338 | O164: A | P164: 2007-05-04 | Q164: =P164-K164 -> 478
A165: 14 | B165: 162 | C165: PFCs | D165: Reduction in PFC emissions from primary Aluminium smelters (=NM124) | F165: 912 ktCO2 | G165: India | H165: n.a. | I165: PriceWaterhouseCoopers | J165: Reduction in GHGs emission from primary aluminium smelter at Hindalco, Hirakud | K165: 2006-01-10 | L165: C | M165: 2006-09-29 | N165: =+M165-K165 -> 262
A166: 14 | B166: 163 | C166: Cement | D166: Use of calcined ashes and fluorite for clinker production | E166: AM40 | F166: 58 ktCO2 | G166: Mexico | H166: n.a. | I166: MGM International | J166: Use of calcined ashes and fluorite for clinker production in the Cement Plant of Huichapan | K166: 2006-01-10 | L166: A | M166: 2006-09-29 | N166: =M166-K166 -> 262
A167: 14 | B167: 164 | C167: N2O | D167: Secondary catalytic N2O abatement at existing nitric acid plant. | E167: AM34 | F167: 937 ktCO2 | G167: South Africa | H167: n.a. | I167: MGM International | J167: Sasol Nitrous Oxide Abatement Project | K167: 2006-01-10 | L167: A | M167: 2006-07-28 | N167: =M167-K167 -> 199
A168: 14 | B168: 165 | C168: Fuel switch | D168: Switch from Naphtha to Natural Gas at urea fertilizer plant | E168: AM50 | F168: 226 ktCO2 | G168: India | H168: n.a. | I168: IFFCO | J168: Feed switchover from Naphtha to Natural Gas at Phulpur plant of IFFCO | K168: 2006-01-11 | L168: B | M168: 2006-09-29 | N168: =M168-K168 -> 261 | O168: A | P168: 2007-05-04 | Q168: =P168-K168 -> 478
A169: 14 | B169: 166 | C169: Biogas | D169: Biogas from defined organic residues for thermal applications | F169: 28 ktCO2 | G169: India | H169: n.a. | I169: Factor Consulting | J169: JISL biomethanation of biodegradable waste for thermal applications | K169: 2006-01-11 | L169: Withdrawn | M169: 2006-09-29 | N169: =M169-K169 -> 261 | R169: Initial | S169: =SUM(N147:N169)/23 -> 204.826087
A170: 14 | B170: 167 | C170: CO2 capture | D170: Recovery of anthropogenic CO2 from large industrial GHG emission sources and its storage in an oil reservoir | F170: 3300 ktCO2 | G170: Vietnam | H170: Japan | I170: Mitsubishi Securities | J170: The White Tiger Oil Field Carbon Capture and Storage (CCS) project in Vietnam | R170: Rejection | S170: =(N151+Q152+N157+Q158+N159+Q160+N161+Q162+Q163+N165+N169)/11 -> 316.0909091
A171: 14 | B171: 168 | C171: CO2 capture | D171: The capture of CO2 from natural gas processing plants and liquefied natural gas (LNG) plants and its storage in underground aquifers or abandoned oil/gas reservoirs | F171: 3080 ktCO2 | G171: Malaysia | H171: Japan | I171: Mitsubishi Research Institute | J171: The capture of the CO2 from the Liquefied Natural Gas (LNG) complex and its geological storage in the aquifer located in Malaysia | R171: Approval | S171: =(Q147+N148+N149+N150+Q153+N154+Q155+N156+Q164+N166+N167+Q168)/12 -> 249.25
A172: 15 | B172: 169 | C172: EE industry | D172: Baseline methodology for reducing GHG emission by efficient utilization of energy in the form of fuel, power and steam. | F172: 70 ktCO2 | G172: India | H172: n.a. | I172: Reliance Industries Limited | J172: Reducing GHG emission in PTA-3 of RIL-Hazira by efficient utilization of energy in the form of fuel, power and steam | K172: 2006-02-23 | L172: C | M172: 2006-09-29 | N172: =+M172-K172 -> 218
A173: 15 | B173: 170 | C173: CO2 recycling | D173: Recovering CO2 from flue gases as a ressource for urea production | F173: 151 ktCO2 | G173: India | H173: n.a. | I173: Indian Farmers Cooperative (IFFCO) | J173: Installation of Carbon Dioxide Recovery (CDR) plant at Indian Farmers Fertiliser Cooperative Ltd (IFFCO), Phulpur Plant | K173: 2006-05-09 | L173: B | M173: 2006-12-15 | N173: =+M173-K173 -> 220 | O173: C | P173: 2007-05-04 | Q173: =P173-K173 -> 360
A174: 15 | B174: 171 | C174: EE supply side | D174: Energy Efficiency improvement through oil/water emulsion technology incorporated into an oil-fired thermal and/or electricity power production facility | E174: AM54 | F174: 151 ktCO2 | G174: Pakistan | H174: Japan | I174: Mitsubishi Securities | J174: Use of Hydro Heavy Fuel Oil Technology (HHFOT) to improve energy efficiency at a power plant in Pakistan | K174: 2006-04-29 | L174: A | M174: 2007-06-22 | N174: =+M174-K174 -> 419
A175: 15 | B175: 172 | C175: Energy distribution | D175: Methane Leak Reduction From Natural Gas Pipelines using mass balance (=NM139) | F175: 3172 ktCO2 | G175: Georgia | H175: WB | I175: Quality Tonnes | J175: Methane Leak Reduction From Natural Gas Pipelines | K175: 2006-05-09 | L175: B | M175: 2006-12-15 | N175: 220 | O175: C | P175: 2007-06-22 | Q175: =P175-K175 -> 409
A176: 15 | B176: 173 | C176: EE supply | D176: Fuel switching from more GHG intensive to lesser GHG intensive fuel in a power generation project activity without extension of its capacity or lifetime. | F176: 360 ktCO2 | G176: India | H176: n.a. | I176: PriceWaterhouseCoopers | J176: Switching of fuel from naphtha to natural gas at Essar Power Limited’s 515 MW power plant in Hazira, Gujarat, India, for generation and supply of electricity to Gujarat Electricity Board Grid and to Essar Steel Ltd. | K176: 2006-05-08 | L176: C | M176: 2006-09-29 | N176: 144
A177: 15 | B177: 174 | C177: Waste | D177: MSW incineration for grid-connected electricity generation | E177: AM25 | F177: 126 ktCO2 | G177: China | H177: n.a. | I177: Energy Systems International + Tsinghua University | J177: MSW Incineration Project in Guanzhuang, Tianjin City, China | K177: 2006-05-09 | L177: B | M177: 2006-12-15 | N177: 220 | O177: Con | P177: 2007-05-04 | Q177: =P177-K177 -> 360
A178: 15 | B178: 175 | C178: N2O | D178: N2O emissions reduction by use of Natural Nitrification Inhibitor with Urea. | F178: 554 ktCO2 | G178: India | H178: n.a. | I178: Godrej Agrovet Ltd | J178: Green House Gas (GHG) emissions reduction by use of ‘Nimin- a natural nitrification inhibitor ’ with Urea in agriculture soils | K178: 2006-05-08 | L178: C | M178: 2006-09-29 | N178: 144
A179: 15 | B179: 176 | C179: N2O | D179: Baseline methodology for secondary catalytic N2O destruction in nitric acid plants. | E179: AM51 | F179: 205 ktCO2 | G179: Mexico | H179: United K. | I179: Sindicatum Carbon Capital Ltd., | J179: Soluciones Nitrous Oxide Abatement Project | K179: 2006-05-09 | L179: B | M179: 2006-12-15 | N179: 220 | O179: A | P179: 2007-05-04 | Q179: =P179-K179 -> 360
A180: 15 | B180: 177 | C180: EE own generation | D180: Utilization of Coke Oven Gas for Cogeneration | F180: 283 ktCO2 | G180: China | H180: n.a. | I180: Quality Tonnes | J180: Utilization of Coke Oven Gas for Cogeneration | K180: 2006-05-09 | L180: C | M180: 2006-09-29 | N180: 143
A181: 15 | B181: 178 | C181: Waste | D181: Aerobic thermal treatment of MSW without incineration to generate a stabilized biomass | E181: AM25 | F181: 41 ktCO2 | G181: Brazil | H181: Japan | I181: ICF Consulting | J181: Aerobic thermal treatment of municipal solid waste (MSW) without incineration in Parobé | K181: 2006-05-09 | L181: A | M181: 2007-02-16 | N181: =M181-K181 -> 283
A182: 15 | B182: 179 | C182: EE own generation | D182: Waste Gas and/or Waste Heat Utilization for ‘Process Steam’ generation or ‘Process Steam and Power’ generation in an industrial facility | E182: ACM12 | F182: 465 ktCO2 | G182: India | H182: n.a. | I182: TATA Steel | J182: Waste Heat Recovery based Steam and Power Generation | K182: 2006-05-09 | L182: Con | M182: 2007-06-22 | N182: =M182-K182 -> 409
A183: 15 | B183: 180 | C183: Biofuel | D183: Production of waste cooking oil based biodiesel for use as fuel | E183: AM47 | F183: 123 ktCO2 | G183: China | H183: n.a. | I183: Clemens Plöchl CarbonConsulting | J183: BIOLUX Benji Biodiesel Beijing Project | K183: 2006-05-11 | L183: A | M183: 2007-02-16 | N183: =M183-K183 -> 281
A184: 15 | B184: 181 | C184: Energy distribution | D184: Introduction of a new primary district heating system (=NM96) | E184: AM58 | F184: 65 ktCO2 | G184: China | H184: Denmark | I184: COWI | J184: Introduction of a new primary district heating system - Houma District Heating project, Shanxi Province, P.R.C | K184: 2006-05-09 | L184: B | M184: 2006-12-15 | N184: =+M184-K184 -> 220 | O184: A | P184: 2007-10-19 | Q184: =P184-K184 -> 528 | R184: Initial | S184: =SUM(N172:N186)/15 -> 228.0666667
A185: 15 | B185: 182 | C185: EE supply side | D185: Increased output from power system by installation of advanced decison support system (=NM114) | F185: 234 ktCO2 | G185: Azerbadjan | H185: WB-CF | I185: WB-CF & Quality Tonnes | J185: Improved Efficiency in Power System Generation through Advanced SCADA Control Systems and Related Energy Management Protocol in Azerbaijan | K185: 2006-05-12 | L185: C | M185: 2006-09-29 | N185: =+M185-K185 -> 140 | R185: Rejection | S185: =(N172+Q173+Q175+N176+N178+N180+N185+N186)/8 -> 212.25
A186: 15 | B186: 183 | C186: EE industry | D186: GHG avoidance project through environment friendly technology in refinery/petrochemical process | F186: 3573 ktCO2 | G186: India | H186: n.a. | I186: Essar Oil Ltd. | J186: Essar Oil Limited (EOL) – Avoidance of Green House Gas emissions by application of residuum oil supercritical extraction (ROSE) technology as solvent de-asphalting process in petroleum refinery | K186: 2006-05-12 | L186: C | M186: 2006-09-29 | N186: =+M186-K186 -> 140 | R186: Approval | S186: =+(N174+Q177+Q179+N181+N182+N183+Q184)/7 -> 377.1428571
A187: 16 | B187: 184 | C187: EE supply side | D187: Improved heat rates and capacity enhancement of power plant through retrofit of equipment(s) such as retrofit of existing Gas Turbine for Inlet Air Cooling. | F187: 39 ktCO2 | G187: India | H187: n.a. | I187: Reliance Industries Limited, | J187: Improved heat rates and capacity enhancement of Gas Turbines at RIL Patalganga, through retrofit for Inlet Air Cooling. | K187: 2006-05-19 | L187: C | M187: 2006-11-01 | N187: =M187-K187 -> 166
A188: 16 | B188: 185 | C188: Biofuel | D188: Baseline methodology for the production of sugar cane based anhydrous bio-ethanol for transportation using LCA.(=NM82) | F188: 40 ktCO2 | G188: Thailand | H188: United K. | I188: Agrinergy Ltd | J188: Khon Kaen fuel ethanol project | K188: 2006-07-14 | L188: Withdrawn | M188: 2006-12-15 | N188: =+M188-K188 -> 154
A189: 16 | B189: 186 | C189: EE supply side | D189: Increased electricity generation from existing hydropower stations through Decision Support System optimization (=NM112) | E189: AM52 | F189: 203 ktCO2 | G189: Azerbaijan | H189: WB-CF | I189: WB-CF & Quality Tonnes | J189: Increased electricity generation from existing hydropower stations through Decision Support System optimization in Azerbaijan | K189: 2006-07-06 | L189: A | M189: 2007-05-04 | N189: =+M189-K189 -> 302
A190: 16 | B190: 187 | C190: Biomass energy | D190: Energy Generation from Biomass Residue for the User. | F190: 91 ktCO2 | G190: Indonesia | H190: Japan | I190: Mitsubishi UFJ Securities | J190: Permata Hijau Group Cogeneration Biomass Project | K190: 2006-07-04 | L190: Withdrawn | M190: 2006-11-01 | N190: =+M190-K190 -> 120
A191: 16 | B191: 188 | C191: Biomass energy | D191: Electricity generation using biomass residue that cannot be disposed of by open air burning | F191: 73 ktCO2 | G191: India | H191: Japan | I191: Mitsubishi UFJ Securities | J191: East Coast Power Plant (S) Sdn. Bhd. 13MW biomass power generation project | K191: 2006-07-05 | L191: Withdrawn | M191: 2006-12-15 | N191: =+M191-K191 -> 163
A192: 16 | B192: 189 | C192: Waste | D192: Avoided Landfill Emissions from Wastewater treatment Sludge through Sludge Digestion and/or Reuse | F192: 162 ktCO2 | G192: China | H192: WB-CF | I192: WB-CF | J192: Shanghai Bailonggang Sludge Treatment Project | K192: 2006-07-05 | L192: Withdrawn | M192: 2006-12-15 | N192: =+M192-K192 -> 163
A193: 16 | B193: 190 | C193: EE supply side | D193: Baseline Methodology for heavy fuel-oil trigeneration (El, heat, cold) | F193: 26 ktCO2 | G193: Honduras | H193: Spain | I193: INGEMAS, S.A. | J193: Caracol Knits Trigeneration Project | K193: 2006-06-23 | L193: C | M193: 2006-11-01 | N193: =M193-K193 -> 131 | R193: Initial | S193: =(N185+N187+N188+N189+N190+191+N192+N193+N194+N195)/10 -> 176.2
A194: 16 | B194: 191 | C194: Biomass energy | D194: Baseline methodology for methane avoidance due to biomass residue combustion under controlled conditions | F194: 64 ktCO2 | G194: Brazil | H194: United K. | I194: EcoSecurities | J194: Vitale SA Biomass Co-Generation Project | K194: 2006-06-29 | L194: Withdrawn | M194: 2006-12-15 | N194: =+M194-K194 -> 169 | R194: Rejection | S194: =(N187+N188+N190+N191+N192+N193+N194)/7 -> 152.2857143
A195: 16 | B195: 192 | C195: EE own generation | D195: Baseline and Monitoring Methodology for the recovery and utilization of waste gas in refinery facilities | E195: AM55 | F195: 199 ktCO2 | G195: Argentina | H195: Spain | I195: EcoSecurities | J195: Recovery and utilization of flare waste gases at the Industrial Complex of La Plata Project | K195: 2006-07-05 | L195: B | M195: 2007-02-16 | N195: =M195-K195 -> 226 | O195: A | P195: 2007-07-27 | Q195: =P195-K195 -> 387 | R195: Approval | S195: =(N189+Q195)/2 -> 344.5
A196: 17 | B196: 193 | C196: SF6 | D196: "SF6 Switch": Replacement of SF6 with HFC134a as a cover gas in the magnesium industry | F196: 312 ktCO2 | G196: Israel | H196: n.a. | I196: EcoTraders | J196: SF6 Switch at Dead Sea Magnesium | K196: 2006-10-03 | L196: C | M196: 2007-02-16 | N196: 136
A197: 17 | B197: 194 | C197: Biomass non-energy | D197: GHG emission reduction by manufacturing natural Alpha Olefin Sulphonate (AOS) surfactant derived from palm oil residual byproduct | F197: 94 ktCO2 | G197: India | H197: n.a. | I197: Godrej Industries Ltd. | J197: Green House Gas (GHG) emission reduction by Manufacturing of natural surfactant Alpha Olefin Sulphonate (AOS) | K197: 2006-10-03 | L197: B | M197: 2007-05-04 | N197: 213 | O197: C | P197: 2007-07-27 | Q197: =P197-K197 -> 297
A198: 17 | B198: 195 | C198: EE industry | D198: Efficiency improvement in electricity generation by Steam Turbine Replacement in a production facility where process steam is required for production | F198: 48 ktCO2 | G198: India | H198: n.a. | I198: EcoSecurities | J198: Rama Newsprint and Papers Limited energy efficiency project | K198: 2006-10-05 | L198: C | M198: 2007-05-04 | N198: 211
A199: 17 | B199: 196 | C199: Hydro | D199: Grid-connected hydroelectric power generation projects in low-density vegetation areas where average water temperature is low | F199: 213 ktCO2 | G199: Mongolia | H199: Japan | I199: Mitsubishi UFJ Securities | J199: The 220 MW Egiin Gol Hydroelectric power generation project | K199: 2006-10-04 | L199: C | M199: 2007-02-16 | N199: 135
A200: 17 | B200: 197 | C200: EE Industry | D200: Power saving through accelerated replacement of large-scale cooling equipment used in large commercial and industrial buildings and facilities | E200: AM60 | F200: 335 ktCO2 | G200: India | H200: Spain | I200: WB, Decan Corporation | J200: India – Accelerated Chiller Replacement Program | K200: 2006-10-05 | L200: B | M200: 2007-05-04 | N200: 211 | O200: A | P200: 2007-11-30 | Q200: =P200-K200 -> 421
... 308 more rows

Sheet SB
A1: =+Methods!A2 -> The Pipeline was produced by Aiymgul Kerimray, UNEP Copenhagen Climate Centre, 1 April 2023, Aiymgul.kerimray@un.org, Phone (+45)45335287
A3: Standardised Baselines (SB)
A4: An ASB is valid in 3 years
A6: Proposed Meth. No. | B6: Approved Meth. No. | C6: Type | D6: Title | E6: Host country | F6: Developer of SB | G6: Submission date | H6: Entry into force | I6: Days to approval | J6: Expiry date
A7: PSB1 | B7: ASB2 | C7: Charcoal production | D7: Fuel switch, technology switch and methane destruction in the charcoal sector of Uganda | E7: Uganda | F7: Perspectives | G7: 2012-05-16 | H7: 2013-05-31 | I7: =H7-G7 -> 380 | J7: 2017-05-30
A8: PSB2 | C8: Cement | D8: Standardized baselines for clinker production in Ethiopia | E8: Ethiopia | F8: Ethan Bio-Fuels | G8: 2012-07-24 | H8: Withdrawn
A9: PSB3 | B9: ASB1 | C9: Power Sector | D9: Grid emission factor for the Southern African power pool | E9: SADC | F9: UNEP Risoe,Secretariat of the Southern African Power Pool, GFA ENVEST | G9: 2012-08-21 | H9: 2013-05-31 | I9: =H9-G9 -> 283 | J9: 2016-10-06
A10: PSB4 | B10: ASB4 | C10: EE rice mills | D10: Technology switch in the rice mill sector of Cambodia | E10: Cambodia | F10: IGES | G10: 2012-09-27 | H10: 2013-11-08 | I10: 407 | J10: 2016-11-07
A11: PSB5 | B11: ASB3 | C11: Power Sector | D11: Grid emission factor for the Republic of Uzbekistan | E11: Uzbekistan | F11: UNDP and Mitsubishi UFJ Morgan Stanley Securities | G11: 2013-01-31 | H11: 2013-10-07 | I11: 249 | J11: 2018-09-15
A12: PSB6 | B12: ASB5 | C12: Power Sector | D12: Grid emission factor for Belize | E12: Belize | F12: UNEP Risoe | G12: 2013-05-25 | H12: 2014-09-16 | I12: 479 | J12: 2017-10-20
A13: PSB7 | B13: ASB21 | C13: Power Sector | D13: Grid emission factor for Cape Verde | E13: Cape Verde | F13: ECREE and UNFCCC RCC in Togo | G13: 2013-11-28 | H13: 2016-03-11 | I13: 834 | J13: 2018-01-07
A14: PSB8 | B14: ASB19 | C14: Power Sector | D14: Grid emission factor for Mauritius | E14: Mauritius | F14: DNA Mauritius | G14: 2013-11-13 | H14: 2016-01-07 | I14: 785 | J14: 2018-02-19
A15: PSB9 | B15: ASB20 | C15: Power Sector | D15: Grid emission factor for Sao Tome and Principe | E15: Sao Tome and Principe | F15: UNEP Risoe | G15: 2013-11-29 | H15: 2016-03-10 | I15: 832 | J15: 2018-04-26
A16: PSB10 | B16: ASB15 | C16: Power Sector | D16: Grid emission factor for the Dominican Republic | E16: Dominican Republic | F16: National Council for Climate Change and CDM (CNCCMDL) | G16: 2014-02-20 | H16: 2015-07-24 | I16: =H16-G16 -> 519 | J16: 2018-05-27
A17: PSB11 | B17: ASB7 | C17: Power Sector | D17: Grid emission factor for Armenia | E17: Armenia | F17: Ministry of Nature Protection of the Republic of Armenia | G17: 2014-03-10 | H17: 2015-01-08 | I17: 304 | J17: =1/4/21 -> 00:17:08.571
A18: PSB12 | B18: ASB6 | C18: Power Sector | D18: Grid emission factor for Uganda | E18: Uganda | F18: DNA of Uganda | G18: 2014-03-03 | H18: 2014-10-21 | I18: 232 | J18: 2018-05-27
A19: PSB13 | C19: Methane avoidance | D19: Standardized baseline for landfill gas destruction | E19: Madagascar | F19: DNA of Madagascar | G19: 2013-10-21 | H19: Withdrawn
A20: PSB14 | B20: ASB10 | C20: Methane avoidance | D20: Standardized baseline for landfill gas destruction | E20: Sao Tome and Principe | F20: DNA of Sao Tome and Principe | G20: 2013-11-29 | H20: 2015-05-28 | I20: 545 | J20: 2018-05-27
A21: PSB15 | B21: ASB11 | C21: Methane avoidance | D21: Methane destruction in landfill sites | E21: Dominican Republic | F21: DNA of Dominican republic | G21: 2014-02-19 | H21: 2015-05-28 | I21: 463 | J21: 2018-07-23
A22: PSB16 | B22: ASB12 | C22: Methane avoidance | D22: Methane destruction in landfill | E22: Antigua and Barbuda | F22: DNA of Antigua and Barbuda | G22: 2014-02-20 | H22: 2015-05-28 | I22: 462 | J22: 2018-10-15
A23: PSB17 | B23: ASB13 | C23: Methane avoidance | D23: Methane destruction in landfill | E23: Belice | F23: DNA of Belice | G23: 2014-02-28 | H23: 2015-05-28 | I23: 454 | J23: 2018-10-25
A24: PSB18 | B24: ASB17 | C24: Power Sector | D24: Grid emission factor for Rwanda | E24: Rwanda | F24: DNA of Rwanda | G24: 2014-05-26 | H24: 2015-10-26 | I24: 518 | J24: 2018-11-26
A25: PSB19 | B25: ASB8 | C25: Methane avoidance | D25: Methane Emissions from Rice Cultivation | E25: Philippines | F25: DNA of the Philippines | G25: 2014-05-29 | H25: 2015-02-20 | I25: =H25-G25 -> 267 | J25: 2019-01-06
A26: PSB20 | C26: Rural electricfication | D26: Electrification of Rural Communities in Ethiopia Using Renewable Energy | E26: Ethiopia | F26: GFA Consulting Group, Echnoserve | G26: 2014-06-24 | H26: Withdrawn
A27: PSB21 | C27: Power Sector | D27: Grid emission factor for St. Vincent and the Grenadines | E27: St. Vincent and the Grenadines | F27: UNFCCC RCC | G27: 2014-10-06
A28: PSB22 | B28: ASB14 | C28: Methane avoidance | D28: Landfill gas capture and destruction in Grenada | E28: Grenada | F28: Ministry of Finance and Energy | G28: 2014-10-10 | H28: 2015-05-28 | I28: =H28-G28 -> 230 | J28: 2018-05-27
A29: PSB23 | B29: ASB31 | C29: Power Sector | D29: Grid emission factor, baseline identification and positive list for Grenada | E29: Grenada | F29: Ministry of Finance and Energy | G29: 2014-10-13 | H29: 2016-11-23 | I29: 772 | J29: 2019-03-10
A30: PSB24 | B30: ASB22 | C30: Methane avoidance | D30: Landfill gas capture and destruction in Cameroon | E30: Cameroon | F30: DNA of Cameroon | G30: 2014-09-22 | H30: 2016-03-11 | I30: 536 | J30: 2019-03-27
A31: PSB25 | B31: ASB25 | C31: EE households | D31: Cookstoves in Senegal | E31: Senegal | F31: Direction de l’Environnement et des Etablissements Classés | G31: 2014-12-03 | H31: 2016-08-26 | I31: 632 | J31: 2019-08-25
A32: PSB26 | B32: ASB9 | C32: Power Sector | D32: Grid emission factor for The Gambia | E32: Gambia | F32: UNDP & Mitsubishi UFJ Morgan Stanley Securities | G32: 2014-09-08 | H32: 2015-04-27 | I32: =H32-G32 -> 231 | J32: 2019-10-17
A33: PSB27 | C33: Power Sector | D33: Grid emission factor for Kenya | E33: Kenya | F33: National Environment Management Authority | G33: 2014-12-29 | H33: Withdrawn
A34: PSB28 | B34: ASB16 | C34: EE service | D34: Institutional Cook stoves in Uganda | E34: Uganda | F34: DNA of Uganda | G34: 2014-11-28 | H34: 2015-10-16 | I34: 322 | J34: 2019-10-19
A35: PSB29 | B35: ASB23 | C35: Waste | D35: Landfill gas capture and destruction or use in Sudan | E35: Sudan | F35: DNA of Sudan | G35: 2015-03-02 | H35: 2016-03-11 | I35: 375 | J35: 2019-10-19
A36: PSB30 | B36: ASB24 | C36: Power Sector | D36: Grid emission factor for Sudan | E36: Sudan | F36: DNA of Sudan | G36: 2015-03-03 | H36: 2016-03-28 | I36: 391 | J36: 2019-10-23
A37: PSB31 | C37: Power Sector | D37: Grid emission factor (GEF) for Antigua and Barbuda | E37: Antigua and Barbuda | F37: DNA of Antigua and Barbuda | G37: 2015-11-20
A38: PSB32 | C38: Power Sector | D38: Grid emission factor for Haiti | E38: Haiti | F38: DNA of Haiti | G38: 2015-12-30 | H38: Withdrawn
A39: PSB33 | B39: ASB34 | C39: Power Sector | D39: Grid emission factor for the West African power pool | E39: Togo | F39: DNA of Togo | G39: 2015-07-22 | H39: 2017-02-27 | I39: =H39-G39 -> 586 | J39: 2020-02-21
A40: PSB34 | B40: ASB28 | C40: Charcoal production | D40: Efficient charcoal production in Senegal | E40: Senegal | F40: DNA of Senegal | G40: 2015-11-25 | H40: 2016-10-20 | I40: =H40-G40 -> 330 | J40: 2021-02-26
A41: PSB35 | B41: ASB29 | C41: Charcoal production | D41: Efficient charcoal production in Côte d’Ivoire | E41: Côte d’Ivoire | F41: DNA of Côte d’Ivoire | G41: 2016-02-26 | H41: 2016-10-20 | I41: 237 | J41: 2021-02-26
A42: PSB36 | B42: ASB30 | C42: Methane avoidance | D42: Methane capture and destruction from landfill gas in Rwanda | E42: Rwanda | F42: DNA of Rwanda | G42: 2016-02-10 | H42: 2016-10-24 | I42: 257 | J42: 2020-09-19
A43: PSB37 | B43: ASB26 | C43: Methane avoidance | D43: Uganda’s Standardized Baseline for Methane Recovery from Municipal Wastewater Treatment | E43: Uganda | F43: DNA of Uganda | G43: 2015-12-23 | H43: 2016-10-18 | I43: 300 | J43: 2020-10-29
A44: PSB38 | B44: ASB27 | C44: Methane avoidance | D44: Uganda’s Standardized Baseline for Methane Recovery from Sugar Industry Wastewater Treatment | E44: Uganda | F44: DNA of Uganda | G44: 2015-12-23 | H44: 2016-10-18 | I44: =H44-G44 -> 300 | J44: 2021-02-18
A45: PSB39 | C45: Bricks | D45: Standardized baseline for the sector of brick production in Colombia | E45: Colombia | F45: DNA of Colombia | G45: 2016-07-19 | H45: Withdrawn
A46: PSB40 | C46: Non Renewable Biomass | D46: Fraction of Non Renewable Biomass of Benin | E46: Benin | F46: DNA of Benin | G46: 2016-12-15 | H46: Withdrawn
A47: PSB41 | B47: ASB39 | C47: Power Sector | D47: Grid Emission Factor for Mongolia's National Electricity Grid | E47: Mongolia | F47: DNA of Mongolia | G47: 2016-12-28 | H47: 2018-07-17 | I47: =H47-G47 -> 566 | J47: 2021-07-16
A48: PSB42 | B48: ASB38 | C48: Power Sector | D48: Grid Emission Factor for the Electricity System of the Republic of Armenia for 2016 | E48: Armenia | F48: DNA of Armenia | G48: 2017-07-17 | H48: 2018-02-19 | I48: 217 | J48: 2021-02-18
A49: PSB43 | B49: ASB42 | C49: Power Sector | D49: Honduran Grid Emission Factor | E49: Honduras | F49: DNA of Honduras | G49: 2017-09-20 | H49: 2019-05-22 | I49: 609 | J49: 2022-05-21
A50: PSB44 | B50: ASB40 | C50: Power Sector | D50: Emission Factor of the Electricity System of Southern Africa (update of ASB1) | E50: Botswana | F50: DNAs in Southern Africa | G50: 2018-04-13 | H50: 2018-10-07 | I50: 177 | J50: 2021-10-06
A51: PSB45 | B51: ASB41 | C51: Charcoal production | D51: Standardized baseline on sustainable charcoal production in Rwanda | E51: Rwanda | F51: DNA of Rwanda | G51: 2018-04-27 | H51: 2018-12-20 | I51: 237 | J51: 2021-12-19
A52: PSB46 | B52: ASB44 | C52: EE service | D52: Standardized Baseline for Improved Institutional Cookstoves in Ethiopia | E52: Ethiopia | F52: DNA of Ethiopia | G52: 2018-08-07 | H52: 2019-09-22 | I52: 411 | J52: 2022-09-21
A53: PSB47 | B53: ASB46 | C53: Power Sector | D53: Grid emission factor of Mauritius | E53: Mauritius | F53: DNA of Mauritius | G53: 2018-10-18 | H53: 2019-12-09 | I53: 417 | J53: 2022-12-08
A54: PSB48 | B54: ASB47 | C54: Power Sector | D54: Grid emission factor for the Dominican Republic | E54: Dominican Republic | F54: DNA of Dominican republic | G54: 2019-02-04 | H54: 2020-02-03 | I54: 364 | J54: 2022-02-02
A55: PSB49 | B55: ASB43 | C55: Power Sector | D55: Jamaica Grid Emission Factor | E55: Jamaica | F55: DNA of Jamaica | G55: 2018-09-12 | H55: 2019-09-12 | I55: =H55-G55 -> 365 | J55: 2022-09-11
A56: PSB50 | B56: ASB8 | C56: Rice cultivation | D56: Standardized Baseline for Methane Emissions from Rice Cultivation in the Republic of the Philippines | E56: Philippines | F56: DNA of Philippines | G56: 2019-04-30 | H56: 2020-10-06 | I56: 525 | J56: 2025-02-19
A57: PSB51 | C57: Power Sector | D57: Grid Emission Factors in Cameroon | E57: Cameroon | F57: DNA of Cameroon | G57: 2019-08-15 | H57: Withdrawn
A58: PSB52 | B58: ASB52 | C58: Power Sector | D58: Cape Verde Standardized baseline for the Power Sector | E58: Cape Verde | F58: DNA of Cape Verde | G58: 2019-10-01 | H58: 2021-04-16 | I58: 563 | J58: 2024-04-16
A59: PSB53 | C59: Power Sector | D59: Grid Emission Factor Peru | E59: Peru | F59: DNA of Peru | G59: 2019-11-11 | H59: Withdrawn
A60: PSB54 | B60: ASB48 | C60: EE households | D60: Specific CO2 emissions in Residential Buildings (apartments except for district heating) in Republic of Korea | E60: South Korea | F60: DNA of South Korea | G60: 2019-11-18 | H60: 2020-08-11 | I60: =H60-G60 -> 267 | J60: 2023-08-10
A61: PSB55 | B61: ASB50 | C61: Power Sector | D61: Grid Emission Factor for the Republic of Kenya | E61: Kenya | F61: DNA of Kenya | G61: 2020-06-22 | H61: 2020-12-29 | I61: 190 | J61: 2023-12-28
A62: PSB56 | C62: EE households | D62: Standardized Baseline for Energy Efficiency Measures in the Building Sector in Mongolia | E62: Mongolia | F62: DNA of Mongolia | G62: 2020-09-02
A63: PSB57 | B63: ASB53 | C63: Power Sector | D63: Grid Emission Factors for Saint Kitts and Nevis | E63: St. Kitts and Nevis | F63: DNA of St. Kitts and Nevis | G63: 2020-08-06 | H63: 2021-12-01 | I63: 482 | J63: 2024-11-30
A64: PSB58 | C64: Power Sector | D64: Grid emission factor for the national power grid of Uganda | E64: Uganda | F64: DNA of Uganda | G64: 2022-05-24
A68: Top-down Meth. No. | B68: Approved Meth. No. | C68: Type | D68: Title | E68: Host country | F68: Developer of SB | G68: Submission date | H68: Entry into force | I68: Days to approval | J68: Expired date
A69: TSB1 | B69: AR-ASB1 | C69: Forests | D69: Afforestation and Reforestation projects in Namibia | E69: Namibia | F69: Ministry of Environment and Tourism | G69: 2014-08-04 | H69: 2016-08-15 | I69: =H69-G69 -> 742 | J69: 2026-08-14
A70: TSB2 | C70: Building materials | D70: Brick sector emission factor for Peru | E70: Peru | F70: General Direction of Climate Change, Desertification and Water Resources | G70: 2014-09-23 | H70: Withdrawn
A71: TSB3 | B71: ASB18 | C71: EE Stoves | D71: Cookstoves in Burundi | E71: Burundi | F71: DNA of Burundi | G71: 2014-10-06 | H71: 2015-11-27 | I71: 417 | J71: 2018-11-26
A72: TSB4 | B72: ASB36 | C72: EE Stoves | D72: Cookstoves in Malawi | E72: Malawi | F72: DNA of Malawi | G72: 2014-09-25 | H72: 2017-09-20 | I72: 1091 | J72: 2020-09-19
A73: TSB5 | B73: ASB35 | C73: EE Stoves | D73: Cookstoves in Kenya | E73: Kenya | F73: DNA of Kenya | G73: 2014-11-28 | H73: 2017-02-27 | I73: 822 | J73: 2020-02-26
A74: TSB6 | C74: Cement | D74: Standardized baselines for clinker production in Peru | E74: Peru | F74: DNA of Peru | G74: 2014-07-11 | H74: Withdrawn
A75: TSB7 | B75: ASB32 | C75: EE Stoves | D75: Cookstoves in Namibia | E75: Namibia | F75: DNA of Namibia | G75: 2016-01-18 | H75: 2017-02-22 | I75: 401 | J75: 2020-02-21
A76: TSB8 | C76: EE Stoves | D76: Cookstoves in Gambia | E76: Gambia | F76: DNA of Gambia | G76: 2015-01-20
A77: TSB9 | B77: ASB37 | C77: EE Stoves | D77: Cookstoves in Mali | E77: Mali | F77: DNA of Mali | G77: 2016-01-21 | H77: 2017-10-30 | I77: =H77-G77 -> 648 | J77: 2020-10-29
A78: TSB10 | B78: ASB33 | C78: EE Stoves | D78: Cookstoves in Togo | E78: Togo | F78: DNA of Togo | G78: 2016-01-21 | H78: 2017-02-22 | I78: 398 | J78: 2020-02-21
A79: TSB11 | B79: ASB45 | C79: Power Sector | D79: Grid emission factor of Guyana | E79: Guyanna | F79: DNA of Guyana | G79: 2016-12-06 | H79: 2019-12-02 | I79: 1091 | J79: 2022-12-01
A80: TSB12 | C80: Power Sector | D80: Grid emission factor of Saint Lucia | E80: Saint Lucia | F80: DNA of Saint Lucia | G80: 2017-06-27 | H80: Withdrawn
A81: TSB13 | C81: Transport | D81: Standardized Baseline for introducing electric vehicles in St. Vincent and the Grenadines | E81: St. Vincent and the Grenadines | F81: DNA of St. Vincent and the Grenadines | G81: 2018-11-02
A82: TSB14 | C82: Transport | D82: Standardized baseline for transport sector of Belize | E82: Belize | F82: DNA of Belize | G82: 2019-04-04
A83: TSB15 | B83: ASB49 | C83: EE stoves | D83: Baseline woody biomass consumption and fNRB for household cookstoves in Myanmar | E83: Myanmar | F83: DNA of Myanmar | G83: 2019-05-03 | H83: 2020-12-23 | I83: =H83-G83 -> 600 | J83: 2025-12-22
A86: TSB is Top-down Standardized Baseline

Sheet MethCharts
A1: =+Methods!A2 -> The Pipeline was produced by Aiymgul Kerimray, UNEP Copenhagen Climate Centre, 1 April 2023, Aiymgul.kerimray@un.org, Phone (+45)45335287
A3: This sheet contains 4 charts developed together with Erik Haites. They analyse how many new methodologies (excluding A/R) were submitted,
A4: and how many have been approved, rejected or not yet decided (pending). These data are shown both for each round and accumulated.
A5: The time from submission of the methodologies until the decision was taken by the Executive Board was calculated,
A6: both for the time until the first decision (mark), and until the final decision -- an "A" or "C".
A9: Chart 1: This graph shows how many of the methodologies submitted in each round that have been approved (A), rejected (C) or still not decided (pending).
A45: Chart 2: This chart show the same as chart 1, but in an accululated way.
A46: The final columns therefore show the total number of methodologies approved/rejected/not final at this moment.
A87: Chart 3: This chart shows for each submission round the time elapsed between the deadline for submission in the round
A88: (as mentioned in the minutes from the former EB meeting) and the end of the EB meeting where the first decision
A89: on the methodology -- an A, B, or C rating -- was taken.
A117: Chart 4: This chart shows for each submission round the time elapsed between the deadline for submission in the round
A118: and the end of the EB meeting where the final decision about rejection/approval was taken.
A119: The last columns show the average time for all approved/rejected methodologies.
A152: Chart 5: This chart show the time it take to get a new methodology approve/rejected for: Large-scale CDM projects, Small-scale CDM projects and A/R CDM projects.
C156: Days | D156: Large-scale | E156: Small-scale | F156: A/R
C157: Rejected | D157: =+Methods!Y40 -> 234.6705994 | E157: =+Methods!P513 -> 194.3061224 | F157: =+'A-R Methods'!R41 -> 172.4166667
C158: Approved | D158: =+Methods!Z40 -> 312.935994 | E158: =+Methods!P514 -> 213.18 | F158: =+'A-R Methods'!R44 -> 360.4285714

Sheet A-R Methods
A1: Afforestatin & Reforestation project methodologies proposed
A3: =+Methods!A2 -> The Pipeline was produced by Aiymgul Kerimray, UNEP Copenhagen Climate Centre, 1 April 2023, Aiymgul.kerimray@un.org, Phone (+45)45335287 | M3: Submitting | O3: Decision | P3: Days to
A4: Round | B4: Meth. No. | C4: Description | D4: 1.Mark | E4: 2.Mark | F4: Size (ha) | G4: CERs | H4: GHG red./yr | I4: Host country | J4: Credit buyer | K4: Consultant | L4: Title | M4: date | N4: End mark | O4: End mark | P4: End mark
A5: 1 | B5: ARNM1 | C5: Reforestation with pine trees (see ARNM5) | D5: Withdrawn | F5: 8700 | G5: l-CER | H5: 62 ktCO2 | I5: Belize | J5: Canada | K5: Brinkman & Associates | L5: The mountain pine ridge reforestation project | M5: 2004-10-31 | N5: C | O5: 2005-05-14 | P5: =O5-M5 -> 195
A6: 2 | B6: ARNM2 | C6: Reforestation with native species around hydro reservoir | D6: C | F6: 4200 | G6: l-CER | H6: 176 ktCO2 | I6: Brazil | J6: n.a. | K6: AES-Tietê | L6: Reforestation Project Using Native Species Around AES-Tiete Reservoirs | M6: 2004-11-25 | N6: C | O6: 2005-05-14 | P6: 170
A7: 3 | B7: ARNM3 | C7: Afforestation by tree groves planted by 300 village groups | D7: C | F7: n.a. | G7: l-CER | H7: 272 ktCO2 | I7: Tanzania | J7: WB BioCarbon Fund | K7: Clean Air Action Cooperation | L7: The International Small Group & Tree Planting Program (TIST) | M7: 2005-03-02 | N7: C | O7: 2005-07-08 | P7: 128
A8: 4 | B8: ARNM4 | C8: Afforestation of grassland by intensified cattle production | D8: C | F8: 10000 | G8: l-CER | H8: 180 ktCO2 | I8: Uruguay | J8: n.a. | K8: Carbosur | L8: Treinta y Tres' afforestation combined with livestock intensification | M8: 2005-05-05 | N8: C | O8: 2005-07-08 | P8: 64
A9: 4 | B9: ARNM5 | C9: Reforestation with pine trees (rev. of ARNM1) | D9: C | F9: 8700 | G9: l-CER | H9: 45 ktCO2 | I9: Belize | J9: Canada | K9: Brinkman & Associates Reforestation Ltd. | L9: The mountain pine ridge reforestation project | M9: 2005-05-05 | N9: C | O9: 2005-07-08 | P9: 64
A10: 4 | B10: ARNM6 | C10: Afforestation of 1/4-1 ha plot for marginal farmers | D10: C | F10: 1383 | G10: l-CER | H10: 8 ktCO2 | I10: India | J10: n.a. | K10: Women for Sustainable Development | L10: Bagepalli CDM Afforestation Programme | M10: 2005-05-04 | N10: C | O10: 2005-09-30 | P10: 149
A11: 4 | B11: ARNM7 | C11: Afforestation on degraded land in 1863 plots all over Moldova | D11: A | E11: AR-AM2 | F11: 14949 | G11: l-CER | H11: 132 ktCO2 | I11: Moldova | J11: PCF | K11: Moldsilva (state forest agency) + WB | L11: Moldova Soil Conservation Project | M11: 2005-05-03 | N11: A | O11: 2006-05-12 | P11: 374
A12: 5 | B12: ARNM8 | C12: Reforestation of bush, grassland and degraded woodland | D12: C | F12: 8354 | G12: l-CER | H12: 88 ktCO2 | I12: Uganda | J12: Germany | K12: global-woods Germany | L12: Kikonda Forest Reserve Reforestation Project | M12: 2005-06-10 | N12: C | O12: 2005-09-30 | P12: 112
A13: 5 | B13: ARNM9 | C13: Afforestation with production of saw logs after 10 years | D13: C | F13: 580 | G13: l-CER | H13: 13 ktCO2 | I13: Paraguay | J13: Germany | K13: global-woods Germany | L13: Rio Aquidaban Reforestation Project(RA) | M13: 2005-06-10 | N13: C | O13: 2005-09-30 | P13: 112
A14: 5 | B14: ARNM10 | C14: Reforestation with multiple-use forest on degraded land with harvesting | D14: A | E14: AR-AM1 | F14: 4000 | G14: l-CER | H14: 33 ktCO2 | I14: China | J14: WB BioCarbon Fund | K14: Joannum research + WB | L14: Facilitating Reforestation for Guangxi Watershed Management in Pearl River Basin, China | M14: 2005-06-14 | N14: A | O14: 2005-11-25 | P14: 164
A15: 5 | B15: ARNM11 | C15: Reforestation of coastal forest with 15-35 native species | D15: C | F15: 523 | G15: l-CER | H15: 6 ktCO2 | I15: Ecuador | J15: Japan (RICOH) | K15: EcoSecurities | L15: Chocó-Manabí Corridor Reforestation and Conservation Carbon Project | M15: 2005-06-15 | N15: C | O15: 2005-09-30 | P15: 107
A16: 6 | B16: ARNM12 | C16: Afforestation/Reforestation with native species around hydro reservoir (rev. of ARNM2) | D16: B | E16: C | F16: 4200 | G16: l-CER | H16: 176 ktCO2 | I16: Brazil | J16: WB BioCarbon Fund | K16: AES-Tietê | L16: Afforestation or reforestation project activity implemented on unmanaged grassland | M16: 2005-07-20 | N16: C | O16: 2007-02-16 | P16: 576
A17: 6 | B17: ARNM13 | C17: Reforestation with pine trees (rev. of ARNM5) | D17: B | E17: C | F17: 8700 | G17: l-CER | H17: 45 ktCO2 | I17: Belize | J17: Canada | K17: Brinkman & Associates Reforestation Ltd. | L17: The Mountain Pine Ridge Reforestation Project (MPR Project) | M17: 2005-07-20 | N17: C | O17: 2006-12-15 | P17: 513
A18: 7 | B18: ARNM14 | C18: Afforestation of grassland by intensified cattle production (=ARNM4) | D18: C | F18: 10000 | G18: l-CER | H18: 180 ktCO2 | I18: Uruguay | J18: n.a. | K18: Carbosur | L18: Treinta y Tres' afforestation combined with livestock intensification | M18: 2005-11-03 | N18: C | O18: 2006-02-24 | P18: 113
A19: 7 | B19: ARNM15 | C19: Afforestation and reforestation project activities implemented for industrial and/or commercial uses (Plantar) | D19: A | E19: AR-AM5 | F19: 11683 | G19: t-CER | H19: 92 ktCO2 | I19: Brazil | J19: PCF | K19: PCF | L19: Reforestation as Renewable Source of Wood Supplies for Industrial Use | M19: 2005-10-28 | N19: A | O19: 2006-12-15 | P19: =O19-M19 -> 413
A20: 7 | B20: ARNM16 | C20: Afforestation to produce wood for cellulose paste | D20: C | F20: 4212 | G20: t-CER | H20: 844 ktCO2 | I20: Uruguay | J20: Spain | K20: Factor CO2 Integral Services | L20: Los Eucaliptus Afforestation Project | M20: 2005-11-03 | N20: C | O20: 2006-02-24 | P20: 113
A21: 7 | B21: ARNM17 | C21: Managed seawater forestry in degraded coastal desert | D21: Withdrawn | E21: Withdrawn | F21: 10000 | G21: l-CER | H21: 181 ktCO2 | I21: Mexico | J21: n.a. | K21: The Carbon Company | L21: Mexico Seawater Forestry Project | M21: 2005-11-02 | N21: Withdrawn | O21: 2006-02-24 | P21: 114
A22: 7 | B22: ARNM18 | C22: Afforestation/Reforestation of degraded land through control of animal grazing and assisted natural regeneration | D22: A | E22: AR-AM3 | F22: 5728 | G22: l-CER | H22: 21 ktCO2 | I22: Albania | J22: WB BioCarbon Fund | K22: WB | L22: Assisted Natural Regeneration of Degraded Lands in Albania | M22: 2005-11-02 | N22: A | O22: 2006-05-12 | P22: 191
A23: 8 | B23: ARNM19 | C23: Reforestation or Afforestation of Land currently under Agricultural Use | D23: A | E23: AR-AM4 | F23: 2600 | G23: l-CER | H23: 27 ktCO2 | I23: Honduras | J23: WB BioCarbon Fund | K23: WB | L23: Reforestation around Pico Bonito National Park, Honduras | M23: 2006-01-17 | N23: A | O23: 2006-09-29 | P23: 255
A24: 8 | B24: ARNM20 | C24: Afforestation/Reforestation with Trees and Shrubs on Degraded Land | D24: A | E24: AR-AM6 | F24: 3000 | G24: l-CER | H24: 15 ktCO2 | I24: China | J24: Italy | K24: University of Tuscia, Chinese Acady of Forestry | L24: Afforestation for Combating Desertification in Aohan County, Northern China | M24: 2006-01-20 | N24: A | O24: 2007-02-16 | P24: 392
A25: 9 | B25: ARNM21 | C25: Reforestation of Land currently under Agricultural or Pastoral Use | D25: A | E25: AR-AM7 | F25: 523 | G25: l-CER | H25: 9 ktCO2 | I25: Ecuador | J25: Japan (RICOH) | K25: EcoSecurities + Joanneum Research + Conservation Int. + EcoDecision | L25: Chocó-Manabí Corridor Reforestation and Conservation Carbon Project | M25: 2006-03-20 | N25: A | O25: 2007-02-16 | P25: 333
A26: 9 | B26: ARNM22 | C26: Afforestation of the cropland through agroforestry practices | D26: C | F26: 3658 | G26: l-CER | H26: 48 ktCO2 | I26: India | J26: n.a. | K26: PricewaterhouseCoopers | L26: Afforestation of the cropland through agroforestry practices in 3658 Ha. area in Khammam District of Andhra Pradesh, India under ITC’s Farm Forestry Project | M26: 2006-03-14 | N26: C | O26: 2006-07-21 | P26: 129
A27: 9 | B27: ARNM23 | C27: Community rubberwood reforestation | D27: C | F27: 15000 | G27: t-CER | H27: 166 ktCO2 | I27: Ghana | J27: n.a. | K27: ONF International | L27: Rubber outgrowing and carbon sequestration in Ghana (ROCS-Ghana) | M27: 2006-03-17 | N27: C | O27: 2006-07-21 | P27: 126
A28: 9 | B28: ARNM24 | C28: Reforestation project activities in abandoned areas and with multiple landholders | D28: A | E28: AR-AM9 | F28: 8730 | G28: t-CER | H28: 38 ktCO2 | I28: Colombia | J28: n.a. | K28: Corporación Mas Bosques + Swiss EMPA | L28: San Nicolás CDM Reforestation Project | M28: 2006-03-16 | N28: A | O28: 2007-10-19 | P28: 582
A29: 9 | B29: ARNM25 | C29: Forest Restoration Carbon Analysis | D29: C | F29: 7000 | G29: l-CER | H29: 35 ktCO2 | I29: Peru | J29: n.a. | K29: The Nature Conservancy US+ Pronaturaleze | L29: Selva Central Climate Action Project | M29: 2006-03-16 | N29: C | O29: 2006-07-21 | P29: 127
A30: 10 | B30: ARNM26 | C30: Afforestation or Reforestation implemented by small and medium private land holders under an AR incentive program adopted before November 11, 2001. | D30: C | F30: 4140 | G30: l-CER | H30: 56 ktCO2 | I30: Costa Rica | J30: WB BioCarbon Fund | K30: FONAFIFO | L30: Carbon Sequestration in Small and Medium Farms in the Brunca Region, Costa Rica (COOPEAGRI- Project) | M30: 2006-06-14 | N30: C | O30: 2007-06-22 | P30: 373
A31: 10 | B31: ARNM27 | C31: Afforestation on grassland sites in areas of low human population density | D31: C | F31: 15600 | G31: l-CER | H31: 164 ktCO2 | I31: Uruguay | J31: n.a. | K31: Carbosur | L31: Treinta y Tres' afforestation on grassland | M31: 2006-06-14 | N31: C | O31: 2006-09-29 | P31: 107
A32: 10 | B32: ARNM28 | C32: Afforestation or reforestation on degraded land for sustainable wood production using remote sensing data to measure carbon stock changes | D32: A | E32: AR-AM8 | F32: 15000 | G32: l-CER | H32: 37 ktCO2 | I32: Madagascar | J32: Japan | K32: Mitsubishi Research Institute + PwC + Climate Experts lt. | L32: Reforestation on degraded land for sustainable wood production of woodchips in the eastern coast of the Democratic Republic of Madagascar. | M32: 2006-06-06 | N32: A | O32: 2007-07-27 | P32: 416
A33: 11 | B33: ARNM29 | C33: Community rubber tree reforestation (=ARNM23) | D33: Withdrawn | F33: 15000 | G33: t-CER | H33: 166 ktCO2 | I33: Ghana | J33: n.a. | K33: ONF International | L33: Rubber outgrowing and carbon sequestration in Ghana (ROCS-Ghana) | M33: 2006-09-12 | N33: Withdrawn | O33: 2006-09-29 | P33: 17
A34: 11 | B34: ARNM30 | C34: Afforestation or reforestation of pastures combined with a cattle grazing management program | D34: C | F34: 5000 | G34: t-CER | H34: 16 ktCO2 | I34: Colombia | J34: United K. | K34: ONF International, Carbon Positive | L34: Commercial reforestation on lands dedicated to extensive cattle grazing activities in the region of Magdalena Bajo Seco | M34: 2006-09-12 | N34: C | O34: 2006-12-15 | P34: =O34-M34 -> 94
A35: 12 | B35: ARNM31 | C35: Reforestation or afforestation of degrading land currently under agricultural or pastoral use, accounting for living biomass and necromass | D35: B | E35: Withdrawn | F35: 9000 | G35: t-CER | H35: 13 ktCO2 | I35: Uganda | J35: n.a. | K35: New Forest Company | L35: The Namwasa Forestation Project | M35: 2006-12-18 | N35: Withdrawn | O35: 2007-03-23 | P35: =O35-M35 -> 95
A36: 12 | B36: ARNM32 | C36: Degraded grassland restoration through silvopastoral systems | D36: A | E36: AR-ACM1 | F36: 3000 | G36: t-CER | H36: 15 ktCO2 | I36: Uruguay | J36: Spain | K36: Factor CO2 Integral Services | L36: “San Carlos” Land Restoration Through Silvopastoral Systems | M36: 2006-12-18 | N36: A | O36: 2008-03-14 | P36: 452
A37: 13 | B37: ARNM33 | C37: Reforestation of grasslands using fast-growing species | D37: C | F37: 2319 | G37: t-CER | H37: 273 ktCO2 | I37: Brazil | J37: n.a. | K37: ICF International | L37: Reforestation of grasslands using fast-growing species in Brazil | M37: 2007-01-24 | N37: C | O37: 2007-11-30 | P37: 310
A38: 13 | B38: ARNM34 | C38: Afforestation and reforestation project activities implemented on unmanaged grassland in reserve/protected areas | D38: A | E38: AR-AM10 | F38: 8094 | G38: t-CER | H38: 91 ktCO2 | I38: Brazil | J38: n.a. | K38: AES-Tiete | L38: AES-Tiete Afforestation/Reforestation Project Activity around the Borders of Hydroelectric Plant Reservoirs (=ARNM2) | M38: 2007-03-02 | N38: A | O38: 2007-10-19 | P38: 231
A39: 15 | B39: ARNM35 | C39: Community rubber tree reforestation (=ARNM29) | D39: C | F39: 14000 | G39: t-CER | H39: 250 ktCO2 | I39: Ghana | J39: n.a. | K39: ONF-International | L39: Rubber outgrowing and carbon sequestration in Ghana (ROCS-Ghana) | M39: 2007-09-29 | N39: C | O39: 2008-05-16 | P39: 230
A40: 19 | B40: ARNM36 | C40: A/R CDM baseline and monitoring methodology for reforestation tree plantation by small scale growers in polyculture farming systems (=ARNM35) | D40: A | E40: AR-AM11 | F40: 14000 | G40: t-CER | H40: 250 ktCO2 | I40: Ghana | J40: n.a. | K40: ONF-International | L40: Rubber outgrowing and carbon sequestration in Ghana (ROCS-Ghana) | M40: 2008-08-04 | N40: A | O40: 2010-03-26 | P40: 599 | Q40: For all A/R methods:
A41: 22 | B41: ARNM37 | C41: Afforestation or reforestation of degraded or abandoned agricultural lands | D41: A | E41: AR-AM12 | F41: 3013 | G41: l-CER | H41: 16 ktCO2 | I41: Argentina | J41: n.a. | K41: Grupo Ambiental para el Desarrollo, Fundación del Sur, INTA | L41: Reforestation for the purpose of combating desertification, mitigating climate change and protecting biodiversity in Santiago del Estero, Argentina - Youth Environmental Groups | M41: 2009-06-15 | N41: A | O41: 2010-11-26 | P41: 529 | Q41: Rejection | R41: =(P5+P6+P7+P8+P9+P10+P12+P13+P15+P16+P17+P18+P20+P21+P26+P27+P29+P30+P31+P33+P34+P35+P37+P39)/24 -> 172.4166667 | S41: days
A42: 23 | B42: ARNM38 | C42: Afforestation and reforestation of degraded tidal forest habitats | D42: A | E42: AR-AM14 | F42: 1700 | G42: t-CER | H42: 3 ktCO2 | I42: Senegal | J42: France (Orbeo+Danobe) | K42: Danone | L42: Oceanium mangrove restoration project | M42: 2011-02-08 | N42: A | O42: 2011-06-03 | P42: 115
A43: 24 | B43: ARNM39 | C43: CarbonFix A/R baseline and monitoring methodology for multiple baseline land uses and leakage settings | D43: C | F43: 216 | G43: t-CER | H43: 28 ktCO2 | I43: Costa Rica | J43: n.a. | K43: n.a. | L43: BaumInvest Reforestation Project | M43: 2011-07-08 | N43: C | O43: 2011-09-29 | P43: 83
Q44: Approval | R44: =(P11+P14+P19+P22+P23+P24+P25+P28+P32+P36+P38+P40+P41+P42)/14 -> 360.4285714 | S44: days
A46: A: Means approved by the Executive Board
A47: B: Means that the project participants must make some changes
A48: C: Means that a new Project Design Document must be submitted
A49: AR-A: Recommended to be approved my Afforestation/Reforestation Group
A50: AR-Bp: Preliminary recommendations sent to the project developers by the Afforestation/Reforestation Group
A51: AR-B: Final recommendation to be a B-case by the Afforestation/Reforestation Group
A52: AR-C: Recommended to be a C-case by the Afforestation/Reforestation Group

Sheet Approved methods
A1: =+Methods!A2 -> The Pipeline was produced by Aiymgul Kerimray, UNEP Copenhagen Climate Centre, 1 April 2023, Aiymgul.kerimray@un.org, Phone (+45)45335287 | G1: This colour means withdrawn, and replace by an Approved Consolidated Methodology
G2: This colour means that these AMs were adapted to the Chinese Voluntary CCER market by NDRC (52 in 1st batch) | Y2: Same as table 4 without dead or expired AM.
A3: Table 1: | G3: This colour means that these AMs were adapted to the Chinese Voluntary CCER market by NDRC (112 in 2nd batch)
A4: Approved | B4: Sectors covered | C4: Number of | D4: Number of | G4: Table 4: | L4: Data for the graph 1 to the right | P4: Graph 1: How often are approved methodologies used? | Y4: Approved | Z4: Number of | AA4: Number of
A5: Mehodology | C5: projects | D5: PoAs | G5: Approved | H5: Number of | I5: Number of | L5: No. of | M5: Number of Methods | Y5: method | Z5: projects | AA5: PoAs
B6: Afforestation & Reforestation: | G6: method | H6: projects | I6: PoAs | L6: times used | M6: number | N6: in % | Y6: =+G7 -> AM1 | Z6: =+H7 -> 20 | AA6: =+I7 -> 0
A7: AR-AM14 | B7: Afforestation and reforestation of degraded mangrove habitats | C7: =+H170 -> 1 | D7: =+I170 -> 4 | G7: AM1 | H7: 20 | L7: 0 | M7: 108 | N7: =M7/M$16 -> 0.4302788845 | Y7: =+G13 -> AM7 | Z7: =+H13 -> 0 | AA7: =+I13 -> 0
A8: AR-ACM3 | B8: Afforestation and reforestation of lands except wetlands | C8: =+H173 -> 8 | D8: =+I173 -> 4 | G8: AM2 | H8: 1 | J8: Replaced by ACM1 at EB35 | L8: 1 - 5 | M8: 81 | N8: 0.3227091633 | Y8: =+G15 -> AM9 | Z8: =+H15 -> 53 | AA8: =+I15 -> 3
A9: AR-AMS3 | B9: Afforestation and reforestation project activities implemented on wetlands | C9: =+H176 -> 2 | D9: =+I176 -> 3 | G9: AM3 | H9: 5 | J9: Replaced by ACM1 at EB35 | L9: 6 - 10 | M9: 11 | N9: 0.0438247012 | Y9: =+G23 -> AM17 | Z9: =+H23 -> 0 | AA9: 0
A10: AR-AMS7 | B10: Simplified baseline and monitoring methodology for small-scale A/R project activities on lands other than wetlands | C10: =+H180 -> 10 | D10: =+I180 -> 2 | G10: AM4 | H10: 2 | J10: replaced by ACM6 28/11 2005 | L10: 11 - 25 | M10: 18 | N10: 0.07171314741 | Y10: =+G24 -> AM18 | Z10: 15 | AA10: 0
B11: Agriculture: | G11: AM5 | H11: 5 | J11: Replaced by ACM2 3. March 2006 | L11: 26 - 50 | M11: 11 | N11: 0.0438247012 | Y11: =+G25 -> AM19 | Z11: 0 | AA11: 0
A12: AMS-II.F. | B12: Energy efficiency and fuel switching measures for agricultural facilities and activities | C12: =H199 -> 4 | D12: =I199 -> 1 | G12: AM6 | H12: 14 | J12: Replaced by ACM10 at EB26 | L12: 51 - 100 | M12: 10 | N12: 0.03984063745 | Y12: =+G26 -> AM20 | Z12: 0 | AA12: 0
A13: AMS-II.P. | B13: Energy efficient pump-set for agriculture use | C13: =+H209 -> 0 | D13: =+I209 -> 0 | G13: AM7 | L13: 101 - 500 | M13: 9 | N13: 0.03585657371 | Y13: =+G27 -> AM21 | Z13: 4 | AA13: 0
A14: AMS-III.A. | B14: Urea offset by inoculant application in soybean-corn rotations on acidic soils on existing cropland | C14: =H214 -> 0 | D14: =I214 -> 0 | G14: AM8 | H14: 12 | J14: Replaced by ACM9 at EB24 | L14: 501 - 1000 | M14: 1 | N14: 0.003984063745 | Y14: =+G29 -> AM23 | Z14: =+H29 -> 19 | AA14: =+I29 -> 0
A15: AMS-III.AU. | B15: Methane emission reduction by adjusted water management practice in rice cultivation | C15: =+H260 -> 1 | D15: =+I260 -> 3 | G15: AM9 | H15: 53 | I15: 3 | L15: 1001 - 5000 | M15: 2 | N15: 0.00796812749 | Y15: =+G32 -> AM26 | Z15: 11 | AA15: 0
A16: AMS-III.BE. | B16: Avoidance of methane and nitrous oxide emissions from sugarcane pre-harvest open burning through mulching | C16: =+H269 -> 0 | D16: =+I269 -> 0 | E16: Top-down developed methodology | G16: AM10 | H16: 1 | J16: Replaced by ACM1 at EB35 | L16: Total | M16: =SUM(M7:M15) -> 251 | N16: =SUM(N7:N15) -> 1 | Y16: AM27 | Z16: 1 | AA16: 0
A17: AMS-III.BF. | B17: Reduction of N2O emissions from use of Nitrogen Use Efficient (NUE) seeds that require less fertilizer application | C17: =+H270 -> 0 | D17: =+I270 -> 1 | G17: AM11 | H17: 6 | J17: Replaced by ACM1 at EB35 | Y17: AM28 | Z17: 27 | AA17: 1
B18: ASB (Approved Standardized Baselines): | G18: AM12 | J18: Included in AM25 at EB26 | Y18: =+G36 -> AM30 | Z18: 5 | AA18: 0
A19: ASB1 | B19: Grid emission factor for the Southern African power pool | C19: =+H281 -> 3 | D19: =+I281 -> 2 | G19: AM13 | H19: 8 | J19: Replaced by ACM14 at EB36 | Y19: =+G37 -> AM31 | Z19: =+H37 -> 14 | AA19: =+I37 -> 0
A20: ASB2 | B20: Fuel switch, technology switch and methane destruction in the charcoal sector of Uganda | C20: =+H282 -> 0 | D20: 1 | G20: AM14 | H20: 15 | J20: Replaced by ACM26 at EB87 | Y20: =+G41 -> AM35 | Z20: 8 | AA20: 0
A21: ASB3 | B21: Grid emission factor for the Republic of Uzbekistan | C21: 0 | D21: 0 | G21: AM15 | H21: 27 | J21: replaced by ACM6 28/11 2005 | Y21: AM36 | Z21: 24 | AA21: 0
A22: ASB4 | B22: Technology switch in the rice mill sector of Cambodia | D22: 0 | G22: AM16 | H22: 40 | J22: Replaced by ACM10 at EB26 | Y22: =+G43 -> AM37 | Z22: =+H43 -> 6 | AA22: 1
A23: ASB5 | B23: Grid emission factor for Belize | C23: 0 | D23: 0 | G23: AM17 | Y23: AM38 | Z23: 2 | AA23: 0
A24: ASB6 | B24: Grid emission factor for Uganda | C24: =+H286 -> 0 | D24: 0 | G24: AM18 | H24: 15 | Y24: =+G49 -> AM43 | Z24: 1 | AA24: 0
A25: ASB7 | B25: Grid emission factor for Armenia | C25: 0 | D25: 0 | G25: AM19 | Y25: AM44 | Z25: 2 | AA25: 0
A26: ASB8 | B26: Methane Emissions from Rice Cultivation in the Phillipines | C26: =+H288 -> 0 | D26: =+I288 -> 0 | G26: AM20 | Y26: AM45 | Z26: 6 | AA26: 0
A27: ASB9 | B27: Grid emission factor for The Gambia | C27: =+H289 -> 0 | D27: =+I289 -> 0 | G27: AM21 | H27: 4 | Y27: AM46 | Z27: 3 | AA27: 0
A28: ASB10 | B28: Landfill gas capture and flaring in Sao Tome and Principe | C28: =+H290 -> 0 | D28: 0 | G28: AM22 | H28: 16 | J28: Replaced by ACM14 at EB36 | Y28: =+G54 -> AM48 | Z28: =+H54 -> 8 | AA28: 0
A29: ASB11 | B29: Landfill gas capture and flaring in the Dominican Republic | C29: =+H291 -> 0 | D29: 0 | G29: AM23 | H29: 19 | Y29: =+G55 -> AM49 | Z29: 4 | AA29: 0
A30: ASB12 | B30: Landfill gas capture and flaring in Antigua and Barbuda | C30: =+H292 -> 0 | D30: 0 | G30: AM24 | H30: 30 | J30: Replaced by ACM12 at EB32 | Y30: AM50 | Z30: 2 | AA30: 0
A31: ASB13 | B31: Landfill gas capture and flaring in Belize | C31: =+H293 -> 0 | D31: 0 | G31: AM25 | H31: 125 | I31: 5 | J31: Replace by ACM22 at EB36 | Y31: =+G58 -> AM52 | Z31: 3 | AA31: 0
A32: ASB14 | B32: Landfill gas capture and flaring in Grenada | C32: =+H294 -> 0 | D32: 0 | G32: AM26 | H32: 11 | Y32: AM53 | Z32: 1 | AA32: 0
A33: ASB15 | B33: Grid emission factor for the Dominican Republic | C33: =+H295 -> 1 | D33: 0 | G33: AM27 | H33: 1 | Y33: =+G61 -> AM55 | Z33: 7 | AA33: 0
A34: ASB16 | B34: Institutional Cook stoves in Uganda | C34: =+H296 -> 0 | D34: =+I296 -> 0 | G34: AM28 | H34: 27 | I34: 1 | Y34: AM56 | Z34: 1 | AA34: 0
A35: ASB17 | B35: Grid emission factor for Rwanda | C35: 0 | D35: 0 | G35: AM29 | H35: 97 | I35: 1 | J35: Replaced by ACM25 at EB83 | Y35: AM57 | Z35: 1 | AA35: 0
A36: ASB18 | B36: Baseline woody biomass consumption for cookstoves in Burundi | C36: 0 | D36: 0 | G36: AM30 | H36: 5 | O36: Present number of approved CDM Methodologies | Y36: AM58 | Z36: 18 | AA36: 0
A37: ASB19 | B37: Grid emission factor for Mauritius | C37: 3 | D37: 0 | G37: AM31 | H37: 14 | O37: =COUNTA(Y6:Y97) -> 91 | P37: Large scale Methodologies (AM) | Y37: AM59 | Z37: 4 | AA37: 0
A38: ASB20 | B38: Grid emission factor for Sao Tome and Principe | C38: 0 | D38: 0 | G38: AM32 | H38: 2 | J38: Replaced by ACM12 at EB32 | O38: =COUNTA(Y99:Y123) -> 25 | P38: Large scale Consolidated Methodologies (ACM) | Y38: =+G66 -> AM60 | Z38: =+H66 -> 0 | AA38: =+I66 -> 1
A39: ASB21 | B39: Grid emission factor for Cape Verde | C39: 0 | D39: 0 | G39: AM33 | H39: 6 | J39: Replaced by ACM15 | O39: 99 | P39: Small scale Methodologies (AMS) | Y39: AM61 | Z39: 3 | AA39: 0
A40: ASB22 | B40: Landfill gas capture and destruction in Cameroon | C40: 0 | D40: 0 | G40: AM34 | H40: 62 | J40: Replace by ACM19 at EB73 | O40: =COUNTA(Y124:Y124) -> 1 | P40: Large scale Afforestation/Reforestation Methodologies (AR-AM) | Y40: AM62 | Z40: 4 | AA40: 1
A41: ASB23 | B41: Landfill gas capture and destruction or use in Sudan | C41: 0 | D41: 0 | G41: AM35 | H41: 8 | O41: =COUNTA(Y125:Y125) -> 1 | P41: Large scale Consolidated Afforestation/Reforestation Methodologies (AR-AM) | Y41: AM63 | Z41: 2 | AA41: 0
A42: ASB24 | B42: Grid emission factor for Sudan | C42: =+H304 -> 0 | D42: =+I304 -> 0 | G42: AM36 | H42: 24 | O42: =COUNTA(Y126:Y127) -> 2 | P42: Small scale Afforestation/Reforestation Methodologies (AR-AMS) | Y42: =+G70 -> AM64 | Z42: =+H70 -> 1 | AA42: 0
A43: ASB25 | B43: Cookstoves in Senegal | C43: 0 | D43: 0 | G43: AM37 | H43: 6 | I43: 1 | O43: =COUNTA(Y226:Y256) -> 31 | P43: Approved Standardized Baselines | Y43: AM65 | Z43: 3 | AA43: 0
A44: ASB26 | B44: Methane recovery from municipal wastewater treatment in Uganda | C44: 0 | D44: 0 | G44: AM38 | H44: 2 | O44: =SUM(O37:O43) -> 250 | P44: Total number of Approved Methodologies | Y44: AM66 | Z44: 1 | AA44: 0
A45: ASB27 | B45: Methane recovery from wastewater treatment in the sugar industry in Uganda | C45: 0 | D45: 0 | G45: AM39 | H45: 23 | J45: Replaced by ACM22 at EB69 | Y45: AM67 | Z45: 0 | AA45: 1
A46: ASB28 | B46: Fuel switch, technology switch and methane destruction in the charcoal sector of Senegal | C46: 0 | D46: 0 | G46: AM40 | H46: 1 | J46: Replaced by ACM15 | Y46: AM68 | Z46: 0 | AA46: 0
A47: ASB29 | B47: Fuel switch, technology switch and methane destruction in the charcoal sector of Côte d’Ivoire | C47: 0 | D47: 0 | G47: AM41 | H47: 3 | J47: Replaced by ACM21 at EB67 | Y47: AM69 | Z47: 2 | AA47: 0
A48: ASB30 | B48: Landfill gas capture and destruction in Rwanda | C48: 0 | D48: 0 | G48: AM42 | H48: 2 | J48: Replaced by ACM18 at EB99 | Y48: AM70 | Z48: 2 | AA48: 0
A49: ASB31 | B49: Grid emission factor for Grenada | C49: 0 | D49: 0 | G49: AM43 | H49: 1 | Y49: AM71 | Z49: 0 | AA49: 0
A50: ASB32 | B50: Cookstoves in Namibia | C50: =+H312 -> 0 | D50: =+I312 -> 0 | G50: AM44 | H50: 2 | Y50: AM72 | Z50: 2 | AA50: 0
A51: ASB33 | B51: Cookstoves in Togo | C51: 0 | D51: 0 | G51: AM45 | H51: 6 | Y51: AM73 | Z51: 3 | AA51: 0
A52: ASB34 | B52: Grid emission factor for the West African power pool | C52: =+H314 -> 3 | D52: =+I314 -> 0 | G52: AM46 | H52: 3 | Y52: =+G81 -> AM74 | Z52: 1 | AA52: 0
A53: ASB35 | B53: Cookstoves in Kenya | C53: 0 | D53: 0 | G53: AM47 | H53: 3 | J53: Replaced by ACM17 | Y53: AM75 | Z53: 0 | AA53: 0
A54: ASB36 | B54: Cookstoves in Malawi | C54: =+H316 -> 0 | D54: =+I316 -> 0 | G54: AM48 | H54: 8 | Y54: AM76 | Z54: 0 | AA54: 0
A55: ASB37 | B55: Cookstoves in Mali | C55: 0 | D55: 0 | G55: AM49 | H55: 4 | Y55: AM77 | Z55: 0 | AA55: 1
A56: ASB38 | B56: Grid emission factor for the electricity system of the Republic of Armenia for 2016 | C56: =+H318 -> 0 | D56: =+I318 -> 0 | G56: AM50 | H56: 2 | Y56: =+G85 -> AM78 | Z56: 4 | AA56: 0
A57: ASB39 | B57: Grid emission factor for Mongolia's national electricity grid | C57: 0 | D57: 0 | G57: AM51 | J57: Replace by ACM19 at EB73 | Y57: AM79 | Z57: 1 | AA57: 0
A58: ASB40 | B58: Emission Factor of the Electricity System of Southern Africa (update of ASB1) | C58: =+H320 -> 1 | D58: =+I320 -> 20 | G58: AM52 | H58: 3 | Y58: AM80 | Z58: 5 | AA58: 0
A59: ASB41 | B59: Fuel switch, technology switch and methane destruction in the charcoal sector of Rwanda | C59: 0 | D59: 0 | G59: AM53 | H59: 1 | Y59: AM81 | Z59: 0 | AA59: 0
A60: AR-ASB1 | B60: Afforestation and Reforestation projects in Namibia | C60: =+H322 -> 0 | D60: =+I322 -> 0 | G60: AM54 | J60: Replaced by ACM23 at EB75 | Y60: AM82 | Z60: 4 | AA60: 0
B61: Biofuels: | G61: AM55 | H61: 7 | Y61: AM83 | Z61: 1 | AA61: 0
A62: AM89 | B62: Production of diesel using a mixed feedstock of gasoil and vegetable oil | C62: =+H96 -> 0 | D62: =+I96 -> 0 | G62: AM56 | H62: 1 | Y62: AM84 | Z62: 2 | AA62: 0
A63: ACM17 | B63: Production of biodiesel for use as fuel | C63: =+H147 -> 13 | D63: =+I147 -> 0 | G63: AM57 | H63: 1 | Y63: =+G93 -> AM86 | Z63: =+H93 -> 1 | AA63: =+I93 -> 0
A64: AMS-I.G. | B64: Plant oil production and use for energy generation in stationary applications | C64: =+H187 -> 0 | D64: =+I187 -> 0 | G64: AM58 | H64: 18 | Y64: =+G95 -> AM88 | Z64: 1 | AA64: 0
A65: AMS-I.H. | B65: Biodiesel production and use for energy generation in stationary applications | C65: =+H188 -> 0 | D65: =+I188 -> 0 | G65: AM59 | H65: 4 | Y65: AM89 | Z65: 0 | AA65: 0
A66: AMS-III.T. | B66: Plant oil production and use for transport applications | C66: =+H233 -> 1 | D66: =+I233 -> 0 | G66: AM60 | I66: 1 | Y66: AM90 | Z66: 2 | AA66: 1
A67: AMS-III.AK. | B67: Biodiesel production and use for transport applications | C67: =+H250 -> 1 | D67: =+I250 -> 0 | G67: AM61 | H67: 3 | Y67: AM91 | Z67: =+H98 -> 0 | AA67: =+I98 -> 0
B68: Biomass: (not applicable for non-renewable biomass, EB21) | G68: AM62 | H68: 4 | I68: 1 | Y68: =+G99 -> AM92 | Z68: 1 | AA68: 0
A69: ACM3 | B69: Emission reduction through partial substitution of fossil fuels with alternative fuels in cement manufacture | C69: =H133 -> 44 | D69: =I133 -> 0 | G69: AM63 | H69: 2 | Y69: AM93 | Z69: =+H101 -> 0 | AA69: =+I101 -> 0
A70: ACM6 | B70: Grid-connected electricity from biomass residues (includes AM4 & AM15) | C70: =H136 -> 351 | D70: =I136 -> 2 | G70: AM64 | H70: 1 | Y70: =+G102 -> AM94 | Z70: 0 | AA70: 0
A71: ACM18 | B71: Electricity generation from biomass residues in power-only plants | C71: =+H148 -> 85 | D71: =+I148 -> 2 | G71: AM65 | H71: 3 | Y71: AM95 | Z71: 0 | AA71: 0
A72: ACM20 | B72: Co-firing of biomass residues for heat generation and/or electricity generation in grid connected power plants | C72: =+H150 -> 1 | D72: =+I150 -> 0 | G72: AM66 | H72: 1 | Y72: =+G104 -> AM96 | Z72: 0 | AA72: 0
A73: AM7 | B73: Analysis of the least-cost fuel option for seasonally-operating biomass cogeneration plants | C73: =H13 -> 0 | D73: =I13 -> 0 | G73: AM67 | I73: 1 | Y73: AM97 | Z73: 1 | AA73: 0
A74: AM36 | B74: Fuel switch from fossil fuels to biomass residues in boilers for heat generation | C74: =+H42 -> 24 | D74: =+I42 -> 0 | G74: AM68 | Y74: =+G106 -> AM98 | Z74: 0 | AA74: 0
A75: AM82 | B75: Use of charcoal from planted renewable biomass in the iron ore reduction process through the establishment of a new iron ore reduction system | C75: =+H89 -> 4 | D75: =+I89 -> 0 | G75: AM69 | H75: 2 | Y75: AM98 | Z75: 3 | AA75: 0
A76: AMS-I.E. | B76: Switch from Non-Renewable Biomass for Thermal Applications by the User | C76: =+H185 -> 28 | D76: =+I185 -> 28 | G76: AM70 | H76: 2 | Y76: =+G108 -> AM100 | Z76: 0 | AA76: 0
A77: AMS-II.G. | B77: Energy Efficiency Measures in Thermal Applications of Non-Renewable Biomass | C77: =+H200 -> 46 | D77: =+I200 -> 87 | G77: AM71 | Y77: =+G109 -> AM101 | Z77: 0 | AA77: 0
A78: AMS-III.AS. | B78: Switch from fossil fuel to biomass in existing manufacturing facilities for non-energy applications | C78: =+H258 -> 5 | D78: =+I258 -> 0 | G78: AM72 | H78: 2 | Y78: =+G111 -> AM103 | Z78: 1 | AA78: 0
B79: Cement: | C79: =+H71 -> 3 | D79: =+I71 -> 0 | G79: AM73 | H79: 3 | Y79: AM104 | Z79: 1 | AA79: 0
A80: AM121 | B80: Emission reduction from partial switching of raw materials and increasing the share of additives in the production of blended cement | C80: =+H129 -> 0 | D80: =+I129 -> 0
A81: ACM5 | B81: Increasing the blend in cement production | C81: =+H135 -> 73 | D81: =+I135 -> 0 | G81: AM74 | H81: 1 | Y81: =+G113 -> AM105 | Z81: =+H113 -> 0 | AA81: 0
A82: ACM15 | B82: Consolidated baseline and monitoring methodology for project activities using alternative raw materials that do not contain carbonates for clinker manufacturing in cement kilns | C82: =+H145 -> 11 | D82: =+I145 -> 0 | G82: AM75 | Y82: AM106 | Z82: 0 | AA82: 0
A83: AMS-III.AD. | B83: Emission reductions in hydraulic lime production | C83: =+H243 -> 1 | D83: =+I243 -> 0 | G83: AM76 | Y83: AM107 | Z83: 11 | AA83: 0
A84: AMS-III.BH. | B84: Displacement of production of brick and cement by manufacture and installation of gypsum concrete wall panels | C84: =+H272 -> 0 | D84: =+I272 -> 0 | G84: AM77 | I84: 1 | Y84: =+G116 -> AM108 | Z84: 0 | AA84: 0
B85: CO2 usage: | G85: AM78 | H85: 4 | Y85: AM109 | Z85: 1 | AA85: 0
A86: AM27 | B86: Substitution of CO2 from fossil or mineral origin by CO2 from renewable resources in production of inorganic compounds | C86: =H33 -> 1 | D86: =I33 -> 0 | G86: AM79 | H86: 1 | Y86: AM110 | Z86: 0 | AA86: 0
A87: AM63 | B87: Recovered of CO2 from tail gas in industrial facilities to substitute the use of fossil fuels for production of CO2 | C87: =+H69 -> 2 | D87: =+I69 -> 0 | G87: AM80 | H87: 5 | Y87: AM111 | Z87: 0 | AA87: 0
A88: AMS-III.J. | B88: Avoidance of fossil fuel combustion for carbon dioxide production to be used as raw material for industrial processes | C88: =+H223 -> 3 | D88: =+I223 -> 0 | G88: AM81 | Y88: AM112 | Z88: =+H120 -> 0 | AA88: 0
B89: Coal bed/mine methane (including other mines) | G89: AM82 | H89: 4 | Y89: AM113 | Z89: =+H121 -> 0 | AA89: 0
A90: ACM8 | B90: Coal bed methane and coal mine methane capture and use for power (electrical or motive) and heat/or destruction by flaring | C90: =H138 -> 142 | D90: =I138 -> 5 | G90: AM83 | H90: 1 | Y90: AM114 | Z90: 0 | AA90: 0
A91: AM64 | B91: Capture and utilisation or destruction of mine methane (excluding coal mines) or non mine methane | C91: =+H70 -> 1 | D91: =+I70 -> 0 | G91: AM84 | H91: 2 | Y91: AM115 | Z91: =+H123 -> 0 | AA91: =+I123 -> 0
A92: AMS-III.W. | B92: Methane capture and destruction in non-hydrocarbon mining activities | C92: =H236 -> 0 | D92: =I236 -> 0 | G92: AM85 | J92: Replaced by ACM20 at EB63 | Y92: AM116 | Z92: 0 | AA92: =+I124 -> 0
B93: Energy distribution: | G93: AM86 | H93: 1 | Y93: AM117 | Z93: 0 | AA93: =+I125 -> 1
A94: AM45 | B94: Grid connection of isolated electricity systems | C94: =+H51 -> 6 | D94: =+I51 -> 0 | G94: AM87 | J94: Replaced by ACM25 at EB83 | Y94: AM118 | Z94: 0 | AA94: 0
A95: AM58 | B95: Introduction of a new primary district heating system | C95: =+H64 -> 18 | D95: =+I64 -> 0 | G95: AM88 | H95: 1 | Y95: AM119 | Z95: =+H127 -> 0 | AA95: =+I127 -> 0
A96: AM67 | B96: Installation of energy efficient transformers in a power distribution grid | C96: =+H73 -> 0 | D96: =+I73 -> 1 | G96: AM89 | Y96: AM120 | Z96: 1 | AA96: 0
A97: AM97 | B97: Installation of high voltage direct current power transmission line | C97: =+H105 -> 1 | D97: =+I105 -> 0 | G97: AM90 | H97: 2 | I97: 1 | Y97: AM121 | Z97: =+H129 -> 0 | AA97: =+I129 -> 0
A98: AM104 | B98: Interconnection of electricity grids in countries with economic merit order dispatch | C98: =+H112 -> 1 | D98: =+I112 -> 0 | G98: AM91 | Y98: AM122 | Z98: =+H130 -> 0 | AA98: =+I130 -> 0
A99: AM108 | B99: Interconnection between electricity systems for energy exchange | C99: =+H116 -> 0 | D99: =+I116 -> 0 | G99: AM92 | H99: 1 | Y99: =+G131 -> ACM1 | Z99: 303 | AA99: 14
A100: AM117 | B100: Introduction of a new district cooling system | C100: =+H125 -> 0 | D100: =+I125 -> 1 | I100: 1 | Y100: ACM2 | Z100: 3999 | AA100: 79
A101: AM118 | B101: Introduction of low resistivity power transmission line | C101: =+H126 -> 0 | D101: =+I126 -> 0 | G101: AM93 | Y101: ACM3 | Z101: 44 | AA101: 0
A102: AMS-I.L. | B102: Electrification of rural communities using renewable energy | C102: =+H192 -> 0 | D102: =+I192 -> 6 | G102: AM94 | Y102: =+G135 -> ACM5 | Z102: =+H135 -> 73 | AA102: =+I135 -> 0
A103: AMS-II.A. | B103: Supply side energy efficiency improvements - transmission and distribution | C103: =H194 -> 4 | D103: =I194 -> 3 | G103: AM95 | Y103: ACM6 | Z103: 351 | AA103: 2
A104: AMS-II.T. | B104: Emission reduction through reactive power compensation in power distribution network | C104: =+H213 -> 0 | D104: =+I213 -> 0 | G104: AM96 | Y104: ACM7 | Z104: 30 | AA104: 0
A105: AMS-III.AW. | B105: Electrification of rural communities by grid extension | C105: =+H262 -> 1 | D105: =+I262 -> 0 | G105: AM97 | H105: 1 | Y105: ACM8 | Z105: 142 | AA105: 5
A106: AMS-III.BB. | B106: Electrification of communities through grid extension or construction of new mini-grids | C106: =+H266 -> 0 | D106: =+I266 -> 1 | G106: AM98 | Y106: ACM9 | Z106: 19 | AA106: 0
B107: Energy efficiency, Households: | G107: AM99 | H107: 3 | Y107: ACM10 | Z107: 23 | AA107: 0
A108: AM46 | B108: Distribution of efficient light bulbs to households | C108: =+H52 -> 3 | D108: =+I52 -> 0 | G108: AM100 | Y108: =+G141 -> ACM11 | Z108: 7 | AA108: 0
A109: AM70 | B109: Manufacturing of energy efficient domestic refrigerators | C109: =+H76 -> 2 | D109: =+I76 -> 0 | G109: AM101 | Y109: ACM12 | Z109: 398 | AA109: 3
A110: AM71 | B110: Manufacturing and servicing of domestic refrigeration appliances using a low GWP refrigerant | C110: =+H77 -> 0 | D110: =+I77 -> 0 | G110: AM102 | H110: 3 | J110: Replaced by ACM26 at EB87 | Y110: ACM13 | Z110: 53 | AA110: 0
A111: AM91 | B111: Energy efficiency technologies and fuel switching in new buildings | C111: =+H98 -> 0 | D111: =+I98 -> 0 | G111: AM103 | H111: 1 | J111: Top-down developed methodology | Y111: ACM14 | Z111: 48 | AA111: 2
A112: AM94 | B112: Distribution of biomass based stove and/or heater for household or institutional use | C112: =+H102 -> 0 | D112: =+I102 -> 0 | G112: AM104 | H112: 1 | Y112: ACM15 | Z112: 11 | AA112: 0
A113: AM113 | B113: Distribution of compact fluorescent lamps (CFL) and light-emitting diode (LED) lamps to households | C113: =+H121 -> 0 | D113: =+I121 -> 0 | E113: Top-down developed methodology | G113: AM105 | Y113: ACM16 | Z113: 15 | AA113: 1
A114: AM120 | B114: Energy-efficient refrigerators and air-conditioners | C114: =+H128 -> 1 | D114: =+I128 -> 0 | G114: AM106 | Y114: ACM17 | Z114: 13 | AA114: 0
A115: AMS-I.I. | B115: Biogas/biomass use for thermal application for households/small users | C115: =+H189 -> 0 | D115: =+I189 -> 10 | G115: AM107 | H115: 11 | Y115: ACM18 | Z115: 85 | AA115: 2
A116: AMS-I.K. | B116: Solar cookers for households | C116: =+H191 -> 0 | D116: =+I191 -> 0 | E116: Top-down developed methodology | G116: AM108 | Y116: ACM19 | Z116: 39 | AA116: 2
A117: AMS-II.C | B117: Demand-side energy efficiency programmes for specific technologies | C117: =H196 -> 35 | D117: =I196 -> 26 | G117: AM109 | H117: 1 | Y117: ACM20 | Z117: 1 | AA117: 0
A118: AMS-II.E. | B118: Energy efficiency and fuel switching measures for buildings | C118: =H198 -> 48 | D118: =I198 -> 5 | G118: AM110 | Y118: ACM21 | Z118: 2 | AA118: 1
A119: AMS-II.J. | B119: Demand-side activities for efficient lighting technologies (deemed savings) | C119: =+H203 -> 52 | D119: =+I203 -> 28 | G119: AM111 | Y119: ACM22 | Z119: 14 | AA119: 1
A120: AMS-II.M. | B120: Demand-side energy efficiency activities for installation of low-flow hot water savings devices | C120: =+H206 -> 0 | D120: =+I206 -> 2 | G120: AM112 | Y120: ACM23 | Z120: =+H153 -> 0 | AA120: =+I153 -> 0
A121: AMS-II.O. | B121: Dissemination of energy efficient household appliances | C121: =+H208 -> 0 | D121: =+I208 -> 0 | G121: AM113 | Y121: ACM24 | Z121: =+H154 -> 0 | AA121: =+I154 -> 1
A122: AMS-II.R. | B122: Energy efficiency space heating measures for residential buildings | C122: =+H211 -> 0 | D122: =+I211 -> 0 | E122: Top-down developed methodology | G122: AM114 | Y122: ACM25 | Z122: 2 | AA122: 0
A123: AMS-III.AE. | B123: Energy efficiency and renewable energy measures in new residential buildings | C123: =+H244 -> 0 | D123: =+I244 -> 1 | G123: AM115 | Y123: ACM26 | Z123: =+H156 -> 0 | AA123: =+I156 -> 0
A124: AMS-III.AR. | B124: Substituting fossil fuel based lighting with LED lighting systems | C124: =H257 -> 4 | D124: =I257 -> 20 | G124: AM116 | Y124: =+G170 -> AR-AM14 | Z124: =+H170 -> 1 | AA124: =+I170 -> 4
B125: Energy efficiency, Industry: | G125: AM117 | I125: 1 | Y125: =+G173 -> AR-ACM3 | Z125: =+H173 -> 8 | AA125: =+I173 -> 4
A126: AM17 | B126: Steam system efficiency improvement by replacing steam traps and returning condensate | C126: =H23 -> 0 | D126: =I23 -> 0 | G126: AM118 | Y126: =+G176 -> AR-AMS3 | Z126: =+H176 -> 2 | AA126: =+I176 -> 3
A127: AM18 | B127: Baseline methodology for steam optimization systems | C127: =H24 -> 15 | D127: =I24 -> 0 | G127: AM119 | Y127: =+G180 -> AR-AMS7 | Z127: 10 | AA127: 2
A128: AM38 | B128: Improved electrical energy efficiency of an existing submerged electric arc furnace used for the production of SiMn | C128: =+H44 -> 2 | D128: =+I44 -> 0 | G128: AM120 | H128: 1 | Y128: AMS-I.A. | Z128: 51 | AA128: 12
A129: AM44 | B129: Energy efficiency improvement projects: boiler rehabilitation or replacement in industrial and district heating sectors | C129: =+H50 -> 2 | D129: =+I50 -> 0 | G129: AM121 | Y129: =+G182 -> AMS-I.B. | Z129: =+H182 -> 4 | AA129: =+I182 -> 5
A130: AM56 | B130: Efficiency improvement by boiler replacement or rehabilitation and optional fuel switch in fossil fuel-fired steam boiler systems | C130: =+H62 -> 1 | D130: =+I62 -> 0 | G130: AM122 | Y130: =+G183 -> AMS-I.C. | Z130: 628 | AA130: 50
A131: AM68 | B131: Improved energy efficiency by modifying ferroalloy production facility | C131: =+H74 -> 0 | D131: =+I74 -> 0 | G131: ACM1 | H131: 303 | I131: 14 | Y131: AMS-I.D. | Z131: 3027 | AA131: 103
A132: AM88 | B132: Air separation using cryogenic energy recovered from the vaporization of LNG | C132: =+H95 -> 1 | D132: =+I95 -> 0 | G132: ACM2 | H132: 3999 | I132: 79 | Y132: AMS-I.E. | Z132: 28 | AA132: 28
A133: AM106 | B133: Energy efficiency improvements of a lime production facility through installation of new kilns | C133: =+H114 -> 0 | D133: =+I114 -> 0 | G133: ACM3 | H133: 44 | Y133: =+G186 -> AMS-I.F. | Z133: 84 | AA133: 45
A134: AM109 | B134: Introduction of hot supply of Direct Reduced Iron in Electric Arc Furnaces | C134: =+H117 -> 1 | D134: =+I117 -> 0 | G134: ACM4 | H134: 168 | J134: Replaced by ACM12 at EB32 | Y134: AMS-I.G. | Z134: 0 | AA134: 0
A135: AM114 | B135: Shift from electrolytic to catalytic process for recycling of chlorine from hydrogen chloride gas in isocyanate plants | C135: =+H122 -> 0 | D135: =+I122 -> 0 | G135: ACM5 | H135: 73 | Y135: AMS-I.H. | Z135: 0 | AA135: 0
A136: AMS-II.C. | B136: Demand-side energy efficiency programmes for specific technologies | C136: =H196 -> 35 | D136: =I196 -> 26 | G136: ACM6 | H136: 351 | I136: 2 | Y136: AMS-I.I. | Z136: 0 | AA136: 10
A137: AMS-II.D. | B137: Energy efficiency and fuel switching measures for industrial facilities | C137: =H197 -> 197 | D137: =I197 -> 10 | G137: ACM7 | H137: 30 | Y137: AMS-I.J. | Z137: =+H190 -> 0 | AA137: 8
A138: AMS-II.H. | B138: Energy efficiency measures through centralization of utility provisions of an industrial facility technology | C138: =+H201 -> 15 | D138: =+I201 -> 1 | G138: ACM8 | H138: 142 | I138: 5 | Y138: =+G191 -> AMS-I.K. | Z138: 0 | AA138: 0
A139: AMS-II.I. | B139: Efficient utilization of waste energy in industrial facilities | C139: =+H202 -> 0 | D139: =+I202 -> 0 | G139: ACM9 | H139: 19 | Y139: AMS-I.L. | Z139: 0 | AA139: 6
A140: AMS-II.S. | B140: Energy efficiency in motor systems | C140: =+H212 -> 0 | D140: =+I212 -> 0 | G140: ACM10 | H140: 23 | Y140: =+G193 -> AMS.I.M. | Z140: =+H193 -> 0 | AA140: =+I193 -> 0
A141: AMS-III.M. | B141: Reduction in consumption of electricity by recovering soda from paper manufacturingprocess | C141: =+H226 -> 5 | D141: =+I226 -> 0 | G141: ACM11 | H141: 7 | Y141: =+G194 -> AMS-II.A. | Z141: =+H194 -> 4 | AA141: 3
A142: AMS-III.V. | B142: Decrease of coke consumption in blast furnace by installing dust/sludge recycling system in steel works | C142: =+H235 -> 1 | D142: =+I235 -> 0 | G142: ACM12 | H142: 398 | I142: 3 | Y142: AMS-II.B. | Z142: 30 | AA142: 0
A143: AMS-III.Z. | B143: Fuel switch, process improvement and energy efficiency in brick manufacture | C143: =+H239 -> 22 | D143: =+I239 -> 8 | G143: ACM13 | H143: 53 | Y143: AMS-II.C. | Z143: 35 | AA143: 26
A144: AMS-III.AI | B144: Emission reductions through recovery of spent sulphuric acid | C144: =+H248 -> 0 | D144: =+I248 -> 0 | G144: ACM14 | H144: 48 | I144: 2 | Y144: AMS-II.D. | Z144: 197 | AA144: 10
A145: AMS-III.AJ. | B145: Recovery and recycling of materials from solid wastes | C145: =+H249 -> 1 | D145: =+I249 -> 0 | G145: ACM15 | H145: 11 | Y145: AMS-II.E. | Z145: 48 | AA145: 5
A146: AMS-III.BA. | B146: Recovery and recycling of materials from E-waste | C146: =+H265 -> 1 | D146: =+I265 -> 0 | G146: ACM16 | H146: 15 | I146: 1 | Y146: AMS-II.F. | Z146: 4 | AA146: 1
B147: Energy efficiency, own generation | G147: ACM17 | H147: 13 | Y147: AMS-II.G. | Z147: 46 | AA147: 87
A148: ACM12 | B148: GHG reductions for waste gas or waste heat or waste pressure based energy system | C148: =+H142 -> 398 | D148: =+I142 -> 3 | G148: ACM18 | H148: 85 | I148: 2 | Y148: AMS-II.H. | Z148: 15 | AA148: 1
A149: AM49 | B149: Gas based energy generation in an industrial facility | C149: =H55 -> 4 | D149: =I55 -> 0 | G149: ACM19 | H149: 39 | I149: 2 | Y149: AMS-II.I. | Z149: 0 | AA149: 0
A150: AM55 | B150: Recovery and utilization of waste gas in refinery facilities | C150: =+H61 -> 7 | D150: =+I61 -> 0 | G150: ACM20 | H150: 1 | Y150: AMS-II.J. | Z150: 52 | AA150: 28
A151: AM95 | B151: Waste gas based combined cycle power plant in a Greenfield iron and steel plant | C151: =+H103 -> 0 | D151: =+I103 -> 0 | G151: ACM21 | H151: 2 | I151: 1 | Y151: AMS-II.K. | Z151: 2 | AA151: 3
A152: AM98 | B152: Utilization of ammonium-plant off gas for steam generation | C152: =+H106 -> 0 | D152: =+I106 -> 0 | G152: ACM22 | H152: 14 | I152: 1 | Y152: =+G205 -> AMS-II.L. | Z152: 2 | AA152: 2
A153: AMS-III.Q. | B153: Waste gas based energy systems (gas/heat/pressure) | C153: =+H230 -> 143 | D153: =+I230 -> 2 | G153: ACM23 | Y153: AMS-II.M. | Z153: 0 | AA153: 2
B154: Energy efficiency, Service: | G154: ACM24 | I154: 1 | Y154: AMS-II.N. | Z154: 0 | AA154: 2
A155: AM20 | B155: Water pumping efficiency improvement | C155: =+H26 -> 0 | D155: =+I26 -> 0 | G155: ACM25 | H155: 2 | Y155: AMS-II.O. | Z155: 0 | AA155: 0
A156: AM60 | B156: Power saving through replacement by efficient chillers | C156: =+H66 -> 0 | D156: =+I66 -> 1 | G156: ACM26 | Y156: AMS-II.P. | Z156: 0 | AA156: 0
A157: AM86 | B157: Installation of zero energy water purifier for safe drinking water application | C157: =+H93 -> 1 | D157: =+I93 -> 0 | E157: =+J152 -> 0 | G157: AR-AM1 | H157: 7 | J157: Replaced by AR-ACM2 at EB50 | Y157: AMS-II.Q. | Z157: 0 | AA157: 1
A158: AM91 | B158: Energy efficiency technologies and fuel switching in new buildings | C158: =+H98 -> 0 | D158: =+I98 -> 0 | G158: AR-AM2 | H158: 3 | J158: Replaced by AR-ACM3 at EB70 | Y158: AMS-II.R | Z158: =+H211 -> 0 | AA158: =+I211 -> 0
A159: AM105 | B159: Improved energy efficiency in data centers through dynamic power management | C159: =+H113 -> 0 | D159: =+I113 -> 0 | G159: AR-AM3 | H159: 3 | J159: Replaced by AR-ACM1 at EB65 | Y159: AMS-II.S. | Z159: 0 | AA159: 0
A160: AMS-II.C | B160: Demand-side energy efficiency programmes for specific technologies | C160: =H196 -> 35 | D160: =I196 -> 26 | G160: AR-AM4 | H160: 9 | I160: 1 | J160: Replaced by AR-ACM3 at EB70 | Y160: AMS-II.T. | Z160: =+H213 -> 0 | AA160: =+I213 -> 0
A161: AMS-II.E. | B161: Energy efficiency and fuel switching measures for buildings | C161: =H198 -> 48 | D161: =I198 -> 5 | G161: AR-AM5 | H161: 11 | J161: Replaced by AR-ACM3 at EB70 | Y161: =+G214 -> AMS-III.A. | Z161: 0 | AA161: 0
A162: AMS-II.J. | B162: Demand-side activities for efficient lighting technologies (deemed savings) | C162: =+H203 -> 52 | D162: 28 | G162: AR-AM6 | J162: Replaced by AR-ACM1 at EB65 | Y162: AMS-III.B. | Z162: 88 | AA162: 3
A163: AMS-II.K. | B163: Installation of co-generation or tri-generation systems supplying energy to commercial buildings | C163: 2 | D163: 3 | G163: AR-AM7 | J163: Replaced by AR-ACM3 at EB70 | Y163: AMS-III.C. | Z163: 14 | AA163: 4
A164: AMS-II.L. | B164: Demand-side activities for efficient outdoor and street lighting technologies | C164: 2 | D164: 2 | G164: AR-AM8 | J164: Replaced by AR-ACM3 at EB70 | Y164: AMS-III.D. | Z164: 294 | AA164: 21
A165: AMS-II.N. | B165: Demand-side energy efficiency activities for installation of energy efficient lighting and/or controls in buildings (also multi-family) | C165: =+H207 -> 0 | D165: =+I207 -> 2 | E165: Top-down developed methodology | G165: AR-AM9 | H165: 2 | J165: Replaced by AR-ACM3 at EB70 | Y165: AMS-III.E. | Z165: 85 | AA165: 2
A166: AMS-II.Q. | B166: Energy efficiency and/or energy supply projects in commercial buildings | C166: =+H210 -> 0 | D166: =+I210 -> 1 | E166: Top-down developed methodology | G166: AR-AM10 | H166: 1 | J166: Replaced by AR-ACM3 at EB70 | Y166: AMS-III.F. | Z166: 104 | AA166: 13
A167: AMS-III.AV. | B167: Low greenhouse gas emitting water purification systems | C167: =+H261 -> 1 | D167: =+I261 -> 20 | G167: AR-AM11 | J167: Replaced by AR-ACM3 at EB70 | Y167: =+G220 -> AMS-III.G. | Z167: =+H220 -> 70 | AA167: =+I220 -> 4
B168: Energy efficiency, Supply side | G168: AR-AM12 | H168: 1 | J168: Replaced by AR-ACM3 at EB70 | Y168: AMS-III.H. | Z168: 358 | AA168: 20
A169: ACM7 | B169: Conversion from single cycle to combined cycle power generation | C169: =H137 -> 30 | D169: =I137 -> 0 | G169: AR-AM13 | J169: Replaced by AR-ACM3 at EB70 | Y169: AMS-III.I. | Z169: 12 | AA169: 0
A170: ACM13 | B170: New grid connected fossil fuel fired power plants using a less GHG intensive technology | C170: =+H143 -> 53 | D170: =+I143 -> 0 | G170: AR-AM14 | H170: 1 | I170: 4 | Y170: AMS-III.J. | Z170: 3 | AA170: 0
A171: ACM26 | B171: Fossil fuel based cogeneration for identified recipient facility(ies) | C171: =+H156 -> 0 | D171: =+I156 -> 0 | G171: AR-ACM1 | H171: 11 | J171: Replaced by AR-ACM3 at EB70 | Y171: AMS-III.K. | Z171: 2 | AA171: 0
A172: AM48 | B172: New cogeneration facilities supplying electricity and/or steam to multiple customers and displacing grid/off-grid steam and electricity generation with more carbon-intensive fuels | C172: =H54 -> 8 | D172: =I54 -> 0 | G172: AR-ACM2 | H172: 1 | J172: Replaced by AR-ACM3 at EB70 | Y172: AMS-III.L. | Z172: 1 | AA172: 0
A173: AM52 | B173: Increased electricity generation from existing hydropower stations through Decision Support System optimization | C173: =+H58 -> 3 | D173: =+I58 -> 0 | G173: AR-ACM3 | H173: 8 | I173: 4 | Y173: AMS-III.M. | Z173: 5 | AA173: 0
A174: AM61 | B174: Rehabilitation and/or energy efficiency improvement in existing power plants | C174: =+H67 -> 3 | D174: =+I67 -> 0 | G174: AR-AMS1 | H174: 26 | J174: Replaced by AR-AMS7 at EB68 | Y174: AMS-III.N. | Z174: 4 | AA174: 0
A175: AM62 | B175: Energy efficiency improvementr of a power plant through retrofitting turbines | C175: =+H68 -> 4 | D175: =+I68 -> 1 | G175: AR-AMS2 | J175: Replaced by AR-AMS7 at EB68 | Y175: AMS-III.O. | Z175: 1 | AA175: 0
A176: AM66 | B176: GHG emission reduction through waste heat utilization for pre-heaing of raw material in sponge iron manufacturing process | C176: =+H72 -> 1 | D176: =+I72 -> 0 | G176: AR-AMS3 | H176: 2 | I176: 3 | Y176: AMS-III.P. | Z176: 9 | AA176: 0
A177: AM76 | B177: Implementation of fossil fuel trigeneration systems in existing industrial facilities | C177: =H83 -> 0 | D177: =I83 -> 0 | G177: AR-AMS4 | H177: 2 | J177: Replaced by AR-AMS7 at EB68 | Y177: =+G230 -> AMS-III.Q. | Z177: =+H230 -> 143 | AA177: 2
A178: AM84 | B178: Installation of cogeneration system supplying electricity and chilled water to new and existing consumers | C178: =+H91 -> 2 | D178: =+I91 -> 0 | G178: AR-AMS5 | J178: Replaced by AR-AMS7 at EB68 | Y178: =+G231 -> AMS-III.R. | Z178: =+H231 -> 39 | AA178: 12
A179: AM99 | B179: Installation of a new natural gas fired gas turbine to an existing CHP plant | C179: =+H107 -> 3 | D179: =+I107 -> 0 | G179: AR-AMS6 | J179: Replaced by AR-AMS7 at EB68 | Y179: AMS-III.S. | Z179: 0 | AA179: 2
A180: AM107 | B180: New natural gas based cogeneration plant | C180: =+H115 -> 11 | D180: =+I115 -> 0 | G180: AR-AMS7 | H180: 10 | I180: 2 | Y180: AMS-III.T. | Z180: 1 | AA180: 0
A181: AM115 | B181: Recovery and utilization of coke oven gas from coke plants for LNG production | G181: AMS-I.A. | H181: 51 | I181: 12 | Y181: AMS-III.U. | Z181: 1 | AA181: 1
A182: ACM23 | B182: Introduction of an efficiency improvement technology in a boiler | C182: =+H153 -> 0 | D182: =+I153 -> 0 | G182: AMS-I.B. | H182: 4 | I182: 5 | Y182: AMS-III.V. | Z182: 1 | AA182: 0
A183: AMS-II.B. | B183: Supply side energy efficiency improvements - generation | C183: =H195 -> 30 | D183: =I195 -> 0 | G183: AMS-I.C. | H183: 628 | I183: 50 | Y183: AMS-III.W. | Z183: 0 | AA183: 0
A184: AMS-III.AC. | B184: Electricity and/or heat generation using fuel cell | C184: =+H242 -> 0 | D184: =+I242 -> 0 | G184: AMS-I.D. | H184: 3027 | I184: 103 | Y184: =+G237 -> AMS-III.X. | Z184: =+H237 -> 1 | AA184: 0
A185: AMS-III.AL. | B185: Conversion from single cycle to combined cycle power generation | C185: =+H251 -> 3 | D185: =+I251 -> 0 | G185: AMS-I.E. | H185: 28 | I185: 28 | Y185: AMS-III.Y. | Z185: 6 | AA185: 0
A186: AMS-III.BP. | B186: Emission reduction by shore-side electricity supply system | C186: =+H280 -> 0 | D186: =+I280 -> 0 | G186: AMS-I.F. | H186: 84 | I186: 45 | Y186: AMS-III.Z. | Z186: 22 | AA186: 8
B187: Fossil fuel switch: | G187: AMS-I.G. | Y187: AMS-III.AA. | Z187: 0 | AA187: 0
A188: ACM9 | B188: Industrial fuel switching from coal or petroleum fuels to natural gas | C188: =+H139 -> 19 | D188: =+I139 -> 0 | G188: AMS-I.H. | Y188: AMS-III.AB. | Z188: 0 | AA188: 0
A189: ACM11 | B189: Fuel switching from coal and/or petroleum fuels to natural gas in existing power plants for electricity generation | C189: =+H141 -> 7 | D189: =+I141 -> 0 | G189: AMS-I.I. | I189: 10 | Y189: AMS-III.AC. | Z189: 0 | AA189: 0
A190: ACM25 | B190: Construction of a new natural gas power plant | C190: =+H155 -> 2 | D190: =+I155 -> 0 | G190: AMS-I.J. | I190: 8 | Y190: AMS-III.AD. | Z190: 1 | AA190: 0
A191: AM50 | B191: Feed switch in integrated Ammonia-urea manufacturing industry | C191: =+H56 -> 2 | D191: =+I56 -> 0 | G191: AMS-I.K. | Y191: AMS-III.AE. | Z191: 0 | AA191: 1
A192: AMS-III.B. | B192: Switching fossil fuels | C192: =H215 -> 88 | D192: =I215 -> 3 | G192: AMS-I.L. | I192: 6 | Y192: AMS-III.AF. | Z192: 0 | AA192: 0
A193: AMS-III.AG. | B193: Switching from high carbon intensive grid electricity to low carbon intensive fossil fuel | C193: =+H246 -> 2 | D193: =+I246 -> 0 | G193: AMS.I.M. | Y193: AMS-III.AG. | Z193: 2 | AA193: 0
A194: AMS-III.AH. | B194: Shift from high carbon intensive fuel mix ratio to low carbon intensive fuel mix ratio | C194: =+H247 -> 4 | D194: =+I247 -> 0 | G194: AMS-II.A. | H194: 4 | I194: 3 | Y194: AMS-III.AH. | Z194: 4 | AA194: 0
A195: AMS-III.AM. | B195: Fuel switch in a cogeneration/trigeneration system | C195: =+H252 -> 4 | D195: =+I252 -> 0 | G195: AMS-II.B. | H195: 30 | Y195: =+G248 -> AMS-III.AI. | Z195: 0 | AA195: 0
A196: AMS-III.AN. | B196: Fossil fuel switch in existing manufacturing industries | C196: =+H253 -> 2 | D196: =+I253 -> 0 | G196: AMS-II.C. | H196: 35 | I196: 26 | Y196: AMS-III.AJ. | Z196: 1 | AA196: 0
B197: Fugitive emission from fuels: | G197: AMS-II.D. | H197: 197 | I197: 10 | Y197: AMS-III.AK. | Z197: 1 | AA197: 0
A198: AM9 | B198: Recovery and utilization of gas from oil wells that would otherwise be flared or vented | C198: =H15 -> 53 | D198: =I15 -> 3 | G198: AMS-II.E. | H198: 48 | I198: 5 | Y198: AMS-III.AL. | Z198: 3 | AA198: 0
A199: AM23 | B199: Leak reduction from natural gas pipeline compressor or gate stations | C199: =H29 -> 19 | D199: =I29 -> 0 | G199: AMS-II.F. | H199: 4 | I199: 1 | Y199: AMS-III.AM. | Z199: 4 | AA199: 0
A200: AM37 | B200: Flare reduction and gas utilization at oil and gas processing facilities | C200: =+H43 -> 6 | D200: =+I43 -> 1 | G200: AMS-II.G. | H200: 46 | I200: 87 | Y200: =+G253 -> AMS-III.AN. | Z200: =+H253 -> 2 | AA200: 0
... 153 more rows

Sheet Subtypes
H1: AM1 | K1: AM7 | N1: AM9 | Q1: AM14 | T1: AM17 | W1: AM18 | Z1: AM19 | AC1: AM20 | AF1: AM21 | AI1: AM23 | AL1: AM25 | AO1: AM26 | AR1: AM27 | AU1: AM28 | AX1: AM29 | BA1: AM30 | BD1: AM31 | BG1: AM34 | BJ1: AM35 | BM1: AM36 | BP1: AM37 | BS1: AM38 | BV1: AM39 | BY1: AM42 | CB1: AM43 | CE1: AM44 | CH1: AM45 | CK1: AM46 | CN1: AM48 | CQ1: AM49 | CT1: AM50 | CW1: AM51 | CZ1: AM52 | DC1: AM53 | DF1: AM55 | DI1: AM56 | DL1: AM57 | DO1: AM58 | DR1: AM59 | DU1: AM60 | DX1: AM61 | EA1: AM62 | ED1: AM63 | EG1: AM64 | EJ1: AM65 | EM1: AM66 | EP1: AM67 | ES1: AM68 | EV1: AM69 | EY1: AM70 | FB1: AM71 | FE1: AM72 | FH1: AM73 | FK1: AM74 | FN1: AM75 | FQ1: AM76 | FT1: AM77 | FW1: AM78 | FZ1: AM79 | GC1: AM80 | GF1: AM81 | GI1: AM82 | GL1: AM83 | GO1: AM84 | GR1: AM86 | GU1: AM87 | GX1: AM88 | HA1: AM89 | HD1: AM90 | HG1: AM91 | HJ1: AM92 | HM1: AM93 | HP1: AM94 | HS1: AM95 | HV1: AM96 | HY1: AM97 | IB1: AM98 | IE1: AM98 | IH1: AM100 | IK1: AM101 | IN1: AM102 | IQ1: AM103 | IT1: AM104 | IW1: AM105 | IZ1: AM106 | JC1: AM107 | JF1: AM108 | JI1: AM109 | JL1: AM110 | JO1: AM111 | JR1: AM112 | JU1: AM113 | JX1: AM114 | KA1: ACM1 | KD1: ACM2 | KG1: ACM3 | KJ1: ACM5 | KM1: ACM6 | KP1: ACM7 | KS1: ACM8 | KV1: ACM9 | KY1: ACM10 | LB1: ACM11 | LE1: ACM12 | LH1: ACM13 | LK1: ACM14 | LN1: ACM15 | LQ1: ACM16 | LT1: ACM17 | LW1: ACM18 | LZ1: ACM19 | MC1: ACM20 | MF1: ACM21 | MI1: ACM22 | ML1: ACM23 | MO1: ACM24 | MR1: AR-AM14 | MU1: AR-ACM3 | MX1: AR-AMS3 | NA1: AR-AMS7 | ND1: AMS-I.A. | NG1: AMS-I.B. | NJ1: AMS-I.C. | NM1: AMS-I.D. | NP1: AMS-I.E. | NS1: AMS-I.F. | NV1: AMS-I.G. | NY1: AMS-I.H. | OB1: AMS-I.I. | OE1: AMS-I.J. | OH1: AMS-I.K. | OK1: AMS-I.L. | ON1: AMS-II.A. | OQ1: AMS-II.B. | OT1: AMS-II.C. | OW1: AMS-II.D. | OZ1: AMS-II.E. | PC1: AMS-II.F. | PF1: AMS-II.G. | PI1: AMS-II.H. | PL1: AMS-II.I. | PO1: AMS-II.J. | PR1: AMS-II.K. | PU1: AMS-II.L. | PX1: AMS-II.M. | QA1: AMS-II.N. | QD1: AMS-II.O. | QG1: AMS-II.P. | QJ1: AMS-II.Q. | QM1: AMS-III.A. | QP1: AMS-III.B. | QS1: AMS-III.C. | QV1: AMS-III.D. | QY1: AMS-III.E. | RB1: AMS-III.F. | RH1: AMS-III.G. | RK1: AMS-III.H. | RN1: AMS-III.I. | RQ1: AMS-III.J. | RT1: AMS-III.K. | RW1: AMS-III.L. | RZ1: AMS-III.M. | SC1: AMS-III.N. | SF1: AMS-III.O. | SI1: AMS-III.P. | SL1: AMS-III.Q. | SO1: AMS-III.R. | SR1: AMS-III.S. | SU1: AMS-III.T. | SX1: AMS-III.U. | TA1: AMS-III.V. | TD1: AMS-III.W. | TG1: AMS-III.X. | TJ1: AMS-III.Y. | TM1: AMS-III.Z. | TP1: AMS-III.AA. | TS1: AMS-III.AB. | TV1: AMS-III.AC. | TY1: AMS-III.AD. | UB1: AMS-III.AE. | UE1: AMS-III.AF. | UH1: AMS-III.AG. | UK1: AMS-III.AH. | UN1: AMS-III.AI. | UQ1: AMS-III.AJ. | UT1: AMS-III.AK. | UW1: AMS-III.AL. | UZ1: AMS-III.AM. | VC1: AMS-III.AN. | VF1: AMS-III.AO. | VI1: AMS-III.AP. | VL1: AMS-III.AQ. | VO1: AMS-III.AR. | VR1: AMS-III.AS. | VU1: AMS-III.AT. | VX1: AMS-III.AU. | WA1: AMS-III.AX. | WD1: AMS-III.AY. | WG1: AMS-III.BA. | WJ1: AMS-III.BB. | WM1: AMS-III.BC. | WP1: AMS-III.BD. | WS1: AMS-III.BE. | WV1: AMS-III.BF. | WY1: AMS-III.BG. | XB1: AMS-III.BH. | XE1: AMS-III.BI. | XH1: AMS-III.BJ. | XK1: AMS-III.BK.
B2: Approved Methodology | C2: No. of | D2: Av. Issu. | E2: All AMs that are alive | I2: AM1 | L2: AM7 | O2: AM9 | R2: AM17 | U2: AM18 | X2: AM19 | AA2: AM20 | AD2: AM21 | AG2: AM23 | AJ2: AM26 | AM2: AM27 | AP2: AM28 | AS2: AM30 | AV2: AM31 | AY2: AM35 | BB2: AM36 | BE2: AM37 | BH2: AM38 | BK2: AM43 | BN2: AM44 | BQ2: AM45 | BT2: AM46 | BW2: AM48 | BZ2: AM49 | CC2: AM50 | CF2: AM52 | CI2: AM53 | CL2: AM55 | CO2: AM56 | CR2: AM57 | CU2: AM58 | CX2: AM59 | DA2: AM60 | DD2: AM61 | DG2: AM62 | DJ2: AM63 | DM2: AM64 | DP2: AM65 | DS2: AM66 | DV2: AM67 | DY2: AM68 | EB2: AM69 | EE2: AM70 | EH2: AM71 | EK2: AM72 | EN2: AM73 | EQ2: AM74 | ET2: AM75 | EW2: AM76 | EZ2: AM77 | FC2: AM78 | FF2: AM79 | FI2: AM80 | FL2: AM81 | FO2: AM82 | FR2: AM83 | FU2: AM84 | FX2: AM86 | GA2: AM88 | GD2: AM89 | GG2: AM90 | GJ2: AM91 | GM2: AM92 | GP2: AM93 | GS2: AM94 | GV2: AM95 | GY2: AM96 | HB2: AM97 | HE2: AM98 | HH2: AM98 | HK2: AM100 | HN2: AM101 | HQ2: AM103 | HT2: AM104 | HZ2: AM105 | IC2: AM106 | IF2: AM107 | II2: AM108 | IL2: AM109 | IO2: AM110 | IR2: AM111 | IU2: AM112 | IX2: AM113 | JA2: AM114 | JD2: AM115 | JG2: AM116 | JJ2: AM117 | JM2: AM118 | JP2: AM119 | JS2: AM120 | JV2: AM121 | JY2: AM122 | KB2: ACM1 | KE2: ACM2 | KH2: ACM3 | KK2: ACM5 | KN2: ACM6 | KQ2: ACM7 | KT2: ACM8 | KW2: ACM9 | KZ2: ACM10 | LC2: ACM11 | LF2: ACM12 | LI2: ACM13 | LL2: ACM14 | LO2: ACM15 | LR2: ACM16 | LU2: ACM17 | LX2: ACM18 | MA2: ACM19 | MD2: ACM20 | MG2: ACM21 | MJ2: ACM22 | MM2: ACM23 | MP2: ACM24 | MS2: ACM25 | MV2: ACM26 | MY2: AR-AM14 | NB2: AR-ACM3 | NE2: AR-AMS3 | NH2: AR-AMS7 | NK2: AMS-I.A. | NN2: AMS-I.B. | NQ2: AMS-I.C. | NT2: AMS-I.D. | NW2: AMS-I.E. | NZ2: AMS-I.F. | OC2: AMS-I.G. | OF2: AMS-I.H. | OI2: AMS-I.I. | OL2: AMS-I.J. | OO2: AMS-I.K. | OR2: AMS-I.L. | OU2: AMS.I.M. | OX2: AMS-II.A. | PA2: AMS-II.B. | PD2: AMS-II.C. | PG2: AMS-II.D. | PJ2: AMS-II.E. | PM2: AMS-II.F. | PP2: AMS-II.G. | PS2: AMS-II.H. | PV2: AMS-II.I. | PY2: AMS-II.J. | QB2: AMS-II.K. | QE2: AMS-II.L. | QH2: AMS-II.M. | QK2: AMS-II.N. | QN2: AMS-II.O. | QQ2: AMS-II.P. | QT2: AMS-II.Q. | QW2: AMS-II.R | QZ2: AMS-II.S. | RC2: AMS-II.T. | RF2: AMS-III.A. | RI2: AMS-III.B. | RL2: AMS-III.C. | RO2: AMS-III.D. | RR2: AMS-III.E. | RU2: AMS-III.F. | RX2: AMS-III.G. | SA2: AMS-III.H. | SD2: AMS-III.I. | SG2: AMS-III.J. | SJ2: AMS-III.K. | SM2: AMS-III.L. | SP2: AMS-III.M. | SS2: AMS-III.N. | SV2: AMS-III.O. | SY2: AMS-III.P. | TB2: AMS-III.Q. | TE2: AMS-III.R. | TH2: AMS-III.S. | TK2: AMS-III.T. | TN2: AMS-III.U. | TQ2: AMS-III.V. | TT2: AMS-III.W. | TW2: AMS-III.X. | TZ2: AMS-III.Y. | UC2: AMS-III.Z. | UF2: AMS-III.AA. | UI2: AMS-III.AB. | UL2: AMS-III.AC. | UO2: AMS-III.AD. | UR2: AMS-III.AE. | UU2: AMS-III.AF. | UX2: AMS-III.AG. | VA2: AMS-III.AH. | VD2: AMS-III.AI. | VG2: AMS-III.AJ. | VJ2: AMS-III.AK. | VM2: AMS-III.AL. | VP2: AMS-III.AM. | VS2: AMS-III.AN. | VV2: AMS-III.AO. | VY2: AMS-III.AP. | WB2: AMS-III.AQ. | WE2: AMS-III.AR. | WH2: AMS-III.AS. | WK2: AMS-III.AT. | WN2: AMS-III.AU. | WQ2: AMS-III.AX. | WT2: AMS-III.AY. | WW2: AMS-III.BA. | WZ2: AMS-III.BB. | XC2: AMS-III.BC. | XF2: AMS-III.BD. | XI2: AMS-III.BE. | XL2: AMS-III.BF. | XO2: AMS-III.BG. | XR2: AMS-III.BH. | XU2: AMS-III.BI. | XX2: AMS-III.BJ. | YA2: AMS-III.BK. | YD2: AMS-III.BL. | YG2: AMS-III.BM. | YJ2: AMS-III.BN. | YM2: AMS-III.BO. | YP2: AMS-III.BP. | YS2: ASB2 | YV2: ASB5 | YY2: ASB11 | ZB2: ASB15 | ZE2: ASB16 | ZH2: ASB17 | ZK2: ASB18 | ZN2: ASB19 | ZQ2: ASB20 | ZT2: ASB21 | ZW2: ASB22 | ZZ2: ASB23 | AAC2: ASB24 | AAF2: ASB25 | AAI2: ASB26 | AAL2: ASB27 | AAO2: ASB28 | AAR2: ASB29 | AAU2: ASB30 | AAX2: ASB31 | ABA2: ASB32 | ABD2: ASB33 | ABG2: ASB34 | ABJ2: ASB35 | ABM2: ASB36 | ABP2: ASB37 | ABS2: ASB38 | ABV2: ASB39 | ABY2: ASB40 | ACB2: ASB41 | ACE2: AR-ASB1 | ACH2: AR-ASB1 | ACK2: ASB34 | ACN2: ASB35 | ACQ2: ASB36 | ACT2: ASB37 | ACW2: ASB38 | ACZ2: AR-ASB1
A3: Type/sub-type | B3: Status: | C3: projects | D3: succes | E3: Prereg | F3: Reg | G3: Issu. | H3: Prereg | I3: Reg | J3: Issu. | K3: Prereg | L3: Reg | M3: Issu. | N3: Prereg | O3: Reg | P3: Issu. | Q3: Prereg | R3: Reg | S3: Issu. | T3: Prereg | U3: Reg | V3: Issu. | W3: Prereg | X3: Reg | Y3: Issu. | Z3: Prereg | AA3: Reg | AB3: Issu. | AC3: Prereg | AD3: Reg | AE3: Issu. | AF3: Prereg | AG3: Reg | AH3: Issu. | AI3: Prereg | AJ3: Reg | AK3: Issu. | AL3: Prereg | AM3: Reg | AN3: Issu. | AO3: Prereg | AP3: Reg | AQ3: Issu. | AR3: Prereg | AS3: Reg | AT3: Issu. | AU3: Prereg | AV3: Reg | AW3: Issu. | AX3: Prereg | AY3: Reg | AZ3: Issu. | BA3: Prereg | BB3: Reg | BC3: Issu. | BD3: Prereg | BE3: Reg | BF3: Issu. | BG3: Prereg | BH3: Reg | BI3: Issu. | BJ3: Prereg | BK3: Reg | BL3: Issu. | BM3: Prereg | BN3: Reg | BO3: Issu. | BP3: Prereg | BQ3: Reg | BR3: Issu. | BS3: Prereg | BT3: Reg | BU3: Issu. | BV3: Prereg | BW3: Reg | BX3: Issu. | BY3: Prereg | BZ3: Reg | CA3: Issu. | CB3: Prereg | CC3: Reg | CD3: Issu. | CE3: Prereg | CF3: Reg | CG3: Issu. | CH3: Prereg | CI3: Reg | CJ3: Issu. | CK3: Prereg | CL3: Reg | CM3: Issu. | CN3: Prereg | CO3: Reg | CP3: Issu. | CQ3: Prereg | CR3: Reg | CS3: Issu. | CT3: Prereg | CU3: Reg | CV3: Issu. | CW3: Prereg | CX3: Reg | CY3: Issu. | CZ3: Prereg | DA3: Reg | DB3: Issu. | DC3: Prereg | DD3: Reg | DE3: Issu. | DF3: Prereg | DG3: Reg | DH3: Issu. | DI3: Prereg | DJ3: Reg | DK3: Issu. | DL3: Prereg | DM3: Reg | DN3: Issu. | DO3: Prereg | DP3: Reg | DQ3: Issu. | DR3: Prereg | DS3: Reg | DT3: Issu. | DU3: Prereg | DV3: Reg | DW3: Issu. | DX3: Prereg | DY3: Reg | DZ3: Issu. | EA3: Prereg | EB3: Reg | EC3: Issu. | ED3: Prereg | EE3: Reg | EF3: Issu. | EG3: Prereg | EH3: Reg | EI3: Issu. | EJ3: Prereg | EK3: Reg | EL3: Issu. | EM3: Prereg | EN3: Reg | EO3: Issu. | EP3: Prereg | EQ3: Reg | ER3: Issu. | ES3: Prereg | ET3: Reg | EU3: Issu. | EV3: Prereg | EW3: Reg | EX3: Issu. | EY3: Prereg | EZ3: Reg | FA3: Issu. | FB3: Prereg | FC3: Reg | FD3: Issu. | FE3: Prereg | FF3: Reg | FG3: Issu. | FH3: Prereg | FI3: Reg | FJ3: Issu. | FK3: Prereg | FL3: Reg | FM3: Issu. | FN3: Prereg | FO3: Reg | FP3: Issu. | FQ3: Prereg | FR3: Reg | FS3: Issu. | FT3: Prereg | FU3: Reg | FV3: Issu. | FW3: Prereg | FX3: Reg | FY3: Issu. | FZ3: Prereg | GA3: Reg | GB3: Issu. | GC3: Prereg | GD3: Reg | GE3: Issu. | GF3: Prereg | GG3: Reg | GH3: Issu. | GI3: Prereg | GJ3: Reg | GK3: Issu. | GL3: Prereg | GM3: Reg | GN3: Issu. | GO3: Prereg | GP3: Reg | GQ3: Issu. | GR3: Prereg | GS3: Reg | GT3: Issu. | GU3: Prereg | GV3: Reg | GW3: Issu. | GX3: Prereg | GY3: Reg | GZ3: Issu. | HA3: Prereg | HB3: Reg | HC3: Issu. | HD3: Prereg | HE3: Reg | HF3: Issu. | HG3: Prereg | HH3: Reg | HI3: Issu. | HJ3: Prereg | HK3: Reg | HL3: Issu. | HM3: Prereg | HN3: Reg | HO3: Issu. | HP3: Prereg | HQ3: Reg | HR3: Issu. | HS3: Prereg | HT3: Reg | HU3: Issu. | HV3: Prereg | HW3: Reg | HX3: Issu. | HY3: Prereg | HZ3: Reg | IA3: Issu. | IB3: Prereg | IC3: Reg | ID3: Issu. | IE3: Prereg | IF3: Reg | IG3: Issu. | IH3: Prereg | II3: Reg | IJ3: Issu. | IK3: Prereg | IL3: Reg | IM3: Issu. | IN3: Prereg | IO3: Reg | IP3: Issu. | IQ3: Prereg | IR3: Reg | IS3: Issu. | IT3: Prereg | IU3: Reg | IV3: Issu. | IW3: Prereg | IX3: Reg | IY3: Issu. | IZ3: Prereg | JA3: Reg | JB3: Issu. | JC3: Prereg | JD3: Reg | JE3: Issu. | JF3: Prereg | JG3: Reg | JH3: Issu. | JI3: Prereg | JJ3: Reg | JK3: Issu. | JL3: Prereg | JM3: Reg | JN3: Issu. | JO3: Prereg | JP3: Reg | JQ3: Issu. | JR3: Prereg | JS3: Reg | JT3: Issu. | JU3: Prereg | JV3: Reg | JW3: Issu. | JX3: Prereg | JY3: Reg | JZ3: Issu. | KA3: Prereg | KB3: Reg | KC3: Issu. | KD3: Prereg | KE3: Reg | KF3: Issu. | KG3: Prereg | KH3: Reg | KI3: Issu. | KJ3: Prereg | KK3: Reg | KL3: Issu. | KM3: Prereg | KN3: Reg | KO3: Issu. | KP3: Prereg | KQ3: Reg | KR3: Issu. | KS3: Prereg | KT3: Reg | KU3: Issu. | KV3: Prereg | KW3: Reg | KX3: Issu. | KY3: Prereg | KZ3: Reg | LA3: Issu. | LB3: Prereg | LC3: Reg | LD3: Issu. | LE3: Prereg | LF3: Reg | LG3: Issu. | LH3: Prereg | LI3: Reg | LJ3: Issu. | LK3: Prereg | LL3: Reg | LM3: Issu. | LN3: Prereg | LO3: Reg | LP3: Issu. | LQ3: Prereg | LR3: Reg | LS3: Issu. | LT3: Prereg | LU3: Reg | LV3: Issu. | LW3: Prereg | LX3: Reg | LY3: Issu. | LZ3: Prereg | MA3: Reg | MB3: Issu. | MC3: Prereg | MD3: Reg | ME3: Issu. | MF3: Prereg | MG3: Reg | MH3: Issu. | MI3: Prereg | MJ3: Reg | MK3: Issu. | ML3: Prereg | MM3: Reg | MN3: Issu. | MO3: Prereg | MP3: Reg | MQ3: Issu. | MR3: Prereg | MS3: Reg | MT3: Issu. | MU3: Prereg | MV3: Reg | MW3: Issu. | MX3: Prereg | MY3: Reg | MZ3: Issu. | NA3: Prereg | NB3: Reg | NC3: Issu. | ND3: Prereg | NE3: Reg | NF3: Issu. | NG3: Prereg | NH3: Reg | NI3: Issu. | NJ3: Prereg | NK3: Reg | NL3: Issu. | NM3: Prereg | NN3: Reg | NO3: Issu. | NP3: Prereg | NQ3: Reg | NR3: Issu. | NS3: Prereg | NT3: Reg | NU3: Issu. | NV3: Prereg | NW3: Reg | NX3: Issu. | NY3: Prereg | NZ3: Reg | OA3: Issu. | OB3: Prereg | OC3: Reg | OD3: Issu. | OE3: Prereg | OF3: Reg | OG3: Issu. | OH3: Prereg | OI3: Reg | OJ3: Issu. | OK3: Prereg | OL3: Reg | OM3: Issu. | ON3: Prereg | OO3: Reg | OP3: Issu. | OQ3: Prereg | OR3: Reg | OS3: Issu. | OT3: Prereg | OU3: Reg | OV3: Issu. | OW3: Prereg | OX3: Reg | OY3: Issu. | OZ3: Prereg | PA3: Reg | PB3: Issu. | PC3: Prereg | PD3: Reg | PE3: Issu. | PF3: Prereg | PG3: Reg | PH3: Issu. | PI3: Prereg | PJ3: Reg | PK3: Issu. | PL3: Prereg | PM3: Reg | PN3: Issu. | PO3: Prereg | PP3: Reg | PQ3: Issu. | PR3: Prereg | PS3: Reg | PT3: Issu. | PU3: Prereg | PV3: Reg | PW3: Issu. | PX3: Prereg | PY3: Reg | PZ3: Issu. | QA3: Prereg | QB3: Reg | QC3: Issu. | QD3: Prereg | QE3: Reg | QF3: Issu. | QG3: Prereg | QH3: Reg | QI3: Issu. | QJ3: Prereg | QK3: Reg | QL3: Issu. | QM3: Prereg | QN3: Reg | QO3: Issu. | QP3: Prereg | QQ3: Reg | QR3: Issu. | QS3: Prereg | QT3: Reg | QU3: Issu. | QV3: Prereg | QW3: Reg | QX3: Issu. | QY3: Prereg | QZ3: Reg | RA3: Issu. | RB3: Prereg | RC3: Reg | RD3: Issu. | RE3: Prereg | RF3: Reg | RG3: Issu. | RH3: Prereg | RI3: Reg | RJ3: Issu. | RK3: Prereg | RL3: Reg | RM3: Issu. | RN3: Prereg | RO3: Reg | RP3: Issu. | RQ3: Prereg | RR3: Reg | RS3: Issu. | RT3: Prereg | RU3: Reg | RV3: Issu. | RW3: Prereg | RX3: Reg | RY3: Issu. | RZ3: Prereg | SA3: Reg | SB3: Issu. | SC3: Prereg | SD3: Reg | SE3: Issu. | SF3: Prereg | SG3: Reg | SH3: Issu. | SI3: Prereg | SJ3: Reg | SK3: Issu. | SL3: Prereg | SM3: Reg | SN3: Issu. | SO3: Prereg | SP3: Reg | SQ3: Issu. | SR3: Prereg | SS3: Reg | ST3: Issu. | SU3: Prereg | SV3: Reg | SW3: Issu. | SX3: Prereg | SY3: Reg | SZ3: Issu. | TA3: Prereg | TB3: Reg | TC3: Issu. | TD3: Prereg | TE3: Reg | TF3: Issu. | TG3: Prereg | TH3: Reg | TI3: Issu. | TJ3: Prereg | TK3: Reg | TL3: Issu. | TM3: Prereg | TN3: Reg | TO3: Issu. | TP3: Prereg | TQ3: Reg | TR3: Issu. | TS3: Prereg | TT3: Reg | TU3: Issu. | TV3: Prereg | TW3: Reg | TX3: Issu. | TY3: Prereg | TZ3: Reg | UA3: Issu. | UB3: Prereg | UC3: Reg | UD3: Issu. | UE3: Prereg | UF3: Reg | UG3: Issu. | UH3: Prereg | UI3: Reg | UJ3: Issu. | UK3: Prereg | UL3: Reg | UM3: Issu. | UN3: Prereg | UO3: Reg | UP3: Issu. | UQ3: Prereg | UR3: Reg | US3: Issu. | UT3: Prereg | UU3: Reg | UV3: Issu. | UW3: Prereg | UX3: Reg | UY3: Issu. | UZ3: Prereg | VA3: Reg | VB3: Issu. | VC3: Prereg | VD3: Reg | VE3: Issu. | VF3: Prereg | VG3: Reg | VH3: Issu. | VI3: Prereg | VJ3: Reg | VK3: Issu. | VL3: Prereg | VM3: Reg | VN3: Issu. | VO3: Prereg | VP3: Reg | VQ3: Issu. | VR3: Prereg | VS3: Reg | VT3: Issu. | VU3: Prereg | VV3: Reg | VW3: Issu. | VX3: Prereg | VY3: Reg | VZ3: Issu. | WA3: Prereg | WB3: Reg | WC3: Issu. | WD3: Prereg | WE3: Reg | WF3: Issu. | WG3: Prereg | WH3: Reg | WI3: Issu. | WJ3: Prereg | WK3: Reg | WL3: Issu. | WM3: Prereg | WN3: Reg | WO3: Issu. | WP3: Prereg | WQ3: Reg | WR3: Issu. | WS3: Prereg | WT3: Reg | WU3: Issu. | WV3: Prereg | WW3: Reg | WX3: Issu. | WY3: Prereg | WZ3: Reg | XA3: Issu. | XB3: Prereg | XC3: Reg | XD3: Issu. | XE3: Prereg | XF3: Reg | XG3: Issu. | XH3: Prereg | XI3: Reg | XJ3: Issu. | XK3: Prereg | XL3: Reg | XM3: Issu. | XN3: Prereg | XO3: Reg | XP3: Issu. | XQ3: Prereg | XR3: Reg | XS3: Issu. | XT3: Prereg | XU3: Reg | XV3: Issu. | XW3: Prereg | XX3: Reg | XY3: Issu. | XZ3: Prereg | YA3: Reg | YB3: Issu. | YC3: Prereg | YD3: Reg | YE3: Issu. | YF3: Prereg | YG3: Reg | YH3: Issu. | YI3: Prereg | YJ3: Reg | YK3: Issu. | YL3: Prereg | YM3: Reg | YN3: Issu. | YO3: Prereg | YP3: Reg | YQ3: Issu. | YR3: Prereg | YS3: Reg | YT3: Issu. | YU3: Prereg | YV3: Reg | YW3: Issu. | YX3: Prereg | YY3: Reg | YZ3: Issu. | ZA3: Prereg | ZB3: Reg | ZC3: Issu. | ZD3: Prereg | ZE3: Reg | ZF3: Issu. | ZG3: Prereg | ZH3: Reg | ZI3: Issu. | ZJ3: Prereg | ZK3: Reg | ZL3: Issu. | ZM3: Prereg | ZN3: Reg | ZO3: Issu. | ZP3: Prereg | ZQ3: Reg | ZR3: Issu. | ZS3: Prereg | ZT3: Reg | ZU3: Issu. | ZV3: Prereg | ZW3: Reg | ZX3: Issu. | ZY3: Prereg | ZZ3: Reg | AAA3: Issu. | AAB3: Prereg | AAC3: Reg | AAD3: Issu. | AAE3: Prereg | AAF3: Reg | AAG3: Issu. | AAH3: Prereg | AAI3: Reg | AAJ3: Issu. | AAK3: Prereg | AAL3: Reg | AAM3: Issu. | AAN3: Prereg | AAO3: Reg | AAP3: Issu. | AAQ3: Prereg | AAR3: Reg | AAS3: Issu. | AAT3: Prereg | AAU3: Reg | AAV3: Issu. | AAW3: Prereg | AAX3: Reg | AAY3: Issu. | AAZ3: Prereg | ABA3: Reg | ABB3: Issu. | ABC3: Prereg | ABD3: Reg | ABE3: Issu. | ABF3: Prereg | ABG3: Reg | ABH3: Issu. | ABI3: Prereg | ABJ3: Reg | ABK3: Issu. | ABL3: Prereg | ABM3: Reg | ABN3: Issu. | ABO3: Prereg | ABP3: Reg | ABQ3: Issu. | ABR3: Prereg | ABS3: Reg | ABT3: Issu. | ABU3: Prereg | ABV3: Reg | ABW3: Issu. | ABX3: Prereg | ABY3: Reg | ABZ3: Issu. | ACA3: Prereg | ACB3: Reg | ACC3: Issu. | ACD3: Prereg | ACE3: Reg | ACF3: Issu. | ACG3: Prereg | ACH3: Reg | ACI3: Issu. | ACJ3: Prereg | ACK3: Reg | ACL3: Issu. | ACM3: Prereg | ACN3: Reg | ACO3: Issu. | ACP3: Prereg | ACQ3: Reg | ACR3: Issu. | ACS3: Prereg | ACT3: Reg | ACU3: Issu. | ACV3: Prereg | ACW3: Reg | ACX3: Issu. | ACY3: Prereg | ACZ3: Reg | ADA3: Issu.
A4: Agriculture | B4: Irrigation | C4: =+Invest!G6 -> 1 | D4: =+Invest!I6 -> 0 | E4: =SUMIF(H$3:XM$3,"Prereg",H4:XM4) -> 0 | F4: =SUMIF(H$3:XM$3,"Reg",H4:XM4) -> 1 | G4: =SUMIF(H$3:XM$3,"Issu.",H4:XM4) -> 0 | PM4: 1
B5: Energy efficiency | C5: =+Invest!G7 -> 0 | D5: =+Invest!I7 -> 0 | E5: 0 | F5: 0 | G5: 0
B6: Alternative fertilisers | C6: =+Invest!G8 -> 0 | D6: =+Invest!I8 -> 0 | E6: 0 | F6: 0 | G6: 0
B7: No tillage | C7: =+Invest!G9 -> 0 | D7: =+Invest!I9 -> 0 | E7: =SUMIF(H$3:XM$3,"Prereg",H7:XM7) -> 0 | F7: =SUMIF(H$3:XM$3,"Reg",H7:XM7) -> 0 | G7: =SUMIF(H$3:XM$3,"Issu.",H7:XM7) -> 0
B8: Rice crops | C8: =+Invest!G10 -> 0 | D8: =+Invest!I10 -> 0 | E8: 0 | F8: 0 | G8: 0
B9: Bagasse power | C9: =+Invest!G11 -> 108 | D9: =+Invest!I11 -> 0.7097565234 | E9: 9 | F9: 85 | G9: 41 | BB9: 1 | BC9: 1 | KE9: 12 | KF9: 4 | KM9: 7 | KN9: 48 | KO9: 20 | LX9: 1 | NP9: 1 | NQ9: 9 | NR9: 3 | NS9: 1 | NT9: 14 | NU9: 13
A10: Biomass | B10: Palm oil solid waste | C10: =+Invest!G12 -> 45 | D10: =+Invest!I12 -> 0.7111732843 | E10: 1 | F10: 56 | G10: 25 | BB10: 2 | BC10: 2 | CR10: 1 | KE10: 1 | KF10: 1 | KM10: 1 | KN10: 2 | KO10: 1 | LL10: 1 | LX10: 2 | NQ10: 19 | NR10: 9 | NT10: 13 | NU10: 6 | RR10: 10 | RS10: 5 | RU10: 2 | RX10: 2 | RY10: 1 | SA10: 1
A11: Energy | B11: Agricultural residues: other kinds | C11: =+Invest!G13 -> 250 | D11: =+Invest!I13 -> 0.7169884464 | E11: 30 | F11: 231 | G11: 88 | BB11: 1 | KD11: 1 | KE11: 6 | KF11: 5 | KG11: 2 | KH11: 21 | KI11: 8 | KM11: 3 | KN11: 47 | KO11: 20 | KZ11: 1 | LW11: 9 | LX11: 51 | LY11: 8 | NP11: 8 | NQ11: 27 | NR11: 14 | NS11: 6 | NT11: 70 | NU11: 31 | PG11: 1 | RR11: 4 | RS11: 2 | RT11: 1 | WH11: 2
B12: Agricultural residues: rice husk | C12: =+Invest!G14 -> 137 | D12: =+Invest!I14 -> 0.6989379066 | E12: 14 | F12: 142 | G12: 85 | BB12: 1 | KD12: 1 | KE12: 11 | KF12: 10 | KH12: 3 | KI12: 2 | KM12: 1 | KN12: 18 | KO12: 13 | LW12: 1 | LX12: 2 | NK12: 1 | NL12: 1 | NP12: 9 | NQ12: 52 | NR12: 23 | NS12: 2 | NT12: 48 | NU12: 32 | RR12: 5 | RS12: 4 | RX12: 1
B13: Agricultural residues: mustard crop | C13: =+Invest!G15 -> 10 | D13: =+Invest!I15 -> 1.113696849 | E13: 2 | F13: 9 | G13: 3 | NP13: 2 | NT13: 9 | NU13: 3
B14: Agricultural residues: poultry litter | C14: =+Invest!G16 -> 6 | D14: =+Invest!I16 -> 0.7106102503 | E14: 0 | F14: 12 | G14: 4 | KE14: 1 | KF14: 1 | KN14: 1 | KO14: 1 | KZ14: 1 | NT14: 5 | NU14: 1 | RO14: 1 | RR14: 3 | RS14: 1
B15: Black liquor | C15: =+Invest!G17 -> 8 | D15: =+Invest!I17 -> 0.6366893281 | E15: 0 | F15: 10 | G15: 5 | KE15: 2 | KF15: 1 | KN15: 7 | KO15: 4 | NQ15: 1
B16: Forest residues: sawmill waste | C16: =+Invest!G18 -> 33 | D16: =+Invest!I18 -> 0.7287373932 | E16: 2 | F16: 42 | G16: 16 | BB16: 1 | KE16: 1 | KF16: 1 | KH16: 1 | KN16: 3 | KO16: 3 | NK16: 1 | NL16: 1 | NP16: 2 | NQ16: 15 | NR16: 3 | NT16: 7 | NU16: 3 | PG16: 1 | RR16: 12 | RS16: 5
B17: Forest residues: other | C17: =+Invest!G19 -> 31 | D17: =+Invest!I19 -> 0.535371669 | E17: 3 | F17: 30 | G17: 6 | BB17: 2 | FO17: 1 | FP17: 1 | KE17: 2 | KM17: 2 | KN17: 8 | LX17: 2 | LY17: 1 | NP17: 1 | NQ17: 6 | NR17: 1 | NT17: 7 | NU17: 2 | NZ17: 1 | RR17: 1 | RS17: 1
B18: Forest biomass | C18: =+Invest!G20 -> 7 | D18: =+Invest!I20 -> 0.5995659304 | E18: 1 | F18: 6 | G18: 3 | NQ18: 2 | NR18: 2 | NS18: 1 | NT18: 4 | NU18: 1
B19: Industrial waste | C19: =+Invest!G21 -> 9 | D19: =+Invest!I21 -> 0.7482482529 | E19: 2 | F19: 8 | G19: 1 | KE19: 2 | NP19: 1 | NQ19: 3 | NR19: 1 | RT19: 1 | WH19: 3
B20: Gasification of biomass | C20: =+Invest!G22 -> 11 | D20: =+Invest!I22 -> 0.178594293 | E20: 0 | F20: 10 | G20: 1 | EB20: 1 | NK20: 1 | NQ20: 1 | NT20: 5 | NU20: 1 | SA20: 1 | SD20: 1
B21: Switch from fossil fuel to piped biogas | C21: =+Invest!G23 -> 3 | D21: =+Invest!I23 -> 0.2438668097 | E21: 0 | F21: 3 | G21: 1 | KH21: 1 | NQ21: 1 | SA21: 1 | SB21: 1
B22: Biomass briquettes or pellets | C22: =+Invest!G24 -> 17 | D22: =+Invest!I24 -> 0.7582387224 | E22: 5 | F22: 12 | G22: 3 | NP22: 5 | NQ22: 11 | NR22: 2 | RI22: 1 | RJ22: 1
B23: Biodiesel | C23: =+Invest!G25 -> 1 | D23: =+Invest!I25 -> 0 | E23: 1 | F23: 0 | G23: 0 | LT23: 1
B24: Biodiesel from waste oil | C24: =+Invest!G26 -> 0 | D24: =+Invest!I26 -> 0 | E24: 0 | F24: 0 | G24: 0
B25: Ethanol | C25: =+Invest!G27 -> 0 | D25: =+Invest!I27 -> 0 | E25: 0 | F25: 0 | G25: 0
A26: Cement | B26: Clinker replacement | C26: =+Invest!G28 -> 23 | D26: =+Invest!I28 -> 1.036794499 | E26: 2 | F26: 16 | G26: 10 | KH26: 1 | KJ26: 1 | KK26: 15 | KL26: 10 | LN26: 1
A27: CO2 usage | B27: CO2 recycling | C27: =+Invest!G29 -> 3 | D27: =+Invest!I29 -> 0.6399417264 | E27: 0 | F27: 3 | G27: 1 | AM27: 1 | AN27: 1 | DJ27: 1 | SG27: 1
B28: CO2 replacement | C28: =+Invest!G30 -> 0 | D28: =+Invest!I30 -> 0 | E28: 0 | F28: 0 | G28: 0
B29: Coal Mine Methane | C29: =+Invest!G31 -> 71 | D29: =+Invest!I31 -> 0.5885605994 | E29: 11 | F29: 68 | G29: 47 | KE29: 7 | KF29: 7 | KS29: 11 | KT29: 61 | KU29: 40
A30: Coal Bed/ | B30: Coal Bed Methane | C30: =+Invest!G32 -> 2 | D30: =+Invest!I32 -> 0 | E30: 2 | F30: 0 | G30: 0 | KS30: 2
A31: mine CH4 | B31: CMM & Ventilation Air Methane | C31: =+Invest!G33 -> 17 | D31: =+Invest!I33 -> 0.1315706931 | E31: 6 | F31: 14 | G31: 6 | KE31: 3 | KF31: 3 | KS31: 6 | KT31: 11 | KU31: 3
B32: Ventilation Air Methane | C32: =+Invest!G34 -> 10 | D32: =+Invest!I34 -> 0 | E32: 4 | F32: 6 | G32: 0 | KS32: 4 | KT32: 6
B33: District heating | C33: =+Invest!G35 -> 11 | D33: =+Invest!I35 -> 1.116135252 | E33: 0 | F33: 12 | G33: 5 | BN33: 1 | CU33: 11 | CV33: 5
A34: Energy | B34: Replacement of district heating boilers | C34: =+Invest!G36 -> 2 | D34: =+Invest!I36 -> 0 | E34: 1 | F34: 1 | G34: 0 | OZ34: 1 | PA34: 1
A35: distribution | B35: Connection of Isolated grid | C35: =+Invest!G37 -> 1 | D35: =+Invest!I37 -> 0.5037323784 | E35: 0 | F35: 1 | G35: 1 | BQ35: 1 | BR35: 1
B36: District cooling | C36: =+Invest!G38 -> 0 | D36: =+Invest!I38 -> 0 | E36: =SUMIF(H$3:XM$3,"Prereg",H36:XM36) -> 0 | F36: =SUMIF(H$3:XM$3,"Reg",H36:XM36) -> 0 | G36: =SUMIF(H$3:XM$3,"Issu.",H36:XM36) -> 0
B37: Efficient electricity distribution | C37: =+Invest!G39 -> 4 | D37: =+Invest!I39 -> 0.2885483349 | E37: 2 | F37: 2 | G37: 0 | OW37: 2 | OX37: 2
B38: Lighting | C38: =+Invest!G40 -> 44 | D38: =+Invest!I40 -> 0.4975064742 | E38: =SUMIF(H$3:XM$3,"Prereg",H38:XM38) -> 2 | F38: =SUMIF(H$3:XM$3,"Reg",H38:XM38) -> 44 | G38: =SUMIF(H$3:XM$3,"Issu.",H38:XM38) -> 11 | BS38: 1 | BT38: 1 | BU38: 1 | NK38: 1 | PD38: 5 | PE38: 4 | PX38: 1 | PY38: 37 | PZ38: 6
A39: EE | B39: Solar lamps | C39: =+Invest!G41 -> 2 | D39: =+Invest!I41 -> 0 | E39: =SUMIF(H$3:XM$3,"Prereg",H39:XM39) -> 0 | F39: =SUMIF(H$3:XM$3,"Reg",H39:XM39) -> 2 | G39: =SUMIF(H$3:XM$3,"Issu.",H39:XM39) -> 0 | NK39: 1 | WE39: 1
A40: Households: | B40: Stoves | C40: =+Invest!G42 -> 37 | D40: =+Invest!I42 -> 0.5783004376 | E40: 2 | F40: 38 | G40: 8 | NP40: 1 | NQ40: 3 | NW40: 1 | NX40: 1 | PO40: 1 | PP40: 34 | PQ40: 7
B41: Lighting & Insulation & Solar | C41: =+Invest!G43 -> 1 | D41: =+Invest!I43 -> 0.2781434823 | E41: 0 | F41: 3 | G41: 3 | NQ41: 1 | NR41: 1 | PD41: 1 | PE41: 1 | PJ41: 1 | PK41: 1
B42: Appliances | C42: =+Invest!G44 -> 3 | D42: =+Invest!I44 -> 0.139523952 | E42: 3 | F42: 2 | G42: 1 | EE42: 2 | EF42: 1 | JR42: 1 | PI42: 1 | PO42: 1
B43: Chemicals | C43: =+Invest!G45 -> 16 | D43: =+Invest!I45 -> 0.4806819339 | E43: 1 | F43: 16 | G43: 9 | U43: 3 | V43: 2 | NT43: 1 | PD43: 1 | PF43: 1 | PG43: 9 | PH43: 6 | RO43: 1 | RP43: 1 | TB43: 1
A44: EE | B44: Petrochemicals | C44: =+Invest!G46 -> 14 | D44: =+Invest!I46 -> 0.6726077316 | E44: 0 | F44: 14 | G44: 12 | O44: 1 | P44: 1 | U44: 4 | V44: 3 | PG44: 9 | PH44: 8
A45: industry | B45: Paper | C45: =+Invest!G47 -> 15 | D45: =+Invest!I47 -> 0.6220998363 | E45: 5 | F45: 12 | G45: 7 | U45: 3 | V45: 3 | LE45: 1 | NQ45: 3 | NT45: 1 | NU45: 1 | OZ45: 1 | PF45: 3 | PG45: 3 | PH45: 3 | RR45: 1 | TB45: 1
B46: Cement | C46: =+Invest!G48 -> 9 | D46: =+Invest!I48 -> 1.190737529 | E46: 1 | F46: 9 | G46: 3 | KH46: 2 | NT46: 1 | NU46: 1 | PG46: 6 | PH46: 2 | TA46: 1
B47: Iron & steel | C47: =+Invest!G49 -> 6 | D47: =+Invest!I49 -> 0.8398781966 | E47: 3 | F47: 3 | G47: 1 | DS47: 1 | IK47: 1 | PF47: 2 | PG47: 2 | PH47: 1
B48: Machinery | C48: =+Invest!G50 -> 5 | D48: =+Invest!I50 -> 0 | E48: 2 | F48: 3 | G48: 0 | PC48: 1 | PD48: 2 | PF48: 1 | PG48: 1
B49: Textiles | C49: =+Invest!G51 -> 2 | D49: =+Invest!I51 -> 1.198282221 | E49: 0 | F49: 2 | G49: 2 | PD49: 1 | PE49: 1 | PG49: 1 | PH49: 1
B50: Electronics | C50: =+Invest!G52 -> 3 | D50: =+Invest!I52 -> 0 | E50: 1 | F50: 2 | G50: 0 | PC50: 1 | PG50: 2
B51: Food | C51: =+Invest!G53 -> 3 | D51: =+Invest!I53 -> 0.660345711 | E51: 0 | F51: 4 | G51: 2 | U51: 1 | NQ51: 2 | NR51: 2 | PG51: 1
B52: Building materials | C52: =+Invest!G54 -> 18 | D52: =+Invest!I54 -> 0.4863696757 | E52: 6 | F52: 12 | G52: 7 | PG52: 6 | PH52: 4 | UB52: 6 | UC52: 5 | UD52: 2 | UO52: 1 | UP52: 1
B53: Glass | C53: =+Invest!G55 -> 2 | D53: =+Invest!I55 -> 0.9063975292 | E53: 0 | F53: 2 | G53: 1 | PG53: 2 | PH53: 1
B54: Non-ferrous metals | C54: =+Invest!G56 -> 7 | D54: =+Invest!I56 -> 2.491123541 | E54: 3 | F54: 4 | G54: 1 | BH54: 1 | BI54: 1 | CX54: 2 | OZ54: 1 | PF54: 2 | PG54: 1
B55: Coke oven | C55: =+Invest!G57 -> 0 | D55: =+Invest!I57 -> 0 | E55: 0 | F55: 0 | G55: 0
B56: Mining | C56: =+Invest!G58 -> 4 | D56: =+Invest!I58 -> 0.8130729484 | E56: 2 | F56: 2 | G56: 1 | PC56: 2 | PD56: 1 | PG56: 1 | PH56: 1
B57: Construction | C57: =+Invest!G59 -> 0 | D57: =+Invest!I59 -> 0 | E57: 0 | F57: 0 | G57: 0
B58: Metal products | C58: =+Invest!G60 -> 0 | D58: =+Invest!I60 -> 0 | E58: 0 | F58: 0 | G58: 0
B59: Wood | C59: =+Invest!G61 -> 0 | D59: =+Invest!I61 -> 0 | E59: 0 | F59: 0 | G59: 0
B60: Recycling | C60: =+Invest!G62 -> 2 | D60: =+Invest!I62 -> 0 | E60: 2 | F60: 1 | G60: 0 | SP60: 1 | VF60: 2
B61: Chemicals heat | C61: =+Invest!G63 -> 16 | D61: =+Invest!I63 -> 0.6309991873 | E61: 2 | F61: 12 | G61: 4 | KE61: 2 | KF61: 2 | LE61: 1 | LF61: 3 | LG61: 1 | PF61: 1 | PG61: 2 | RI61: 1 | TB61: 4 | TC61: 1
A62: EE | B62: Petrochemicals heat | C62: =+Invest!G64 -> 10 | D62: =+Invest!I64 -> 0.8665672335 | E62: 0 | F62: 8 | G62: 5 | CL62: 4 | CM62: 3 | LF62: 2 | LG62: 1 | TB62: 2 | TC62: 1
A63: Own generation | B63: Carbon black gas | C63: =+Invest!G65 -> 6 | D63: =+Invest!I65 -> 0.9802910334 | E63: 2 | F63: 2 | G63: 1 | LE63: 1 | LF63: 1 | PF63: 1 | TB63: 1 | TC63: 1
B64: Cement heat | C64: =+Invest!G66 -> 137 | D64: =+Invest!I66 -> 0.8378213331 | E64: 13 | F64: 100 | G64: 40 | BY64: 1 | KB64: 1 | KC64: 1 | KE64: 7 | KF64: 6 | LE64: 9 | LF64: 62 | LG64: 26 | PG64: 1 | TA64: 3 | TB64: 28 | TC64: 7 | VM64: 1
B65: Iron & steel heat | C65: =+Invest!G67 -> 97 | D65: =+Invest!I67 -> 0.7528062396 | E65: 14 | F65: 35 | G65: 20 | KD65: 1 | KE65: 8 | KF65: 7 | LE65: 5 | LF65: 26 | LG65: 13 | NS65: 1 | TA65: 7 | TB65: 1
B66: Building materials heat | C66: =+Invest!G68 -> 1 | D66: =+Invest!I68 -> 0.6345299274 | E66: 0 | F66: 0 | G66: 0
B67: Glass heat | C67: =+Invest!G69 -> 5 | D67: =+Invest!I69 -> 0 | E67: 2 | F67: 3 | G67: 0 | PF67: 1 | TA67: 1 | TB67: 3
B68: Non-ferrous metals heat | C68: =+Invest!G70 -> 6 | D68: =+Invest!I70 -> 0.4581324693 | E68: 0 | F68: 6 | G68: 2 | KE68: 2 | KF68: 2 | LF68: 3 | TB68: 1
B69: Coke oven gas | C69: =+Invest!G71 -> 57 | D69: =+Invest!I71 -> 0.7509766102 | E69: 8 | F69: 44 | G69: 26 | KE69: 11 | KF69: 7 | LE69: 8 | LF69: 33 | LG69: 19
B70: HVAC & lighting | C70: =+Invest!G72 -> 4 | D70: =+Invest!I72 -> 0 | E70: 2 | F70: 2 | G70: 0 | PI70: 2 | PJ70: 2
A71: EE | B71: Air conditioning | C71: =+Invest!G73 -> 1 | D71: =+Invest!I73 -> 1.778499734 | E71: =SUMIF(H$3:XM$3,"Prereg",H71:XM71) -> 0 | F71: =SUMIF(H$3:XM$3,"Reg",H71:XM71) -> 1 | G71: =SUMIF(H$3:XM$3,"Issu.",H71:XM71) -> 1 | PA71: 1 | PB71: 1
A72: service | B72: EE new buildings | C72: =+Invest!G74 -> 4 | D72: =+Invest!I74 -> 0.6287914295 | E72: 1 | F72: 4 | G72: 2 | PA72: 1 | PB72: 1 | PC72: 1 | PJ72: 3 | PK72: 1
B73: Street lighting | C73: =+Invest!G75 -> 2 | D73: =+Invest!I75 -> 3.628530959 | E73: 1 | F73: 1 | G73: 0 | PD73: 1 | QD73: 1
B74: Lighting in service | C74: =+Invest!G76 -> 1 | D74: =+Invest!I76 -> 0 | E74: 1 | F74: 0 | G74: 0 | PX74: 1
B75: Water pumping | C75: =+Invest!G77 -> 2 | D75: =+Invest!I77 -> 0 | E75: 1 | F75: 1 | G75: 0 | PC75: 1 | PD75: 1
B76: Water purification | C76: =+Invest!G78 -> 1 | D76: =+Invest!I78 -> 0 | E76: 0 | F76: 0 | G76: 0
B77: EE public stoves | C77: =+Invest!G79 -> 0 | D77: =+Invest!I79 -> 0 | E77: 0 | F77: 0 | G77: 0
B78: EE public buildings | C78: =+Invest!G80 -> 4 | D78: =+Invest!I80 -> 0.3010366725 | E78: 1 | F78: 8 | G78: 8 | NQ78: 2 | NR78: 2 | PI78: 1 | PJ78: 3 | PK78: 3 | RI78: 3 | RJ78: 3
B79: EE commercial buildings | C79: =+Invest!G81 -> 1 | D79: =+Invest!I81 -> 0 | E79: 0 | F79: 1 | G79: 0 | QB79: 1
B80: Single cycle to combined cycle | C80: =+Invest!G82 -> 24 | D80: =+Invest!I82 -> 0.6238874416 | E80: 6 | F80: 15 | G80: 8 | KP80: 5 | KQ80: 13 | KR80: 8 | LE80: 1 | LF80: 1 | VM80: 1
B81: Cogeneration | C81: =+Invest!G83 -> 22 | D81: =+Invest!I83 -> 0.5595514269 | E81: 5 | F81: 12 | G81: 1 | BV81: 1 | BW81: 2 | IF81: 4 | KM81: 1 | KQ81: 1 | NT81: 1 | PA81: 1 | PB81: 1 | PG81: 1 | PR81: 3 | PS81: 2
B82: Co-firing with biomass | C82: =+Invest!G84 -> 0 | D82: =+Invest!I84 -> 0 | E82: 0 | F82: 0 | G82: 0
A83: EE | B83: Higher efficiency coal power | C83: =+Invest!G85 -> 13 | D83: =+Invest!I85 -> 0.4912162011 | E83: 4 | F83: 9 | G83: 2 | DD83: 1 | DG83: 2 | DH83: 1 | LH83: 4 | LI83: 6 | LJ83: 1
A84: supply side | B84: Higher efficiency oil power | C84: =+Invest!G86 -> 2 | D84: =+Invest!I86 -> 0.1467412582 | E84: 1 | F84: 1 | G84: 1 | DD84: 1 | DE84: 1 | LE84: 1
B85: Higher efficiency using waste heat | C85: =+Invest!G87 -> 3 | D85: =+Invest!I87 -> 0.5109853825 | E85: 0 | F85: 3 | G85: 2 | LF85: 3 | LG85: 2
B86: Power plant rehabilitation | C86: =+Invest!G88 -> 8 | D86: =+Invest!I88 -> 0.8680260179 | E86: 1 | F86: 8 | G86: 5 | OZ86: 1 | PA86: 5 | PB86: 3 | PG86: 3 | PH86: 2
B87: Higher efficiency steam boiler | C87: =+Invest!G89 -> 1 | D87: =+Invest!I89 -> 1.279717964 | E87: 0 | F87: 3 | G87: 2 | CO87: 1 | CP87: 1 | PA87: 1 | PG87: 1 | PH87: 1
B88: Afforestation | C88: =+Invest!G90 -> 10 | D88: =+Invest!I90 -> 0.7142320131 | E88: 0 | F88: 1 | G88: 0 | NB88: 1
A89: Forests | B89: Mangroves | C89: =+Invest!G91 -> 1 | D89: =+Invest!I91 -> 0 | E89: 0 | F89: 1 | G89: 0 | NE89: 1
B90: Agroforestry | C90: =+Invest!G92 -> 4 | D90: =+Invest!I92 -> 1.038520273 | E90: 0 | F90: 1 | G90: 0 | NB90: 1
B91: Reforestation | C91: =+Invest!G93 -> 53 | D91: =+Invest!I93 -> 1.298266933 | E91: 1 | F91: 14 | G91: 4 | NA91: 1 | NB91: 4 | NC91: 1 | NH91: 10 | NI91: 3
B92: Coal to natural gas | C92: =+Invest!G94 -> 13 | D92: =+Invest!I94 -> 0.4508964176 | E92: 4 | F92: 3 | G92: 1 | KH92: 1 | KI92: 1 | NP92: 1 | PR92: 1 | RH92: 1 | RI92: 2 | VR92: 1
B93: Coal to oil | C93: =+Invest!G95 -> 0 | D93: =+Invest!I95 -> 0 | E93: 0 | F93: 0 | G93: 0
A94: Fossil | B94: Lignite to natural gas | C94: =+Invest!G96 -> 0 | D94: =+Invest!I96 -> 0 | E94: 0 | F94: 0 | G94: 0
A95: fuel switch | B95: New natural gas plant | C95: =+Invest!G97 -> 52 | D95: =+Invest!I97 -> 0.508274042 | E95: 1 | F95: 10 | G95: 5 | BW95: 2 | IF95: 1 | KE95: 5 | KF95: 5 | LH95: 1 | UX95: 1 | VP95: 1
B96: New natural gas plant using LNG | C96: =+Invest!G98 -> 13 | D96: =+Invest!I98 -> 0.2778076004 | E96: 0 | F96: 4 | G96: 4 | KE96: 4 | KF96: 4
B97: Oil to electricity | C97: =+Invest!G99 -> 1 | D97: =+Invest!I99 -> 0 | E97: 1 | F97: 0 | G97: 0 | RH97: 1
B98: Oil to LPG | C98: =+Invest!G100 -> 0 | D98: =+Invest!I100 -> 0 | E98: 0 | F98: 0 | G98: 0
B99: Oil to natural gas | C99: =+Invest!G101 -> 32 | D99: =+Invest!I101 -> 0.8168895006 | E99: 3 | F99: 26 | G99: 17 | KW99: 5 | KX99: 4 | LC99: 2 | LD99: 1 | PA99: 1 | PB99: 1 | PF99: 1 | PG99: 1 | RH99: 2 | RI99: 15 | RJ99: 10 | VA99: 2 | VB99: 1
B100: Oil field flaring reduction | C100: =+Invest!G102 -> 24 | D100: =+Invest!I102 -> 0.6757993024 | E100: 6 | F100: 20 | G100: 9 | N100: 6 | O100: 20 | P100: 9
B101: Oil and gas processing flaring | C101: =+Invest!G103 -> 9 | D101: =+Invest!I103 -> 1.012905286 | E101: 0 | F101: 9 | G101: 2 | O101: 1 | BE101: 2 | BF101: 1 | EQ101: 1 | SY101: 5 | SZ101: 1
A102: Fugitive | B102: Natural gas pipelines | C102: =+Invest!G104 -> 14 | D102: =+Invest!I104 -> 0.7617621557 | E102: 1 | F102: 18 | G102: 10 | AG102: 18 | AH102: 10 | LE102: 1
B103: Non-hydrocarbon mining | C103: =+Invest!G105 -> 1 | D103: =+Invest!I105 -> 0.2166298599 | E103: =SUMIF(H$3:XM$3,"Prereg",H103:XM103) -> 0 | F103: =SUMIF(H$3:XM$3,"Reg",H103:XM103) -> 1 | G103: =SUMIF(H$3:XM$3,"Issu.",H103:XM103) -> 1 | DM103: 1 | DN103: 1
B104: Spontaneously ignition of coal piles | C104: =+Invest!G106 -> 0 | D104: =+Invest!I106 -> 0 | E104: 0 | F104: 0 | G104: 0
B105: Charcoal production | C105: =+Invest!G107 -> 6 | D105: =+Invest!I107 -> 0.3409290113 | E105: 3 | F105: 2 | G105: 2 | KD105: 1 | MF105: 2 | NT105: 1 | NU105: 1 | SJ105: 1 | SK105: 1
A106: Geothermal | B106: Geothermal electricity | C106: =+Invest!G108 -> 31 | D106: =+Invest!I108 -> 0.6631045922 | E106: 2 | F106: 29 | G106: 15 | KD106: 2 | KE106: 29 | KF106: 15
B107: Geothermal heating | C107: =+Invest!G109 -> 3 | D107: =+Invest!I109 -> 1.778958078 | E107: 0 | F107: 4 | G107: 1 | EK107: 2 | EL107: 1 | NQ107: 1 | NZ107: 1
A108: HFCs | B108: HFC23 | C108: =+Invest!G110 -> 19 | D108: =+Invest!I110 -> 1.079901439 | E108: 0 | F108: 19 | G108: 19 | I108: 19 | J108: 19
B109: HFC134a | C109: =+Invest!G111 -> 3 | D109: =+Invest!I111 -> 0 | E109: 0 | F109: 3 | G109: 0 | SS109: 3
B110: Run of river | C110: =+Invest!G112 -> 1467 | D110: =+Invest!I112 -> 0.7787426309 | E110: 68 | F110: 1432 | G110: 648 | AJ110: 6 | AK110: 4 | KD110: 31 | KE110: 659 | KF110: 274 | NK110: 5 | NL110: 3 | NS110: 36 | NT110: 758 | NU110: 364 | NY110: 1 | NZ110: 3 | OA110: 2 | PA110: 1 | PB110: 1
A111: Hydro | B111: Existing dam | C111: =+Invest!G113 -> 90 | D111: =+Invest!I113 -> 0.8200429937 | E111: 2 | F111: 90 | G111: 59 | KE111: 41 | KF111: 30 | NS111: 2 | NT111: 49 | NU111: 29
B112: Higher efficiency hydro power | C112: =+Invest!G114 -> 4 | D112: =+Invest!I114 -> 0.4594226842 | E112: 2 | F112: 2 | G112: 2 | KE112: 1 | KF112: 1 | NS112: 2 | NZ112: 1 | OA112: 1
B113: New dam | C113: =+Invest!G115 -> 484 | D113: =+Invest!I115 -> 0.8319430407 | E113: 10 | F113: 480 | G113: 250 | KD113: 10 | KE113: 344 | KF113: 190 | NT113: 136 | NU113: 60
B114: Landfill flaring | C114: =+Invest!G116 -> 113 | D114: =+Invest!I116 -> 0.511911681 | E114: 10 | F114: 108 | G114: 64 | KA114: 8 | KB114: 86 | KC114: 53 | KE114: 6 | KF114: 6 | NT114: 5 | NU114: 3 | RW114: 2 | RX114: 11 | RY114: 2
B115: Landfill power | C115: =+Invest!G117 -> 171 | D115: =+Invest!I117 -> 0.4563043935 | E115: 12 | F115: 214 | G115: 124 | CI115: 1 | KA115: 8 | KB115: 125 | KC115: 72 | KE115: 10 | KF115: 7 | LC115: 1 | LD115: 1 | MJ115: 1 | NQ115: 4 | NS115: 2 | NT115: 42 | NU115: 27 | NZ115: 1 | RR115: 2 | RS115: 1 | RW115: 2 | RX115: 27 | RY115: 16
A116: Landfill gas | B116: Combustion of MSW | C116: =+Invest!G118 -> 37 | D116: =+Invest!I118 -> 0.6273251153 | E116: 0 | F116: 5 | G116: 2 | KB116: 3 | KC116: 2 | MJ116: 2
B117: Gasification of MSW | C117: =+Invest!G119 -> 1 | D117: =+Invest!I119 -> 0.5520687607 | E117: 0 | F117: 1 | G117: 1 | KB117: 1 | KC117: 1
B118: Biogas from MSW | C118: =+Invest!G120 -> 1 | D118: =+Invest!I120 -> 0 | E118: 0 | F118: 2 | G118: 0 | NT118: 1 | VV118: 1
B119: Landfill aeration | C119: =+Invest!G121 -> 1 | D119: =+Invest!I121 -> 0 | E119: 0 | F119: 1 | G119: 0 | FR119: 1
B120: Integrated solid waste management | C120: =+Invest!G122 -> 9 | D120: =+Invest!I122 -> 0.127305382 | E120: 8 | F120: 0 | G120: 0 | MI120: 2 | RQ120: 3 | RT120: 3
B121: Switch from fossil fuel to piped landfill gas | C121: =+Invest!G123 -> 3 | D121: =+Invest!I123 -> 1.031092424 | E121: 1 | F121: 2 | G121: 1 | KA121: 1 | KB121: 1 | NQ121: 1 | NR121: 1
B122: Landfill composting | C122: =+Invest!G124 -> 28 | D122: =+Invest!I124 -> 0.3500481999 | E122: 5 | F122: 12 | G122: 4 | KE122: 1 | MJ122: 1 | NT122: 1 | RQ122: 2 | RT122: 3 | RU122: 9 | RV122: 4
B123: Manure | C123: =+Invest!G125 -> 251 | D123: =+Invest!I125 -> 0.6013516134 | E123: 14 | F123: 271 | G123: 76 | EN123: 2 | KY123: 1 | KZ123: 7 | LA123: 2 | NJ123: 1 | NK123: 2 | NQ123: 7 | NR123: 5 | NS123: 2 | NT123: 68 | NU123: 7 | NW123: 1 | NX123: 1 | NZ123: 4 | RN123: 8 | RO123: 173 | RP123: 56 | RT123: 1 | RU123: 1 | TE123: 5 | TF123: 5 | VU123: 1 | VV123: 1
B124: Domestic manure | C124: =+Invest!G126 -> 41 | D124: =+Invest!I126 -> 0.5863380161 | E124: 1 | F124: 69 | G124: 20 | KY124: 1 | NQ124: 30 | NR124: 8 | NW124: 11 | NX124: 8 | TE124: 28 | TF124: 4
A125: Methane | B125: Waste water | C125: =+Invest!G127 -> 264 | D125: =+Invest!I127 -> 0.656740354 | E125: 31 | F125: 393 | G125: 179 | FH125: 2 | FI125: 1 | LK125: 5 | LL125: 24 | LM125: 10 | NJ125: 1 | NK125: 11 | NL125: 2 | NP125: 6 | NQ125: 63 | NR125: 27 | NS125: 3 | NT125: 74 | NU125: 43 | NY125: 3 | NZ125: 21 | OA125: 5 | RO125: 2 | RP125: 1 | RU125: 1 | RZ125: 11 | SA125: 186 | SB125: 87 | SD125: 5 | SE125: 2 | SP125: 1 | SV125: 1 | SW125: 1 | TZ125: 2 | VV125: 1 | VW125: 1
A126: avoidance | B126: Industrial solid waste | C126: =+Invest!G128 -> 0 | D126: =+Invest!I128 -> 0 | E126: 0 | F126: 0 | G126: 0
B127: Palm oil waste | C127: =+Invest!G129 -> 47 | D127: =+Invest!I129 -> 0.4675443221 | E127: 1 | F127: 62 | G127: 10 | NK127: 6 | NL127: 2 | NQ127: 1 | NT127: 9 | NZ127: 2 | RT127: 1 | RU127: 6 | SA127: 38 | SB127: 8
B128: Aerobic treatment of waste water | C128: =+Invest!G130 -> 1 | D128: =+Invest!I130 -> 0.4842090495 | E128: 0 | F128: 1 | G128: 1 | SD128: 1 | SE128: 1
B129: Composting | C129: =+Invest!G131 -> 46 | D129: =+Invest!I131 -> 0.3883498823 | E129: 3 | F129: 34 | G129: 9 | RQ129: 1 | RT129: 2 | RU129: 34 | RV129: 9
A130: Mixed | B130: Solar & wind | C130: =+Invest!G132 -> 12 | D130: =+Invest!I132 -> 0.8036941785 | E130: 5 | F130: 8 | G130: 1 | KD130: 1 | KE130: 3 | NS130: 4 | NT130: 3 | NU130: 1 | NZ130: 2
B131: Solar & hydro | C131: =+Invest!G133 -> 0 | D131: =+Invest!I133 -> 0
A132: renewables | B132: Solar & wind & hydro | C132: =+Invest!G134 -> 0 | D132: =+Invest!I134 -> 0 | E132: =SUMIF(H$3:XM$3,"Prereg",H132:XM132) -> 0 | F132: =SUMIF(H$3:XM$3,"Reg",H132:XM132) -> 0 | G132: =SUMIF(H$3:XM$3,"Issu.",H132:XM132) -> 0
B133: Solar & wind & other | C133: =+Invest!G135 -> 1 | D133: =+Invest!I135 -> 0 | E133: 1 | F133: 0 | G133: 0 | NP133: 1
B134: Wind & hydro | C134: =+Invest!G136 -> 1 | D134: =+Invest!I136 -> 0.5170167369 | E134: 0 | F134: 1 | G134: 1 | NT134: 1 | NU134: 1
A135: N2O | B135: Adipic acid | C135: =+Invest!G137 -> 4 | D135: =+Invest!I137 -> 1.130264189 | E135: 0 | F135: 4 | G135: 4 | AD135: 4 | AE135: 4
A136: total: | B136: Nitric acid | C136: =+Invest!G138 -> 108 | D136: =+Invest!I138 -> 0.8034974644 | E136: 11 | F136: 48 | G136: 23 | AP136: 23 | AQ136: 18 | LZ136: 11 | MA136: 25 | MB136: 5
B137: Caprolactam | C137: =+Invest!G139 -> 3 | D137: =+Invest!I139 -> 0.4288289747 | E137: 0 | F137: 3 | G137: 2 | AP137: 3 | AQ137: 2
A138: PFCs+SF6 | B138: PFCs | C138: =+Invest!G140 -> 5 | D138: =+Invest!I140 -> 0.5859590905 | E138: 1 | F138: 4 | G138: 2 | AS138: 3 | AT138: 1 | CX138: 1 | CY138: 1 | GL138: 1
B139: SF6 | C139: =+Invest!G141 -> 8 | D139: =+Invest!I141 -> 0.6697058847 | E139: 2 | F139: 7 | G139: 7 | AX139: 2 | AY139: 1 | AZ139: 1 | DP139: 3 | DQ139: 3 | FC139: 2 | FD139: 2 | FF139: 1 | FG139: 1
B140: Solar PV | C140: =+Invest!G142 -> 352 | D140: =+Invest!I142 -> 0.9703649882 | E140: 53 | F140: 334 | G140: 89 | KD140: 16 | KE140: 144 | KF140: 32 | MC140: 1 | NK140: 4 | NL140: 1 | NQ140: 1 | NS140: 32 | NT140: 183 | NU140: 55 | NY140: 4 | NZ140: 2 | OA140: 1 | ZN140: 3 | ZO140: 3 | ABF140: 2 | ABX140: 1
A141: Solar | B141: Solar PV water disinfection | C141: =+Invest!G143 -> 2 | D141: =+Invest!I143 -> 0 | E141: 0 | F141: 2 | G141: 0 | NW141: 2
B142: Solar thermal power | C142: =+Invest!G144 -> 12 | D142: =+Invest!I144 -> 0.3919120256 | E142: 3 | F142: 9 | G142: 3 | KD142: 3 | KE142: 8 | KF142: 3 | NT142: 1
B143: Solar thermal heat | C143: =+Invest!G145 -> 2 | D143: =+Invest!I145 -> 0 | E143: 0 | F143: 2 | G143: 0 | NQ143: 2
B144: Solar water heating | C144: =+Invest!G146 -> 6 | D144: =+Invest!I146 -> 0.9994779709 | E144: 0 | F144: 6 | G144: 2 | NQ144: 6 | NR144: 2
B145: Solar cooking | C145: =+Invest!G147 -> 18 | D145: =+Invest!I147 -> 0.9847659411 | E145: 0 | F145: 18 | G145: 8 | NQ145: 18 | NR145: 8
A146: Tidal | B146: Tidal | C146: =+Invest!G148 -> 1 | D146: =+Invest!I148 -> 0.9003896529 | E146: 0 | F146: 1 | G146: 1 | KE146: 1 | KF146: 1
B147: Bus Rapid Transit | C147: =+Invest!G149 -> 14 | D147: =+Invest!I149 -> 0.2631171869 | E147: 1 | F147: 13 | G147: 8 | AU147: 1 | AV147: 10 | AW147: 6 | LR147: 3 | LS147: 2
B148: Motorbikes | C148: =+Invest!G150 -> 4 | D148: =+Invest!I150 -> 0 | E148: 0 | F148: 4 | G148: 0 | RL148: 4
A149: Transport | B149: Mode shift: Road to rail | C149: =+Invest!G151 -> 7 | D149: =+Invest!I151 -> 0.9217712417 | E149: 1 | F149: 6 | G149: 1 | GF149: 1 | LR149: 5 | LS149: 1 | RL149: 1
B150: More efficient train system | C150: =+Invest!G152 -> 0 | D150: =+Invest!I152 -> 0 | E150: 0 | F150: 0 | G150: 0
B151: More efficient vehicles | C151: =+Invest!G153 -> 1 | D151: =+Invest!I153 -> 1.465885838 | E151: 0 | F151: 1 | G151: 1 | WK151: 1 | WL151: 1
B152: Rail: regenerative braking | C152: =+Invest!G154 -> 1 | D152: =+Invest!I154 -> 1.096602718 | E152: 0 | F152: 1 | G152: 1 | RL152: 1 | RM152: 1
B153: Metro: efficient operation | C153: =+Invest!G155 -> 0 | D153: =+Invest!I155 -> 0 | E153: 0 | F153: 0 | G153: 0
B154: Scrapping old vehicles | C154: =+Invest!G156 -> 0 | D154: =+Invest!I156 -> 0 | E154: 0 | F154: 0 | G154: 0
B155: Biodiesel for transport | C155: =+Invest!G157 -> 2 | D155: =+Invest!I157 -> 0 | E155: 1 | F155: 1 | G155: 0 | LT155: 1 | TK155: 1
B156: Cable cars | C156: =+Invest!G158 -> 1 | D156: =+Invest!I158 -> 0.5316504937 | E156: 0 | F156: 1 | G156: 1 | TN156: 1 | TO156: 1
A157: Wind | B157: Wind | C157: =+Invest!G159 -> 2368 | D157: =+Invest!I159 -> 0.762371831 | E157: 92 | F157: 2312 | G157: 1042 | KD157: 59 | KE157: 1833 | KF157: 816 | NK157: 2 | NS157: 32 | NT157: 472 | NU157: 225 | NY157: 1 | NZ157: 5 | OA157: 1
B158: Offshore wind | C158: =+Invest!G160 -> 2 | D158: =+Invest!I160 -> 0 | E158: 1 | F158: 1 | G158: 0 | KD158: 1 | NT158: 1
A159: Total | C159: =+Invest!G159 -> 2368 | D159: =+Invest!I159 -> 0.762371831 | E159: =SUM(E4:E157) -> 557 | F159: 7364 | G159: 3288 | H159: 0 | I159: 19 | J159: 19 | K159: 0 | L159: 0 | M159: 0 | N159: 6 | O159: 22 | P159: 10 | Q159: 0 | R159: 0 | S159: 0 | T159: 0 | U159: 11 | V159: 8 | W159: 0 | X159: 0 | Y159: 0 | Z159: 0 | AA159: 0 | AB159: 0 | AC159: 0 | AD159: 4 | AE159: 4 | AF159: 0 | AG159: 18 | AH159: 10 | AI159: 0 | AJ159: 6 | AK159: 4 | AL159: 0 | AM159: 1 | AN159: 1 | AO159: 0 | AP159: 26 | AQ159: 20 | AR159: 0 | AS159: 3 | AT159: 1 | AU159: 1 | AV159: 10 | AW159: 6 | AX159: 2 | AY159: 1 | AZ159: 1 | BA159: 0 | BB159: 8 | BC159: 3 | BD159: 0 | BE159: 2 | BF159: 1 | BG159: 0 | BH159: 1 | BI159: 1 | BJ159: 0 | BK159: 0 | BL159: 0 | BM159: 0 | BN159: 1 | BO159: 0 | BP159: 0 | BQ159: =SUM(BQ4:BQ157) -> 1 | BR159: 1 | BS159: 1 | BT159: 1 | BU159: 1 | BV159: 1 | BW159: 4 | BX159: 0 | BY159: 1 | BZ159: 0 | CA159: 0 | CB159: 0 | CC159: 0 | CD159: 0 | CE159: 0 | CF159: 0 | CG159: 0 | CH159: 0 | CI159: 1 | CJ159: 0 | CK159: 0 | CL159: 4 | CM159: 3 | CN159: 0 | CO159: 1 | CP159: 1 | CQ159: 0 | CR159: 1 | CS159: 0 | CT159: 0 | CU159: 11 | CV159: 5 | CW159: 0 | CX159: 3 | CY159: 1 | CZ159: 0 | DA159: 0 | DB159: 0 | DC159: 0 | DD159: 2 | DE159: 1 | DF159: 0 | DG159: 2 | DH159: 1 | DI159: 0 | DJ159: 1 | DK159: 0 | DL159: 0 | DM159: 1 | DN159: 1 | DO159: 0 | DP159: 3 | DQ159: 3 | DR159: 0 | DS159: 1 | DT159: 0 | DU159: 0 | DV159: 0 | DW159: 0 | DX159: 0 | DY159: 0 | DZ159: 0 | EA159: 0 | EB159: 1 | EC159: =SUM(EC4:EC157) -> 0 | ED159: 0 | EE159: 2 | EF159: 1 | EG159: 0 | EH159: 0 | EI159: 0 | EJ159: 0 | EK159: 2 | EL159: 1 | EM159: 0 | EN159: 2 | EO159: 0 | EP159: 0 | EQ159: 1 | ER159: 0 | ES159: 0 | ET159: 0 | EU159: 0 | EV159: 0 | EW159: 0 | EX159: 0 | EY159: 0 | EZ159: 0 | FA159: 0 | FB159: 0 | FC159: 2 | FD159: 2 | FE159: 0 | FF159: 1 | FG159: 1 | FH159: 2 | FI159: 1 | FJ159: 0 | FK159: 0 | FL159: 0 | FM159: 0 | FN159: 0 | FO159: 1 | FP159: 1 | FQ159: 0 | FR159: 1 | FS159: 0 | FT159: 0 | FU159: 0 | FV159: 0 | FW159: 0 | FX159: 0 | FY159: 0 | FZ159: 0 | GA159: 0 | GB159: 0 | GC159: 0 | GD159: 0 | GE159: 0 | GF159: 1 | GG159: 0 | GH159: 0 | GI159: 0 | GJ159: 0 | GK159: 0 | GL159: 1 | GM159: 0 | GN159: 0 | GO159: =SUM(GO4:GO157) -> 0 | GP159: 0 | GQ159: 0 | GR159: 0 | GS159: 0 | GT159: 0 | GU159: 0 | GV159: 0 | GW159: 0 | GX159: 0 | GY159: 0 | GZ159: 0 | HA159: 0 | HB159: 0 | HC159: 0 | HD159: 0 | HE159: 0 | HF159: 0 | HG159: 0 | HH159: 0 | HI159: 0 | HJ159: 0 | HK159: 0 | HL159: 0 | HM159: 0 | HN159: 0 | HO159: 0 | HP159: 0 | HQ159: 0 | HR159: 0 | HS159: 0 | HT159: 0 | HU159: 0 | HV159: 0 | HW159: 0 | HX159: 0 | HY159: 0 | HZ159: 0 | IA159: 0 | IB159: 0 | IC159: 0 | ID159: 0 | IE159: 0 | IF159: 5 | IG159: 0 | IH159: 0 | II159: 0 | IJ159: 0 | IK159: 1 | IL159: 0 | IM159: 0 | IN159: 0 | IO159: 0 | IP159: 0 | IQ159: 0 | IR159: 0 | IS159: 0 | IT159: 0 | IU159: 0 | IV159: 0 | IW159: 0 | IX159: 0 | IY159: 0 | IZ159: 0 | JA159: =SUM(JA4:JA157) -> 0 | JB159: 0 | JC159: 0 | JD159: 0 | JE159: 0 | JF159: 0 | JG159: 0 | JH159: 0 | JI159: 0 | JJ159: 0 | JK159: 0 | JL159: 0 | JM159: 0 | JN159: 0 | JO159: 0 | JP159: 0 | JQ159: 0 | JR159: 1 | JS159: 0 | JT159: 0 | JU159: 0 | JV159: 0 | JW159: 0 | JX159: 0 | JY159: 0 | JZ159: 0 | KA159: 17 | KB159: 217 | KC159: 129 | KD159: 126 | KE159: 3167 | KF159: 1441 | KG159: 2 | KH159: 30 | KI159: 11 | KJ159: 1 | KK159: 15 | KL159: 10 | KM159: 15 | KN159: 134 | KO159: 62 | KP159: 5 | KQ159: 14 | KR159: 8 | KS159: 23 | KT159: 78 | KU159: 43 | KV159: 0 | KW159: 5 | KX159: 4 | KY159: 2 | KZ159: 9 | LA159: 2 | LB159: 0 | LC159: 3 | LD159: 2 | LE159: 28 | LF159: 134 | LG159: 62 | LH159: 5 | LI159: 6 | LJ159: 1 | LK159: 5 | LL159: 25 | LM159: =SUM(LM4:LM157) -> 10 | LN159: 1 | LO159: 0 | LP159: 0 | LQ159: 0 | LR159: 8 | LS159: 3 | LT159: 2 | LU159: 0 | LV159: 0 | LW159: 10 | LX159: 58 | LY159: 9 | LZ159: 11 | MA159: 25 | MB159: 5 | MC159: 1 | MD159: 0 | ME159: 0 | MF159: 2 | MG159: 0 | MH159: 0 | MI159: 2 | MJ159: 4 | MK159: 0 | ML159: 0 | MM159: 0 | MN159: 0 | MO159: 0 | MP159: 0 | MQ159: 0 | MR159: 0 | MS159: 0 | MT159: 0 | MU159: 0 | MV159: 0 | MW159: 0 | MX159: 0 | MY159: 0 | MZ159: 0 | NA159: 1 | NB159: 6 | NC159: 1 | ND159: 0 | NE159: 1 | NF159: 0 | NG159: 0 | NH159: 10 | NI159: 3 | NJ159: 2 | NK159: 35 | NL159: 10 | NM159: 0 | NN159: 0 | NO159: 0 | NP159: 38 | NQ159: 292 | NR159: 114 | NS159: 126 | NT159: 1990 | NU159: 911 | NV159: 0 | NW159: 15 | NX159: 10 | NY159: =SUM(NY4:NY157) -> 9 | NZ159: 43 | OA159: 10 | OB159: 0 | OC159: 0 | OD159: 0 | OE159: 0 | OF159: 0 | OG159: 0 | OH159: 0 | OI159: 0 | OJ159: 0 | OK159: 0 | OL159: 0 | OM159: 0 | ON159: 0 | OO159: 0 | OP159: 0 | OQ159: 0 | OR159: 0 | OS159: 0 | OT159: 0 | OU159: 0 | OV159: 0 | OW159: 2 | OX159: 2 | OY159: 0 | OZ159: 4 | PA159: 12 | PB159: 8 | PC159: 6 | PD159: 13 | PE159: 6 | PF159: 13 | PG159: 55 | PH159: 30 | PI159: 4 | PJ159: 9 | PK159: 5 | PL159: 0 | PM159: 1 | PN159: 0 | PO159: 2 | PP159: 34 | PQ159: 7 | PR159: 4 | PS159: 2 | PT159: 0 | PU159: 0 | PV159: 0 | PW159: 0 | PX159: 2 | PY159: 37 | PZ159: 6 | QA159: 0 | QB159: 1 | QC159: 0 | QD159: 1 | QE159: 0 | QF159: 0 | QG159: 0 | QH159: 0 | QI159: 0 | QJ159: 0 | QK159: =SUM(QK4:QK157) -> 0 | QL159: 0 | QM159: 0 | QN159: 0 | QO159: 0 | QP159: 0 | QQ159: 0 | QR159: 0 | QS159: 0 | QT159: 0 | QU159: 0 | QV159: 0 | QW159: 0 | QX159: 0 | QY159: 0 | QZ159: 0 | RA159: 0 | RB159: 0 | RC159: 0 | RD159: 0 | RE159: 0 | RF159: 0 | RG159: 0 | RH159: 4 | RI159: 22 | RJ159: 14 | RK159: 0 | RL159: 6 | RM159: 1 | RN159: 8 | RO159: 177 | RP159: 58 | RQ159: 6 | RR159: 38 | RS159: 19 | RT159: 12 | RU159: 53 | RV159: 13 | RW159: 4 | RX159: 41 | RY159: 19 | RZ159: 11 | SA159: 227 | SB159: 96 | SC159: 0 | SD159: 7 | SE159: 3 | SF159: 0 | SG159: 1 | SH159: 0 | SI159: 0 | SJ159: 1 | SK159: 1 | SL159: 0 | SM159: 0 | SN159: 0 | SO159: 0 | SP159: 2 | SQ159: 0 | SR159: 0 | SS159: 3 | ST159: 0 | SU159: 0 | SV159: 1 | SW159: =SUM(SW4:SW157) -> 1 | SX159: 0 | SY159: 5 | SZ159: 1 | TA159: 12 | TB159: 42 | TC159: 10 | TD159: 0 | TE159: 33 | TF159: 9 | TG159: 0 | TH159: 0 | TI159: 0 | TJ159: 0 | TK159: 1 | TL159: 0 | TM159: 0 | TN159: 1 | TO159: 1 | TP159: 0 | TQ159: 0 | TR159: 0 | TS159: 0 | TT159: 0 | TU159: 0 | TV159: 0 | TW159: 0 | TX159: 0 | TY159: 0 | TZ159: 2 | UA159: 0 | UB159: 6 | UC159: 5 | UD159: 2 | UE159: 0 | UF159: 0 | UG159: 0 | UH159: 0 | UI159: 0 | UJ159: 0 | UK159: 0 | UL159: 0 | UM159: 0 | UN159: 0 | UO159: 1 | UP159: 1 | UQ159: 0 | UR159: 0 | US159: 0 | UT159: 0 | UU159: 0 | UV159: 0 | UW159: 0 | UX159: 1 | UY159: 0 | UZ159: 0 | VA159: 2 | VB159: 1 | VC159: 0 | VD159: 0 | VE159: 0 | VF159: 2 | VG159: 0 | VH159: 0 | VI159: =SUM(VI4:VI157) -> 0 | VJ159: 0 | VK159: 0 | VL159: 0 | VM159: 2 | VN159: 0 | VO159: 0 | VP159: 1 | VQ159: 0 | VR159: 1 | VS159: 0 | VT159: 0 | VU159: 1 | VV159: 3 | VW159: 1 | VX159: 0 | VY159: 0 | VZ159: 0 | WA159: 0 | WB159: 0 | WC159: 0 | WD159: 0 | WE159: 1 | WF159: 0 | WG159: 0 | WH159: 5 | WI159: 0 | WJ159: 0 | WK159: 1 | WL159: 1 | WM159: 0 | WN159: 0 | WO159: 0 | WP159: 0 | WQ159: 0 | WR159: 0 | WS159: 0 | WT159: 0 | WU159: 0 | WV159: 0 | WW159: 0 | WX159: 0 | WY159: 0 | WZ159: 0 | XA159: 0 | XB159: 0 | XC159: 0 | XD159: 0 | XE159: 0 | XF159: 0 | XG159: 0 | XH159: 0 | XI159: 0 | XJ159: 0 | XK159: 0 | XL159: 0 | XM159: 0 | XN159: 0 | XO159: 0 | XP159: 0 | XQ159: 0 | XR159: 0 | XS159: 0 | XT159: 0 | XU159: =SUM(XU4:XU157) -> 0 | XV159: 0 | XW159: 0 | XX159: 0 | XY159: 0 | XZ159: 0 | YA159: 0 | YB159: 0 | YC159: 0 | YD159: 0 | YE159: 0 | YF159: 0 | YG159: 0 | YH159: 0 | YI159: 0 | YJ159: 0 | YK159: 0 | YL159: 0 | YM159: 0 | YN159: 0 | YO159: 0 | YP159: 0 | YQ159: 0 | YR159: 0 | YS159: 0 | YT159: 0 | YU159: 0 | YV159: 0 | YW159: 0 | YX159: 0 | YY159: 0 | YZ159: 0 | ZA159: 0 | ZB159: 0 | ZC159: 0 | ZD159: 0 | ZE159: 0 | ZF159: 0 | ZG159: 0 | ZH159: 0 | ZI159: 0 | ZJ159: 0 | ZK159: 0 | ZL159: 0 | ZM159: 0 | ZN159: 3 | ZO159: 3 | ZP159: 0 | ZQ159: 0 | ZR159: 0 | ZS159: 0 | ZT159: 0 | ZU159: 0 | ZV159: 0 | ZW159: 0 | ZX159: 0 | ZY159: 0 | ZZ159: 0 | AAA159: 0 | AAB159: 0 | AAC159: 0 | AAD159: 0 | AAE159: 0 | AAF159: 0 | AAG159: =SUM(AAG4:AAG157) -> 0 | AAH159: 0 | AAI159: 0 | AAJ159: 0 | AAK159: 0 | AAL159: 0 | AAM159: 0 | AAN159: 0 | AAO159: 0 | AAP159: 0 | AAQ159: 0 | AAR159: 0 | AAS159: 0 | AAT159: 0 | AAU159: 0 | AAV159: 0 | AAW159: 0 | AAX159: 0 | AAY159: 0 | AAZ159: 0 | ABA159: 0 | ABB159: 0 | ABC159: 0 | ABD159: 0 | ABE159: 0 | ABF159: 2 | ABG159: 0 | ABH159: 0 | ABI159: 0 | ABJ159: 0 | ABK159: 0 | ABL159: 0 | ABM159: 0 | ABN159: 0 | ABO159: 0 | ABP159: 0 | ABQ159: 0 | ABR159: 0 | ABS159: 0 | ABT159: 0 | ABU159: 0 | ABV159: 0 | ABW159: 0 | ABX159: 1 | ABY159: 0 | ABZ159: 0 | ACA159: 0 | ACB159: 0 | ACC159: 0 | ACD159: 0 | ACE159: 0 | ACF159: 0 | ACG159: 0 | ACH159: 0 | ACI159: 0 | ACJ159: 0 | ACK159: 0 | ACL159: 0

Sheet CDM_Projects
C1: 1900-01-14 | F1: =+Analysis!B55 -> 550 | G1: Alive CDM projects in the pipeline | K1: White color & with ref number means "Pending Publication" | AZ1: Means no data in the PDD | BI1: means several values
C2: means registered | F2: means rejected/withdrawn/validation stopped | L2: means has requested registration | BH2: CER price= | BI2: 12 | BJ2: US$
A3: =+Methods!A2 -> The Pipeline was produced by Aiymgul Kerimray, UNEP Copenhagen Climate Centre, 1 April 2023, Aiymgul.kerimray@un.org, Phone (+45)45335287 | Y3: CERs issued
A4: ID | B4: Idval at validation | C4: Ref. | D4: Title | E4: Region | F4: Sub-region | G4: Host country | H4: Host country 2 | I4: Province / State | J4: Status | K4: Type | L4: Sub-type | M4: Methodology | N4: 1st period ktCO2e/yr | O4: 2nd period ktCO2e/yr | P4: 3rd period ktCO2e/yr | Q4: yrs. | R4: Slope | S4: Credit start | U4: Expected accumu-lated 2025 ktCO2e | W4: Validator | X4: Host country use | Y4: kCERs CP1 | Z4: kCERs CP2 | AA4: Total issuance (kCERs) | AB4: First issuance | AC4: Until | AD4: Expected kCERs | AE4: Issuance success | AF4: Issuance delay (months) | AG4: Voluntary cancel-lations (kCERs) | AH4: First Verifier | AI4: Credit buyer | AJ4: Withdrawn Credit buyer | AK4: PDD Consultant | AL4: First Start comment | AM4: Resubmission date | AN4: Former submission | AO4: Next submission | AP4: Host LoA | AQ4: Reg. Request | AR4: Start date for 4 week request review period (8 weeks <EB54 for large scale projects) | AS4: Date of registration | AT4: Date of de-registration | AU4: Review history | AV4: SD Tool, Gold Standard & CCB project number | AW4: MWel | AX4: Full time hours | AY4: Grid emission factor tCO2e/MWh | AZ4: Annual EE GWh reduced | BA4: Forest size ha | BB4: Automatic additionality | BC4: Supported by CDM Loan Scheme | BD4: Invest-ment MUS$ | BE4: Invest-ment US$/tCO2 | BF4: Invest-ment US$/kW | BG4: Annual invest-ment con-tribution | BH4: IRR % excl. CER | BI4: IRR bench-mark | BJ4: IRR % incl. CER | BK4: CER price US$/tCO2 | BL4: Last contact with Secre-tariat (Updated 7 November 2019) | BM4: Comments
A5: CDM00075 | B5: 698U0F7HWTOMED6G4JMCT47VG24OIQ | C5: 70 | D5: Paramonga CDM Bagasse Boiler Project | E5: Latin America | F5: South America | G5: Peru | J5: Withdrawn | K5: Biomass energy | L5: Bagasse power | M5: AMS-I.C. | N5: 85.3 | Q5: 10 | S5: 2006-05-01 | W5: DNV | AI5: n.a. | AK5: CAEMA | AL5: 2005-02-13 | AQ5: 2005-05-24 | AR5: 2005-06-03 | AU5: Withdrawn | AW5: 0 | BD5: 5.369 | BE5: =BD5*1000/N5 -> 62.94255569 | BL5: 2005m7
A6: CDM00015 | B6: 193DY6Q0FKDKQFN6BVDQQ80R3G4INL | C6: 132 | D6: KUNAK BIO ENERGY PROJECT | E6: Asia & Pacific | F6: Southeast Asia | G6: Malaysia | J6: Withdrawn | K6: Biomass energy | L6: Palm oil solid waste | M6: AMS-I.D. | N6: 51.2 | Q6: 7 | S6: 2005-01-01 | W6: DNV | AI6: n.a. | AK6: Danish Energy Management | AL6: 2004-05-07 | AO6: CDM10080 | AQ6: 2005-11-22 | AR6: 2005-12-02 | AU6: Withdrawn | AW6: 14 | BL6: 2005m12 | BM6: Same af rejected ref=1505 and registered ref=3520
A7: CDM00718 | B7: X1L77SFTNJZH9GFT7MV050IRZ5KF6J | C7: 552 | D7: "16 MW Bagasse based cogeneration plant" by GMR Industries Ltd. (GIDL) | E7: Asia & Pacific | F7: Southern Asia | G7: India | J7: Withdrawn | K7: Biomass energy | L7: Bagasse power | M7: ACM6 | N7: 40.182 | Q7: 7 | S7: 2006-10-01 | W7: SGS | AI7: n.a. | AK7: GMR Industries | AL7: 2006-04-13 | AP7: 2006-06-14 | AQ7: 2006-08-07 | AR7: 2006-09-02 | AU7: Withdrawn | AW7: 16 | BD7: =374.3/Invest!AM13 -> 8.165357766 | BE7: =BD7*1000/N7 -> 203.2093416 | BF7: =BD7/AW7*1000 -> 510.3348604 | BL7: 2007m1
A8: CDM01040 | B8: GYT2NDL5W3LW6FAC1VS5BCG1TVCD9K | C8: 626 | D8: Methane Recovery and Electricity Generation Project GCM 23 | E8: Latin America | F8: North America | G8: Mexico | J8: Withdrawn | K8: Methane avoidance | L8: Manure | M8: AMS-III.D.+AMS-I.D. | N8: 5.428 | Q8: 10 | S8: 2007-02-01 | W8: DNV | AI8: Switzerland (Cargill International), United K. (EcoSecurities) | AK8: EcoSecurities | AL8: 2006-08-12 | AP8: 2006-09-08 | AQ8: 2006-11-17 | AR8: 2006-11-17 | AU8: Withdrawn | AW8: 0.01 | BL8: 2015m5
A9: CDM00716 | B9: V11V7WFDT1F5GW5M9CE5I2NBE9SJSR | C9: 737 | D9: Switching fossil fuels in an industrial facility by Indorama Cement Ltd | E9: Asia & Pacific | F9: Southern Asia | G9: India | I9: Maharashtra | J9: Withdrawn | K9: EE industry | L9: Cement | M9: AMS-III.B. | N9: 10.6 | Q9: 10 | R9: 0 | S9: 2006-09-01 | W9: SGS | AI9: n.a. | AK9: Indo Rama | AL9: 2006-04-12 | AP9: 2006-08-23 | AQ9: 2006-10-25 | AR9: 2006-12-01 | AU9: Withdrawn | AW9: 0 | BL9: 2014m3 | BM9: Had a correction 1
A10: CDM01761 | B10: 5W1CB3RE7RHVLSI6KUKF0YEIFERWXY | C10: 920 | D10: Guaxuma Renewable Irrigation Project | E10: Latin America | F10: South America | G10: Brazil | J10: Withdrawn | K10: Biomass energy | L10: Bagasse power | M10: AMS-I.B. | N10: 5.801 | Q10: 7 | S10: 2001-01-01 | W10: DNV | AI10: United K. (EcoSecurities) | AK10: EcoSecurities | AL10: 2005-09-16 | AP10: 2006-12-21 | AQ10: 2007-02-08 | AR10: 2007-03-06 | AU10: Withdrawn | AW10: 5 | BL10: 2007m4 | BM10: This was before a part of Uruba Renewable Irrigation Project" - CDM0254
A11: CDM01125 | B11: Q2W1OMWAMLK89R2NVQ5E9J2ZG3HGF3 | C11: 1069 | D11: BCML Haidergarh Bagasse Co-generation Project (India) | E11: Asia & Pacific | F11: Southern Asia | G11: India | J11: Withdrawn | K11: Biomass energy | L11: Bagasse power | M11: ACM6 | N11: 58.4394 | Q11: 10 | S11: 2003-11-01 | W11: SGS | AI11: Netherlands (International Finance Corporation) | AK11: Balrampur Chini Mills | AL11: 2006-09-08 | AP11: 2007-03-29 | AQ11: 2007-03-31 | AR11: 2007-04-24 | AU11: Withdrawn | AW11: 22.5 | BL11: 2007m8
A12: CDM00394 | B12: TGNFGA8LTIQQQBEF9YUXEGJM3JE5VS | C12: 1072 | D12: ENERGY EFFICIENCY MEASURES AT CEMENT PRODUCTION PLANT IN CENTRAL INDIA | E12: Asia & Pacific | F12: Southern Asia | G12: India | I12: Madhya Pradesh | J12: Withdrawn | K12: EE industry | L12: Cement | M12: AMS-II.D. | N12: 6.864 | Q12: 10 | R12: 0 | S12: 2000-07-28 | W12: SGS | AI12: n.a. | AK12: Satna Cement Works | AL12: 2005-11-05 | AP12: 2006-01-13 | AQ12: 2007-03-23 | AR12: 2007-05-15T02:00:00 | AU12: Withdrawn | AW12: 0 | BL12: 2012m7 | BM12: Had a Correction 1
A13: CDM00649 | B13: EBVKS9UCMHDK9EHHYKDJUQJONJ4NYJ | C13: 1076 | D13: SRBSL – Waste Heat Recovery based Captive Power Project | E13: Asia & Pacific | F13: Southern Asia | G13: India | J13: Withdrawn | K13: EE own generation | L13: Iron & steel heat | M13: ACM4 | N13: 51.504 | Q13: 10 | S13: 2007-06-09 | W13: SGS | AI13: n.a. | AK13: Ramrupai Balaji Steels | AL13: 2006-03-08 | AP13: 2005-05-02 | AQ13: 2007-04-13 | AR13: 2007-05-12T02:00:00 | AU13: Withdrawn | AW13: 9.6 | AX13: =62600/AW13 -> 6520.833333 | BL13: 2007m10
A14: CDM01205 | B14: W7O2TRH6SAO646M9C2CA4ZO7B8AS65 | C14: 1086 | D14: BHL Bilai Project | E14: Asia & Pacific | F14: Southern Asia | G14: India | I14: Uttar Pradesh | J14: Withdrawn | K14: Biomass energy | L14: Bagasse power | M14: ACM6 | N14: 29.772 | Q14: 10 | R14: 0 | S14: 2007-07-15 | W14: DNV | AI14: United K. (Agrinergy) | AK14: Agrinergy | AL14: 2006-09-23 | AP14: 2006-12-27 | AQ14: 2007-04-16 | AR14: 2007-05-12 | AU14: Withdrawn | AW14: 13 | BL14: 2007m10
A15: CDM02079 | B15: E0RTEXUFQ4A17BHE71BWFZ2HHDI92N | C15: 1185 | D15: LG Chem Naju plant fuel switching project | E15: Asia & Pacific | F15: East Asia | G15: South Korea | I15: Jeollanam-do | J15: Withdrawn | K15: Fossil fuel switch | L15: Oil to natural gas | M15: AMS-III.B. | N15: 22.504 | Q15: 10 | S15: 2007-08-01 | W15: KEA | AI15: Japan (Mitsubishi UFJ Securities) | AK15: Mitsubishi UFJ Securities | AL15: 2006-08-11 | AM15: 2007-05-15 | AN15: CDM01005 | AP15: 2006-12-20 | AQ15: 2007-06-19 | AR15: 2007-07-26T02:00:00 | AU15: Withdrawn | AW15: 0 | BD15: =800/Invest!AM23 -> 0.7084159819 | BE15: =BD15*1000/N15 -> 31.47955838 | BL15: 2008m3 | BM15: Resubmitted as CDM03973
A16: CDM00769 | B16: 1SYD08KTQBHHVTGOJEL182XMSOQ84M | C16: 1292 | D16: Power generation from waste heat of new DRI kilns at JSPL | E16: Asia & Pacific | F16: Southern Asia | G16: India | I16: Chhattisgarh | J16: Withdrawn | K16: EE own generation | L16: Cement heat | M16: ACM4 | N16: 287.968 | Q16: 10 | S16: 2007-09-01 | W16: BV Cert | AI16: n.a. | AK16: Jindal Steel & Power | AL16: 2006-05-14 | AM16: 2006-06-04 | AN16: CDM10579 | AP16: 2006-11-03 | AQ16: 2007-11-20 | AR16: 2007-11-21T01:00:00 | AU16: Withdrawn | AW16: 50 | AX16: =354780/AW16 -> 7095.6 | BL16: 2008m3
A17: CDM02473 | B17: ZLZSX7X0IJ8EXRWIM4HUG15D84HP44 | C17: 1460 | D17: Energy Efficiency Improvement by Waste Heat Recovery | E17: Asia & Pacific | F17: Southern Asia | G17: India | I17: Rajasthan | J17: Withdrawn | K17: EE industry | L17: Chemicals | M17: AMS-II.B. | N17: 24.311 | Q17: 10 | R17: 0 | S17: 2008-01-03 | W17: BV Cert | AI17: n.a. | AK17: DSCL Energy Services | AL17: 2007-08-01 | AP17: 2007-09-07 | AQ17: 2007-12-03 | AR17: 2008-02-28T01:00:00 | AU17: Withdrawn | AW17: 0 | BL17: 2008m4
A18: CDM01675 | B18: VIZ03SRFBBYJM6ZWEQZRWYG7LGJZS1 | C18: 1463 | D18: “Coconut shell charcoaling and power generation at Badalgama, Sri Lanka” | E18: Asia & Pacific | F18: Southern Asia | G18: Sri Lanka | J18: Withdrawn | K18: Biomass energy | L18: Gasification of biomass | M18: AMS-III.K.+AMS-I.D. | N18: 43.113 | Q18: 7 | S18: 2008-01-05 | W18: TÜV-SÜD | AI18: Japan (Japan Carbon Finance) | AK18: Recogen | AL18: 2007-02-21 | AM18: 2008-04-17 | AO18: CDM03541 | AP18: 2005-10-20 | AQ18: 2007-12-06 | AR18: 2008-01-24T01:00:00 | AU18: Withdrawn | AW18: 5.5 | BL18: 2017m10
A19: CDM02073 | B19: OIOGNUE9O591EL61AO0AWE85X6KQ4O | C19: 1556 | D19: Nanzhahe Cascade Hydropower Project | E19: Asia & Pacific | F19: East Asia | G19: China | I19: Yunnan | J19: Withdrawn | K19: Hydro | L19: Run of river | M19: AMS-I.D. | N19: 33.734 | Q19: 7 | R19: 0 | S19: 2008-04-01 | W19: TÜV-SÜD | AI19: Sweden (Standard Bank) | AK19: AGET | AL19: 2007-05-12 | AP19: 2007-10-15 | AQ19: 2008-01-17 | AR19: 2008-04-10T02:00:00 | AU19: Withdrawn | AW19: 10.4 | AX19: =40000/AW19 -> 3846.153846 | BD19: =(25.64+18.25)/Invest!AM13 -> 0.957460733 | BE19: =BD19*1000/N19 -> 28.38266239 | BF19: =BD19/AW19*1000 -> 92.06353202 | BL19: 2008m6
A20: CDM01605 | B20: SO1B90EIM56PRBSUFPIKDTIWBRM7E9 | C20: 1561 | D20: AWMS Methane Recovery Project MX07-S-110, Chihuahua, México | E20: Latin America | F20: North America | G20: Mexico | I20: Chihuahua | J20: Withdrawn | K20: Methane avoidance | L20: Manure | M20: AMS-III.D. | N20: 35.484 | Q20: 7 | S20: 2008-03-01 | W20: TÜV-SÜD | AI20: n.a. | AK20: AgCert | AL20: 2007-01-31 | AP20: 2006-08-07 | AQ20: 2008-01-17 | AR20: 2008-02-27T01:00:00 | AU20: Withdrawn | BL20: 2008m3
A21: CDM01604 | B21: K6RR51167SGN0H5TRRWJ7WZ2HP7FP2 | C21: 1562 | D21: AWMS Methane Recovery Project MX07-S-111, Sonora, México | E21: Latin America | F21: North America | G21: Mexico | I21: Sonora | J21: Withdrawn | K21: Methane avoidance | L21: Manure | M21: AMS-III.D. | N21: 20.94 | Q21: 7 | R21: 0 | S21: 2008-03-01 | W21: TÜV-SÜD | AI21: n.a. | AK21: AgCert | AL21: 2007-01-31 | AP21: 2007-03-08 | AQ21: 2008-01-17 | AR21: 2008-03-01T01:00:00 | AU21: Withdrawn | AW21: 0 | BL21: 2008m3
A22: CDM01743 | B22: M7ST27JFUJQA5479S819P5I5RX6FKG | C22: 1563 | D22: AWMS Methane Recovery Project MX07-S-112, Sonora, México | E22: Latin America | F22: North America | G22: Mexico | I22: Sonora | J22: Withdrawn | K22: Methane avoidance | L22: Manure | M22: AMS-III.D. | N22: 38.618 | Q22: 7 | S22: 2008-03-01 | W22: TÜV-SÜD | AI22: n.a. | AK22: AgCert | AL22: 2007-03-03 | AP22: 2007-03-08 | AQ22: 2008-01-17 | AR22: 2008-03-05T01:00:00 | AU22: Withdrawn | BL22: 2008m3
A23: CDM00707 | B23: HQQDJ57HPUBUZK6UX621RUEMU2I1F6 | C23: 1572 | D23: 20MW Bagasse based Cogeneration power project at Bannari Amman Sugars Limited Sathyamangalam, Tamil Nadu | E23: Asia & Pacific | F23: Southern Asia | G23: India | I23: Tamil Nadu | J23: Withdrawn | K23: Biomass energy | L23: Bagasse power | M23: ACM6 | N23: 80.973 | Q23: 10 | R23: 0 | S23: 2008-04-01 | W23: SGS | AI23: n.a. | AK23: Bannari Amman Group | AL23: 2006-04-08 | AM23: 2007-05-18 | AN23: CDM02105 | AP23: 2005-02-28 | AQ23: 2008-01-17 | AR23: 2008-04-15 | AU23: Withdrawn | AW23: 20 | AX23: =119106/AW23 -> 5955.3 | BL23: 2008m8 | BM23: Registered as CDM04561
A24: CDM01414 | B24: W0FVPOIRKW2IQ5IV9V6GXJMIVUVX7K | C24: 1663 | D24: GREEN ENERGY TO GRID at Dhule, Maharashtra | E24: Asia & Pacific | F24: Southern Asia | G24: India | I24: Maharashtra | J24: Withdrawn | K24: Wind | L24: Wind | M24: ACM2 | N24: 38.098 | Q24: 10 | R24: 0 | S24: 2008-06-01 | W24: BV Cert | AI24: n.a. | AK24: MSPL | AL24: 2006-11-29 | AP24: 2007-04-03 | AQ24: 2008-03-04 | AR24: 2008-04-11 | AU24: Withdrawn | AW24: 21.3 | AX24: =42807/AW24 -> 2009.71831 | BD24: =1078.3/Invest!AM13 -> 23.52312391 | BE24: =BD24*1000/N24 -> 617.4372384 | BF24: =BD24/AW24*1000 -> 1104.372015 | BL24: 2008m7
A25: CDM01353 | B25: SFYVTBY4XLC7EUG6TTD46XS5OAS9TZ | C25: 1691 | D25: Captive power generation through waste heat recovery system in a steel plant in Jinan City, China | E25: Asia & Pacific | F25: East Asia | G25: China | I25: Shandong | J25: Withdrawn | K25: EE own generation | L25: Iron & steel heat | M25: ACM4+ACM2 | N25: 167.055 | Q25: 10 | R25: 0 | S25: 2008-06-01 | W25: DNV | AI25: Japan (Nippon Steel) | AK25: Nippon Steel, Jinan Iron and Steel Group Corporation | AL25: 2006-11-11 | AP25: 2007-08-26 | AQ25: 2008-03-05 | AR25: 2008-04-16 | AU25: Withdrawn | AW25: 25 | AX25: =176778/AW25 -> 7071.12 | BD25: =170/Invest!AM4 -> 22.2513089 | BE25: 133.1975032 | BF25: =BD25/AW25*1000 -> 890.052356 | BL25: 2014m3 | BM25: Had a correction 2
A26: CDM02447 | B26: L4AZTF9DDV290XZI0SSE9CYISOY05J | C26: 1771 | D26: Taebaek Wind Power Project | E26: Asia & Pacific | F26: East Asia | G26: South Korea | I26: Gangwon-do | J26: Withdrawn | K26: Wind | L26: Wind | M26: ACM2+AMS-I.D. | N26: 9.198 | Q26: 10 | R26: 0 | S26: 2008-06-05 | W26: KFQ | AI26: n.a. | AK26: Ecosian | AL26: 2007-07-21 | AP26: 2007-11-01 | AQ26: 2008-04-07 | AR26: 2008-07-11T02:00:00 | AU26: Withdrawn | AW26: 6.8 | AX26: =14400/AW26 -> 2117.647059 | BD26: =13500/Invest!AM23 -> 11.95451969 | BE26: 1299.686855 | BF26: =BD26/AW26*1000 -> 1758.017602 | BL26: 2008m10
A27: CDM02198 | B27: H9YCHHWTR3LYR6L21WTST4EU6B6SVF | C27: 1796 | D27: 15 MW Grid Connected Wind Turbine Project in Karnataka | E27: Asia & Pacific | F27: Southern Asia | G27: India | I27: Karnataka | J27: Withdrawn | K27: Wind | L27: Wind | M27: AMS-I.D. | N27: 28.10646 | Q27: 10 | R27: 0 | S27: 2008-06-01 | W27: BV Cert | AI27: n.a. | AK27: Symbiotec Research Associates | AL27: 2007-06-13 | AP27: 2007-12-27 | AQ27: 2008-04-09 | AR27: 2008-07-29T02:00:00 | AU27: Withdrawn | AW27: 15 | AX27: =35400/AW27 -> 2360 | BD27: =750/Invest!AM13 -> 16.36125654 | BE27: 582.1172977 | BF27: =BD27/AW27*1000 -> 1090.750436 | BL27: 2008m9
A28: CDM02245 | B28: F41KAK2Y0SS1MOW9Q1R56ME5WDLHOF | C28: 1803 | D28: 4 MW biomass based power generation project at Guntur, Andhra Pradesh. | E28: Asia & Pacific | F28: Southern Asia | G28: India | I28: Andhra Pradesh | J28: Withdrawn | K28: Biomass energy | L28: Agricultural residues: other kinds | M28: AMS-I.D. | N28: 23.123 | Q28: 10 | R28: 0 | S28: 2008-06-01 | W28: BV Cert | AI28: n.a. | AK28: MITCON | AL28: 2007-06-22 | AP28: 2007-02-22 | AQ28: 2008-04-09 | AR28: 2008-07-15 | AU28: Withdrawn | AW28: 4 | AX28: =24480/AW28 -> 6120 | BD28: =159.409/Invest!AM13 -> 3.477508726 | BE28: 150.3917626 | BF28: =BD28/AW28*1000 -> 869.3771815 | BL28: 2008m8
A29: CDM02146 | B29: XR9VM6ZBMVL76D4OI5RQZ66I0PRKBD | C29: 1812 | D29: Pig City confined swine feeding operations methane capture and combustion from improved animal waste management system | E29: Asia & Pacific | F29: Southeast Asia | G29: Philippines | I29: Southern Tagalog | J29: Withdrawn | K29: Methane avoidance | L29: Manure | M29: AMS-III.D. | N29: 45.62093 | Q29: 7 | S29: 2008-06-01 | W29: TÜV-SÜD | AI29: n.a. | AK29: CaFiS | AL29: 2006-01-17 | AM29: 2007-05-31 | AN29: CDM00577 | AP29: 2006-10-19 | AQ29: 2008-04-09 | AR29: 2008-09-04T02:00:00 | AU29: Withdrawn | AW29: 0 | BD29: =67.476/Invest!AM21 -> 1.37762352 | BE29: 30.19718186 | BL29: 2008m11
A30: CDM02472 | B30: CJJACA7U4ILONCA4SXLQVQORWJMKCC | C30: 1819 | D30: Ceran´s Castro Alves Hydro Power Plant CDM Project Activity | E30: Latin America | F30: South America | G30: Brazil | I30: Rio Grande do Sul | J30: Withdrawn | K30: Hydro | L30: New dam | M30: ACM2 | N30: 314.636 | Q30: 7 | R30: 0 | S30: 2008-06-17 | W30: SGS | AI30: n.a. | AK30: Lumina Energia | AL30: 2007-07-31 | AO30: CDM05554 | AP30: 2007-12-21 | AQ30: 2008-04-21 | AR30: 2008-08-27 | AU30: Withdrawn | AW30: 130 | AX30: =560640/AW30 -> 4312.615385 | BD30: =212.401/Invest!AM3 -> 95.2470852 | BE30: 302.7215106 | BF30: =BD30/AW30*1000 -> 732.6698862 | BL30: 2008m12 | BM30: 26 W/m2
A31: CDM02621 | B31: 8RY92JBMLBQVV73V7IY8JWVRE2V9EL | C31: 1935 | D31: Organic Waste Composting at Takon Palm Oil Mill, Malaysia | E31: Asia & Pacific | F31: Southeast Asia | G31: Malaysia | I31: Sabah | J31: Withdrawn | K31: Methane avoidance | L31: Composting | M31: AM39 | N31: 58.734 | Q31: 10 | R31: 8.5 | S31: 2008-10-01 | W31: TÜV-Rhein | AI31: United K. (Aretae) | AK31: LFGC Corporation | AL31: 2007-09-07 | AO31: CDM05017 | AP31: 2008-05-27 | AQ31: 2008-07-01 | AR31: 2008-09-09 | AU31: Withdrawn | AW31: 0 | BD31: 4.9 | BE31: 83.42697586 | BJ31: 8.95 | BL31: 2009m1
... 36 more rows

Sheet Vol.Cancel
A1: This sheet shows the voluntary cancellations reported to UNFCCC at cdm.unfccc.int/Registry/vc_attest/index.html
A3: Ref. | B3: Title | C3: Type | D3: Subtype | E3: Host | F3: kCERs | G3: Date | H3: Purpose
A4: 2569 | B4: Reforestation as Renewable Source of Wood Supplies for Industrial Use in Brazil | C4: Reforestation | D4: Reforestation | E4: Brazil | F4: 5.294 | G4: 2012-10-27 | H4: Plantar Carbon
A5: 2486 | B5: Conversion of SF6 to the alternative cover gas SO2 at RIMA magnesium production | C5: PFCs+SF6 | D5: SF6 | E5: Brazil | F5: 5.294 | G5: 2012-10-27 | H5: Rima Industrial S.A
A6: 373 | B6: São João Landfill Gas to Energy Project (SJ) | C6: Landfill Gas | D6: Landfill power | E6: Brazil | F6: 5 | G6: 2012-10-27 | H6: Biogás Energia Ambiental S.A
A7: 268 | B7: Lages Methane Avoidance Project | C7: Biomass Energy | D7: Forest residues: sawmill waste | E7: Brazil | F7: 5 | G7: 2012-10-27 | H7: Tractebel Energia S.A
A8: 143 | B8: UTE Barreiro S.A. Renewable Electricity Generation Project | C8: Biomass Energy | D8: Forest biomass | E8: Brazil | F8: 5 | G8: 2012-10-27 | H8: V&M do Brasil S.A
A9: 331 | B9: Biomass based independent power project at Malwa Power Private Limited, Mukatsar, Punjab | C9: Biomass | D9: Agricultural residues: other kinds | E9: India | F9: 43.267 | G9: 2012-11-23 | H9: Offset for Vattenfall Group business travel 2011/2012, part 1 of 2
A10: 2848 | B10: Bailongjiang Dalijie Hydropower Station | C10: Hydro | D10: Run of river | E10: China | F10: =36.733 -> 36.733 | G10: 2012-11-23 | H10: Offset for Vattenfall Group business travel 2011/2012, part 2 of 2
A11: 2848 | B11: Bailongjiang Dalijie Hydropower Station | C11: Hydro | D11: Run of river | E11: China | F11: =1.066 -> 1.066 | G11: 2012-11-23 | H11: Offset for greenhouse gas emissions from Vattenfall Distribution transformer stations in Sweden in 2011
A12: 2120 | B12: Qi'nan Hydro Power Project | C12: Hydro | D12: Run of river | E12: China | F12: =2.5 -> 2.5 | G12: 2012-11-28 | H12: Project Developer Forum PDF Offsets Entire Carbon Footprint of delegates to UNFCCC Climate Conference in Doha COP18/CMP8
A13: 1171 | B13: Project for the catalytic reduction of N2O emissions with a secondary catalyst inside the ammonia reactor of the No. 9 nitric acid plant at African Explosives Ltd (“AEL”), South Africa | C13: N20 | D13: Nitric acid | E13: South Africa | F13: =1 -> 1 | G13: 2012-11-30 | H13: Project Developer Forum PDF Offsets Entire Carbon Footprint of delegates to UNFCCC Climate Conference in Doha COP18/CMP8
A14: 1144 | B14: Tambun LPG Associated Gas Recovery and Utilization Project | C14: Fugitive | D14: Oil field flaring reduction | E14: Indonesia | F14: =0.25 -> 0.25 | G14: 2012-12-05 | H14: Energy changes Projektentwicklung GmbH's contribution towards the PD Forum's initiative to Offset the Carbon Footprint of delegates to UNFCCC [Climate Conference] in Doha COP18/CMP8
A15: 1144 | B15: Tambun LPG Associated Gas Recovery and Utilization Project | C15: Fugitive | D15: Oil field flaring reduction | E15: Indonesia | F15: =0.05 -> 0.05 | G15: 2012-12-05 | H15: Ralph Westermann's contribution towards the Project Developer Forum's initiative to Offset the Carbon Footprint of delegates to UNFCCC [Climate Conference] in Doha COP18/CMP8
A16: 1144 | B16: Tambun LPG Associated Gas Recovery and Utilization Project | C16: Fugitive | D16: Oil field flaring reduction | E16: Indonesia | F16: =0.5 -> 0.5 | G16: 2012-12-05 | H16: UPM Environment Engineering Project Management Consulting's contribution towards the Project Developer Forum's initiative to Offset the Carbon Footprint of delegates to UNFCCC [Climate Conference] in Doha COP18/CMP8
A17: 1144 | B17: Tambun LPG Associated Gas Recovery and Utilization Project | C17: Fugitive | D17: Oil field flaring reduction | E17: Indonesia | F17: =0.25 -> 0.25 | G17: 2012-12-05 | H17: Emergent Ventures India Pvt Ltd.'s contribution towards the Project Developer Forum's initiative to Offset the Carbon Footprint of delegates to UNFCCC [Climate Conference] in Doha COP18/CMP8
A18: 1144 | B18: Tambun LPG Associated Gas Recovery and Utilization Project | C18: Fugitive | D18: Oil field flaring reduction | E18: Indonesia | F18: =2.5 -> 2.5 | G18: 2012-12-05 | H18: Sindicatum Sustainable Resources' contribution towards the Project Developer Forum's initiative to Offset the Carbon Footprint of delegates to UNFCCC [Climate Conference] in Doha COP18/CMP8
A19: 0259 | B19: Trupan Biomass Power Plant in Chile | C19: Biomass Energy | D19: Forest residues: sawmill waste | E19: Chile | F19: =3.03 -> 3.03 | G19: 2013-01-14 | H19: Agreement of carbon compensation between Arauco and the Chilean Foreign Ministry, dated August 2, 2012
A20: 1144 | B20: Tambun LPG Associated Gas Recovery and Utilization Project | C20: Fugitive | D20: Oil field flaring reduction | E20: Indonesia | F20: =0.3 -> 0.3 | G20: 2013-02-05 | H20: Ralph Westermann's second contribution towards the Project Developer Forum's initiative to Offset the Carbon Footprint of delegates to the UNFCCC [Climate Conference] in doha COP18/CMP8
A21: 1144 | B21: Tambun LPG Associated Gas Recovery and Utilization Project | C21: Fugitive | D21: Oil field flaring reduction | E21: Indonesia | F21: =0.5 -> 0.5 | G21: 2013-02-05 | H21: Promethium Carbon's contribution towards the Project Developer Forum's initiative to Offset the Carbon Footprint of delegates to the UNFCCC [Climate Conference] in doha COP18/CMP8
A22: 1144 | B22: Tambun LPG Associated Gas Recovery and Utilization Project | C22: Fugitive | D22: Oil field flaring reduction | E22: Indonesia | F22: =0.5 -> 0.5 | G22: 2013-02-05 | H22: Enecore's contribution towards the Project Developer Forum's initiative to Offset the Carbon Footprint of delegates to the UNFCCC [Climate Conference] in doha COP18/CMP8
A23: 1144 | B23: Tambun LPG Associated Gas Recovery and Utilization Project | C23: Fugitive | D23: Oil field flaring reduction | E23: Indonesia | F23: =0.5 -> 0.5 | G23: 2013-02-05 | H23: Mabanaft Carbon's contribution towards the Project Developer Forum's initiative to Offset the Carbon Footprint of delegates to the UNFCCC [Climate Conference] in doha COP18/CMP8
A24: 2417 | B24: Chile: Lircay Run-Of-River Project | C24: Hydro | D24: Run of river | E24: Chile | F24: =0.35 -> 0.35 | G24: 2013-02-07 | H24: C-Quest Capital LLC's second contribution towards the Project Developer Forum's initiative to Offset the Carbon Footprint of delegates to the UNFCCC [Climate Conference] in doha COP18/CMP8
A25: 0773 | B25: Ceran's Monte Claro Run of River Hydropower Plant CDM Project Activity - Crediting Period Renewal Request | C25: Hydro | D25: Run of river | E25: Brazil | F25: =0.001 -> 0.001 | G25: 2013-02-08 | H25: 1.000Zs cancelled in favor of ZCO2
A26: 1144 | B26: Tambun LPG Associated Gas Recovery and Utilization Project | C26: Fugitive | D26: Oil field flaring reduction | E26: Indonesia | F26: =1 -> 1 | G26: 2013-02-08 | H26: Sindicatum Sustainable Resource's second contribution towards the Project Developer Forum's initiative to Offset the Carbon Footprint of delegates to the UNFCCC [Climate Conference] in doha COP18/CMP8
A27: 1144 | B27: Tambun LPG Associated Gas Recovery and Utilization Project | C27: Fugitive | D27: Oil field flaring reduction | E27: Indonesia | F27: =1 -> 1 | G27: 2013-02-08 | H27: To offset GHG emissions from the Sindicatum Sustainable Resources Group for the years 2011 and 2012
A28: 4295 | B28: Southern District Heating Network in Urumqi City | C28: Energy distribution | D28: District heating | E28: China | F28: =2.5 -> 2.5 | G28: 2013-03-15 | H28: Vitols contribution towards the Project Developer Forum's initiative to Offset the Carbon Footprint of delegates to the UNFCCC [Climate Conference] in doha COP18/CMP8
A29: 5204 | B29: Hubei Lichuan Qiyueshan Wind Power Project | C29: Wind | E29: China | F29: =2.5 -> 2.5 | G29: 2013-03-21 | H29: Gazprom M&T and Caspervanertak Consulting's contribution towards the Project Developer Forum's initiative to Offset the Carbon Footprint of delegates to the UNFCCC [Climate Conference] in doha COP18/CMP8
A30: 2142 | B30: Longyou 18 MW Hydropower Project in Zhejiang Province | C30: Hydro | D30: New dam | E30: China | F30: =35 -> 35 | G30: 2013-03-26 | H30: Offset for Vattenfall Green products Netherlands, (Nuon)
A31: 2142 | B31: Longyou 18 MW Hydropower Project in Zhejiang Province | C31: Hydro | D31: New dam | E31: China | F31: =2.208 -> 2.208 | G31: 2013-03-26 | H31: Offset for greenhous gas emmissions from Vattenfall Distribution transformer stations in Sweden in 2012
A32: 1883 | B32: DAEGU & SINANJEUNGDO PV(PHOTOVOLTAIC) POWER PLANT PROJECT | C32: Solar | D32: Solar PV | E32: South Korea | F32: =1.023+0.836 -> 1.859 | G32: 2013-04-02 | H32: Offset of greenhouse gas emissions from donators of GOOD CARBON FUND
A33: 1011 | B33: N2O Emission Reduction in nitric acid plant Paulínia, SP, Brazil | C33: N2O | D33: Nitric acid | E33: Brazil | F33: =0.3 -> 0.3 | G33: 2013-06-11 | H33: Trial Run for Taiwan-based entities voluntary cancellation / Beneficiary: Environmental Science Technology Consultants Corporation (Taiwan)
A34: 2569 | B34: Reforestation as Renewable Source of Wood Supplies for Industrial Use in Brazil | C34: Reforestation | E34: Brazil | F34: =0.077 -> 0.077 | G34: 2013-07-24 | H34: Semana do Meio Ambiente Inhotim 2013
A35: 11 | B35: Project for GHG Emission Reduction by Thermal Oxidation of HFC23 in Jiangsu Meilan Chemical CO. Ltd., Jiangsu Province, China | C35: HFCs | D35: HFC23 | E35: China | F35: =3.78+2.529+3.983+6.012+1.402 -> 17.706 | G35: 2013-08-28 | H35: The Government of Canada has withdrawn from the Kyoto Protocol and requested IBRD as Trustee of the Prototype Carbon Fund to cancel all emissions reductions resulting from its participation in the Fund
A36: 606 | B36: El Canadá Hydroelectric Project | C36: Hydro | D36: Run of river | E36: Guatemala | F36: =9.024+12.458 -> 21.482 | G36: 2013-08-28 | H36: The Government of Canada has withdrawn from the Kyoto Protocol and requested IBRD as Trustee of the Prototype Carbon Fund to cancel all emissions reductions resulting from its participation in the Fund
A37: 306 | B37: Project for HFC23 Decomposition at Changshu 3F Zhonghao New Chemical Materials Co. Ltd, Changshu, Jiangsu Province, China | C37: HFCs | D37: HFC23 | E37: China | F37: =0.823+2.327+8.608+8.307 -> 20.065 | G37: 2013-08-28 | H37: The Government of Canada has withdrawn from the Kyoto Protocol and requested IBRD as Trustee of the Prototype Carbon Fund to cancel all emissions reductions resulting from its participation in the Fund
A38: 251 | B38: Cote small-scale hydropower plant | C38: Hydro | D38: Existing dam | E38: Costa Rica | F38: =1.385 -> 1.385 | G38: 2013-08-28 | H38: The Government of Canada has withdrawn from the Kyoto Protocol and requested IBRD as Trustee of the Prototype Carbon Fund to cancel all emissions reductions resulting from its participation in the Fund
A39: 493 | B39: Indocement Alternative Fuels Project | C39: Biomass energy | D39: Agricultural residues: other kinds | E39: Indonesia | F39: =15.755 -> 15.755 | G39: 2013-08-28 | H39: The Government of Canada has withdrawn from the Kyoto Protocol and requested IBRD as Trustee of the Prototype Carbon Fund to cancel all emissions reductions resulting from its participation in the Fund
A40: 11 | B40: Project for GHG Emission Reduction by Thermal Oxidation of HFC23 in Jiangsu Meilan Chemical CO. Ltd., Jiangsu Province, China | C40: HFCs | D40: HFC23 | E40: China | F40: 2.104 | G40: 2013-10-01 | H40: The Government of Canada has withdrawn from the Kyoto Protocol and requested IBRD as Trustee of the Prototype Carbon Fund to cancel all emissions reductions resulting from its participation in the Fund
A41: 11 | B41: Project for GHG Emission Reduction by Thermal Oxidation of HFC23 in Jiangsu Meilan Chemical CO. Ltd., Jiangsu Province, China | C41: HFCs | D41: HFC23 | E41: China | F41: 1.052 | G41: 2013-10-01 | H41: Mitsubishi Corporation requested IBRD as Trustee of the Prototype Carbon Fund to cancel all CERs generated from Project for GHG Emission Reduction by Thermal Oxidation of HFC23 in Jiangsu Meilan Chemical CO. Ltd., Jiangsu Province, China
A42: 11 | B42: Project for GHG Emission Reduction by Thermal Oxidation of HFC23 in Jiangsu Meilan Chemical CO. Ltd., Jiangsu Province, China | C42: HFCs | D42: HFC23 | E42: China | F42: 6.894 | G42: 2013-10-01 | H42: DONG Naturgas A/S requested IBRD as Trustee of the Danish Carbon Fund to cancel all CERs generated from above project which were allocated to DONG Naturgas A/S
A43: 11 | B43: Project for GHG Emission Reduction by Thermal Oxidation of HFC23 in Jiangsu Meilan Chemical CO. Ltd., Jiangsu Province, China | C43: HFCs | D43: HFC23 | E43: China | F43: 5.196 | G43: 2013-10-01 | H43: Danish Ministry of Climate and Energy/Danish Energy Agency (DK) requested IBRD as Trustee of the Danish Carbon Fund to cancel all CERs generated from above project which were allocated to Danish Ministry of Climate and Energy/Danish Energy Agency (DK)
A44: 11 | B44: Project for GHG Emission Reduction by Thermal Oxidation of HFC23 in Jiangsu Meilan Chemical CO. Ltd., Jiangsu Province, China | C44: HFCs | D44: HFC23 | E44: China | F44: 0.701 | G44: 2013-10-01 | H44: Maersk Olie og Gas AS (DK) requested IBRD as Trustee of the Danish Carbon Fund to cancel all CERs generated from above project which were allocated to Maersk Olie og Gas AS (DK)
A45: 11 | B45: Project for GHG Emission Reduction by Thermal Oxidation of HFC23 in Jiangsu Meilan Chemical CO. Ltd., Jiangsu Province, China | C45: HFCs | D45: HFC23 | E45: China | F45: 1.045 | G45: 2013-10-01 | H45: Nordjysk Elhandel A/S (DK) requested IBRD as Trustee of the Danish Carbon Fund to cancel all CERs generated from above project which were allocated to them
A46: 11 | B46: Project for GHG Emission Reduction by Thermal Oxidation of HFC23 in Jiangsu Meilan Chemical CO. Ltd., Jiangsu Province, China | C46: HFCs | D46: HFC23 | E46: China | F46: 25.251 | G46: 2013-10-01 | H46: DONG Naturgas A/S (DK) requested IBRD as Trustee of the Umbrella Carbon Facility to cancel all CERs generated from above project which were allocated to them
A47: 306 | B47: Project for HFC23 Decomposition at Changshu 3F Zhonghao New Chemical Materials Co. Ltd, Changshu, Jiangsu Province, China | C47: HFCs | D47: HFC23 | E47: China | F47: 2.729 | G47: 2013-10-01 | H47: The Government of Canada has withdrawn from the Kyoto Protocol and requested IBRD as Trustee of the Prototype Carbon Fund to cancel all emissions reductions resulting from its participation in the Fund
A48: 1390 | B48: Power Generation (20MW) by utilizing Coke Oven Gas of China Coal and Coke Jiuxin Limited in Lingshi, Shanxi, P. R. China | C48: EE own generation | D48: Coke oven gas | E48: China | F48: 0.137 | G48: 2013-10-14 | H48: Offset of Earth Hour
A49: 268 | B49: Lages Methane Avoidance Project | C49: Biomass energy | D49: Forest residues: sawmill waste | E49: Brazil | F49: 3.431 | G49: 2013-10-22 | H49: The Government of Canada has withdrawn from the Kyoto Protocol and requested IBRD as Trustee of the Prototype Carbon Fund to cancel all emissions reductions resulting from its participation in the Fund
A50: 268 | B50: Lages Methane Avoidance Project | C50: Biomass energy | D50: Forest residues: sawmill waste | E50: Brazil | F50: 17.221 | G50: 2013-10-22 | H50: The Government of Canada has withdrawn from the Kyoto Protocol and requested IBRD as Trustee of the Prototype Carbon Fund to cancel all emissions reductions resulting from its participation in the Fund
A51: 268 | B51: Lages Methane Avoidance Project | C51: Biomass energy | D51: Forest residues: sawmill waste | E51: Brazil | F51: 6.346 | G51: 2013-10-22 | H51: The Government of Canada has withdrawn from the Kyoto Protocol and requested IBRD as Trustee of the Prototype Carbon Fund to cancel all emissions reductions resulting from its participation in the Fund
A52: 2712 | B52: Humbo Ethiopia Assisted Natural Regeneration Project | C52: Reforestation | D52: Reforestation | E52: Ethiopia | F52: 4.374 | G52: 2013-12-11 | H52: The Government of Canada has withdrawn from the Kyoto Protocol and requested IBRD as Trustee of Carbon Funds to cancel all emission reductions resulting from its participation in these Carbon Funds
A53: 547 | B53: Facilitating Reforestation for Guangxi Watershed Management in Pearl River Basin | C53: Reforestation | D53: Reforestation | E53: China | F53: 7.713 | G53: 2013-12-11 | H53: The Government of Canada has withdrawn from the Kyoto Protocol and requested IBRD as Trustee of Carbon Funds to cancel all emission reductions resulting from its participation in these Carbon Funds
A54: 3970 | B54: Southern Nicaragua CDM Reforestation Project | C54: Reforestation | D54: Reforestation | E54: Nicaragua | F54: 5.271 | G54: 2013-12-11 | H54: The Government of Canada has withdrawn from the Kyoto Protocol and requested IBRD as Trustee of Carbon Funds to cancel all emission reductions resulting from its participation in these Carbon Funds
A55: 545 | B55: Durban Landfill-gas-to-electricity project – Mariannhill and La Mercy Landfills | C55: Landfill gas | D55: Landfill power | E55: South Africa | F55: 0.931 | G55: 2013-12-11 | H55: Government of Canada has withdrawn from the Kyoto Protocol and requested IBRD as Trustee of the Prototype Carbon Fund to cancel all emissions reductions resulting from its participation in the Fund
A56: 545 | B56: Durban Landfill-gas-to-electricity project – Mariannhill and La Mercy Landfills | C56: Landfill gas | D56: Landfill power | E56: South Africa | F56: 2.149 | G56: 2013-12-11 | H56: Government of Canada has withdrawn from the Kyoto Protocol and requested IBRD as Trustee of the Prototype Carbon Fund to cancel all emissions reductions resulting from its participation in the Fund
A57: 545 | B57: Durban Landfill-gas-to-electricity project – Mariannhill and La Mercy Landfills | C57: Landfill gas | D57: Landfill power | E57: South Africa | F57: 3.114 | G57: 2013-12-11 | H57: Government of Canada has withdrawn from the Kyoto Protocol and requested IBRD as Trustee of the Prototype Carbon Fund to cancel all emissions reductions resulting from its participation in the Fund
A58: 545 | B58: Durban Landfill-gas-to-electricity project – Mariannhill and La Mercy Landfills | C58: Landfill gas | D58: Landfill power | E58: South Africa | F58: 1.82 | G58: 2013-12-11 | H58: Government of Canada has withdrawn from the Kyoto Protocol and requested IBRD as Trustee of the Prototype Carbon Fund to cancel all emissions reductions resulting from its participation in the Fund
A59: 2221 | B59: Hubei Eco-Farming Biogas Project Phase I | C59: Methane avoidance | D59: Domestic manure | E59: China | F59: 1.419 | G59: 2013-12-11 | H59: The Government of Canada has withdrawn from the Kyoto Protocol and requested IBRD as Trustee of Carbon Funds to cancel all emission reductions resulting from its participation in these Carbon Funds
A60: 2221 | B60: Hubei Eco-Farming Biogas Project Phase I | C60: Methane avoidance | D60: Domestic manure | E60: China | F60: 1.062 | G60: 2013-12-11 | H60: The Government of Canada has withdrawn from the Kyoto Protocol and requested IBRD as Trustee of Carbon Funds to cancel all emission reductions resulting from its participation in these Carbon Funds
A61: 1948 | B61: Moldova Soil Conservation Project | C61: Reforestation | D61: Reforestation | E61: Moldova | F61: 35.352 | G61: 2013-12-11 | H61: The Government of Canada has withdrawn from the Kyoto Protocol and requested IBRD as Trustee of Carbon Funds to cancel all emission reductions resulting from its participation in these Carbon Funds
A62: 1948 | B62: Moldova Soil Conservation Project | C62: Reforestation | D62: Reforestation | E62: Moldova | F62: 14.44 | G62: 2013-12-11 | H62: The Government of Canada has withdrawn from the Kyoto Protocol and requested IBRD as Trustee of Carbon Funds to cancel all emission reductions resulting from its participation in these Carbon Funds
A63: 2714 | B63: Assisted Natural Regeneration of Degraded Lands in Albania | C63: Reforestation | D63: Reforestation | E63: Albania | F63: 7.526 | G63: 2013-12-11 | H63: The Government of Canada has withdrawn from the Kyoto Protocol and requested IBRD as Trustee of Carbon Funds to cancel all emission reductions resulting from its participation in these Carbon Funds
A64: 904 | B64: Guangrun Hydropower Project in Hubei Province, P.R. China | C64: Hydro | D64: New dam | E64: China | F64: 0.202 | G64: 2013-12-12 | H64: The Government of Canada has withdrawn from the Kyoto Protocol and requested IBRD as Trustee of Carbon Funds to cancel all emissions reductions resulting from its participation in these Carbon Funds
A65: 139 | B65: Biogas Support Program - Nepal (BSP-Nepal) Activity-2 | C65: Methane avoidance | D65: Domestic manure | E65: Nepal | F65: 1.859 | G65: 2013-12-12 | H65: Government of Canada has withdrawn from the Kyoto Protocol and requested IBRD asTrustee of Carbon Funds to cancel all emissions reductions resulting from its participation in these Carbon Funds
A66: 136 | B66: Biogas Support Program - Nepal (BSP-Nepal) Activity-1 | C66: Methane avoidance | D66: Domestic manure | E66: Nepal | F66: 1.762 | G66: 2013-12-12 | H66: The Government of Canada has withdrawn from the Kyoto Protocol and requested IBRD asTrustee of Carbon Funds to cancel all emission reductions resulting from its participation in the Funds
A67: 2569 | B67: Reforestation as Renewable Source of Wood Supplies for Industrial Use in Brazil | C67: Reforestation | D67: Reforestation | E67: Brazil | F67: 65.604 | G67: 2013-12-12 | H67: The Government of Canada has withdrawn from the Kyoto Protocol and requested IBRD asTrustee of Carbon Funds to cancel all emission reductions resulting from its participation in these Carbon Funds
A68: 1896 | B68: Jincheng Sihe Coal Mine CMM Generation Project | C68: Coal bed/mine methane | D68: Coal Mine Methane | E68: China | F68: 49.995 | G68: 2013-12-12 | H68: Government of Canada has withdrawn from the Kyoto Protocol and requested IBRD as Trustee of the Prototype Carbon Fund to cancel all emissions reductions resulting from its participation in the Fund
A69: 1896 | B69: Jincheng Sihe Coal Mine CMM Generation Project | C69: Coal bed/mine methane | D69: Coal Mine Methane | E69: China | F69: 52.772 | G69: 2013-12-12 | H69: Government of Canada has withdrawn from the Kyoto Protocol and requested IBRD as Trustee of the Prototype Carbon Fund to cancel all emissions reductions resulting from its participation in the Fund
A70: 1896 | B70: Jincheng Sihe Coal Mine CMM Generation Project | C70: Coal bed/mine methane | D70: Coal Mine Methane | E70: China | F70: 2.263 | G70: 2013-12-12 | H70: The Government of Canada has withdrawn from the Kyoto Protocol and requested IBRD as Trustee of Carbon Funds to cancel all emission reductions resulting from its participation in these Carbon Funds
A71: 1713 | B71: Community-Based Renewable Energy Development in the Northern Areas and Chitral (NAC), Pakistan | C71: Hydro | D71: Run of river | E71: Pakistan | F71: 0.117 | G71: 2013-12-12 | H71: The Government of Canada has withdrawn from the Kyoto Protocol and requested IBRD as Trustee of Carbon Funds to cancel all emission reductions resulting from its participation in these Carbon Funds
A72: 3773 | B72: Olkaria II Geothermal Expansion Project | C72: Geothermal | D72: Geothermal electricity | E72: Kenya | F72: 2.9 | G72: 2013-12-16 | H72: The Government of Canada has withdrawn from the Kyoto Protocol and requested IBRD as Trustee of Carbon Funds to cancel all emission reductions resulting from its participation in these Carbon Funds
A73: 904 | B73: Guangrun Hydropower Project in Hubei Province, P.R. China | C73: Hydro | D73: New dam | E73: China | F73: 0.035 | G73: 2013-12-16 | H73: Aalborg Portland A/S requested IBRD as Trustee of the Danish Carbon Fund (member of the Community Development Carbon Fund) to cancel all CERs generated from this project resulting from its participation in the Fund
A74: 904 | B74: Guangrun Hydropower Project in Hubei Province, P.R. China | C74: Hydro | D74: New dam | E74: China | F74: 0.028 | G74: 2013-12-16 | H74: NEAS Energy requested IBRD as Trustee of the Danish Carbon Fund (member of the Community Development Carbon Fund) to cancel all CERs generated from this project resulting from its participation in the Fund
A75: 904 | B75: Guangrun Hydropower Project in Hubei Province, P.R. China | C75: Hydro | D75: New dam | E75: China | F75: 0.138 | G75: 2013-12-16 | H75: Danish Ministry of Climate, Energy and Building requested IBRD as Trustee of the Danish Carbon Fund (member of the Community Development Carbon Fund) to cancel all CERs generated from this project resulting from its participation in the Fund
A76: 904 | B76: Guangrun Hydropower Project in Hubei Province, P.R. China | C76: Hydro | D76: New dam | E76: China | F76: 0.019 | G76: 2013-12-16 | H76: Maersk Olie og Gas A/S requested IBRD as Trustee of the Danish Carbon Fund (member of the Community Development Carbon Fund) to cancel all CERs generated from this project resulting from its participation in the Fund
A77: 904 | B77: Guangrun Hydropower Project in Hubei Province, P.R. China | C77: Hydro | D77: New dam | E77: China | F77: 0.184 | G77: 2013-12-16 | H77: DONG Naturgas A/S requested IBRD as Trustee of the Danish Carbon Fund (member of the Community Development Carbon Fund) to cancel all CERs generated from this project resulting from its participation in the Fund
B78: Biogas Support Program - Nepal (BSP-Nepal) Activity-1 | C78: Methane avoidance | D78: Domestic manure | E78: Nepal | F78: =0.519+1.407 -> 1.926 | G78: 2014-01-28 | H78: The Government of Canada has withdrawn from the Kyoto Protocol and requested IBRD as Trustee of Carbon Funds to cancel all emission reductions resulting from its participation in these Funds
A79: 139 | B79: Biogas Support Program - Nepal (BSP-Nepal) Activity-2 | C79: Methane avoidance | D79: Domestic manure | E79: Nepal | F79: 2.075 | G79: 2014-01-28 | H79: The Government of Canada has withdrawn from the Kyoto Protocol and requested IBRD as Trustee of Carbon Funds to cancel all emission reductions resulting from its participation in these Funds
A80: 1052 | B80: Chacabuquito Hydroelectric Power Project | C80: Hydro | D80: Run of river | E80: Chile | F80: 17.92 | G80: 2014-01-28 | H80: The Government of Canada has withdrawn from the Kyoto Protocol and requested IBRD as Trustee of Carbon Funds to cancel all emission reductions resulting from its participation in these Funds
A81: 453 | B81: NorthWind Bangui Bay Project | C81: Wind | D81: Wind | E81: Philippines | F81: 2.38 | G81: 2014-01-28 | H81: The Government of Canada has withdrawn from the Kyoto Protocol and requested IBRD as Trustee of Carbon Funds to cancel all emission reductions resulting from its participation in these Funds
A82: 1578 | B82: Uganda Nile Basin Reforestation Project No.3 | C82: Reforestation | D82: Reforestation | E82: Uganda | F82: 0.282 | G82: 2014-01-28 | H82: The Government of Canada has withdrawn from the Kyoto Protocol and requested IBRD as Trustee of Carbon Funds to cancel all emission reductions resulting from its participation in these Funds
A83: 4466 | B83: Uganda Nile Basin Reforestation Project No.5 | C83: Reforestation | D83: Reforestation | E83: Uganda | F83: 1.203 | G83: 2014-01-28 | H83: The Government of Canada has withdrawn from the Kyoto Protocol and requested IBRD as Trustee of Carbon Funds to cancel all emission reductions resulting from its participation in these Funds
A84: 5029 | B84: Inner Mongolia North Long Yuan 100 MW Huitengxile Wind Farm | C84: Wind | D84: Wind | E84: China | F84: 8.565 | G84: 2014-01-28 | H84: The Government of Canada has withdrawn from the Kyoto Protocol and requested IBRD as Trustee of Carbon Funds to cancel all emission reductions resulting from its participation in these Funds
A85: 7572 | B85: Carbon Sequestration in Small and Medium Farms in the Brunca Region, Costa Rica (COOPEAGRI Project) | C85: Reforestation | D85: Reforestation | E85: Costa Rica | F85: 1.349 | G85: 2014-01-28 | H85: The Government of Canada has withdrawn from the Kyoto Protocol and requested IBRD as Trustee of Carbon Funds to cancel all emission reductions resulting from its participation in these Funds
A86: 918 | B86: Energas Varadero Conversion from Open Cycle to Combined Cycle Project | C86: EE supply side | D86: Single cycle to combined cycle | E86: Cuba | F86: 5.18 | G86: 2014-02-04 | H86: An adjustment was requested of MP3 to compensate for CER's that were issued for the previous monitoring period, MP2, (January 1, 2008 - June 30, 2008) due to an error in calculation. This voluntary cancellation is intended to correct this error
A87: 5415 | B87: Biogas Support Program - Nepal Activity-3 | C87: Methane avoidance | D87: Domestic manure | E87: Nepal | F87: 0.705 | G87: 2014-03-06 | H87: The Government of Canada has withdrawn from the Kyoto Protocol and requested IBRD as Trustee of Carbon Funds to cancel all emission reductions resulting from its participation in these Funds
A88: 1052 | B88: Chacabuquito Hydroelectric Power Project | C88: Hydro | D88: Run of river | E88: Chile | F88: 10.104 | G88: 2014-03-06 | H88: The Government of Canada has withdrawn from the Kyoto Protocol and requested IBRD as Trustee of Carbon Funds to cancel all emission reductions resulting from its participation in these Funds
A89: 259 | B89: Trupan Biomass Power Plant in Chile | C89: Biomass energy | D89: Forest residues: sawmill waste | E89: Chile | F89: 40 | G89: 2014-03-06 | H89: Offset for Vattenfall Group business travel 2013
A90: 259 | B90: Trupan Biomass Power Plant in Chile | C90: Biomass energy | D90: Forest residues: sawmill waste | E90: Chile | F90: 2.475 | G90: 2014-03-06 | H90: Offset for greenhouse gas emissions from Vattenfall Distribution transformer stations in Sweden 2013
A91: 2569 | B91: Reforestation as Renewable Source of Wood Supplies for Industrial Use in Brazil | C91: Reforestation | D91: Reforestation | E91: Brazil | F91: 0.001 | G91: 2014-03-21 | H91: Purpose: Voluntary compensation, Beneficiary: Inhotim
A92: 2569 | B92: Reforestation as Renewable Source of Wood Supplies for Industrial Use in Brazil | C92: Reforestation | D92: Reforestation | E92: Brazil | F92: 0.201 | G92: 2014-03-21 | H92: Purpose: To compensate emissions of the Feira Nacional de Artesanato for its 2009 to 2013 editions, Beneficiary: Feira Nacional de Artesanato
A93: 4531 | B93: Improving Rural Livelihoods Through Carbon Sequestration By Adopting Environment Friendly Technology based Agroforestry Practices | C93: Reforestation | D93: Agroforestry | E93: India | F93: 4.665 | G93: 2014-03-28 | H93: The Government of Canada has withdrawn from the Kyoto Protocol and requested IBRD as Trustee of Carbon Funds to cancel all emission reductions resulting from its participation in these Carbon Funds
A94: 3887 | B94: AES Tiete Afforestation/Reforestation Project in the State of Sao Paulo, Brazil | C94: Reforestation | D94: Reforestation | E94: Brazil | F94: 9.741 | G94: 2014-03-28 | H94: The Government of Canada has withdrawn from the Kyoto Protocol and requested IBRD as Trustee of Carbon Funds to cancel all emission reductions resulting from its participation in these Carbon Funds
A95: 707 | B95: India-FaL-G Brick and Blocks Project No.1 | C95: EE industry | D95: Building materials | E95: India | F95: 0.841 | G95: 2014-03-28 | H95: The Government of Canada has withdrawn from the Kyoto Protocol and requested IBRD as Trustee of Carbon Funds to cancel all emission reductions resulting from its participation in these Carbon Funds
A96: 606 | B96: El Canadá Hydroelectric Project | C96: Hydro | D96: Run of river | E96: Guatamala | F96: 6.048 | G96: 2014-03-28 | H96: The Government of Canada has withdrawn from the Kyoto Protocol and requested IBRD as Trustee of Carbon Funds to cancel all emission reductions resulting from its participation in these Carbon Funds
A97: 4127 | B97: Reforestation of grazing Lands in Santo Domingo, Argentina | C97: Reforestation | D97: Reforestation | E97: Argentina | F97: 98.184 | G97: 2014-03-28 | H97: Issued lCERs have been accounted against GHG emissions of Novartis in 2012
A98: 259 | B98: Trupan Biomass Power Plant in Chile | C98: Biomass energy | D98: Forest residues: sawmill waste | E98: Chile | F98: 0.092 | G98: 2014-04-17 | H98: Carbon footprint neutralization for the event "Building a new social discourse 2013" during the 17th-20th of October 2013 organized by Aconcagua Summit
A99: 2569 | B99: Reforestation as Renewable Source of Wood Supplies for Industrial Use in Brazil | C99: Reforestation | D99: Reforestation | E99: Brazil | F99: 0.165 | G99: 2014-05-08 | H99: Purpose: Emissions offsetting by INFRAPREV Beneficiary: INFRAPREV
A100: 5416 | B100: Biogas Support Program - Nepal Activity-4 | C100: Methane avoidance | D100: Domestic manure | E100: Nepal | F100: 0.823 | G100: 2014-05-09 | H100: The Government of Canada has withdrawn from the Kyoto Protocol and requested IBRD as Trustee of Carbon Funds to cancel all emission reductions resulting from its participation in these Carbon Funds
A101: 2569 | B101: Reforestation as Renewable Source of Wood Supplies for Industrial Use in Brazil | C101: Reforestation | D101: Reforestation | E101: Brazil | F101: 0.15 | G101: 2014-05-09 | H101: Purpose: Sleep Carbon Free Beneficiary: I wanna sleep do Brasil Ltda, Customers 1 to 150
A102: 194 | B102: Jepirachi Wind Power Project | C102: Wind | D102: Wind | E102: Colombia | F102: 2.227 | G102: 2014-05-09 | H102: The Government of Canada has withdrawn from the Kyoto Protocol and requested IBRD as Trustee of Carbon Funds to cancel all emission reductions resulting from its participation in these Carbon Funds
A103: 835 | B103: Switching of fuel from Low Sulphur Waxy Residue fuel oil to natural gas at Gangnam branch Korea District Heating Corporation Project | C103: Fossil fuel switch | D103: Oil to natural gas | E103: South Korea | F103: 1.5 | G103: 2014-05-14 | H103: Carbon neutralization for the event "17th Asian Games Incheon 2014" from 19th September to 4th October 2014
A104: 1052 | B104: Chacabuquito Hydroelectric Power Project | C104: Hydro | D104: Run of river | E104: Chile | F104: 4.467 | G104: 2014-06-12 | H104: The Government of Canada has withdrawn from the Kyoto Protocol and requested IBRD as Trustee of Carbon Funds to cancel all emission reductions resulting from its participation in these Funds
A105: 4211 | B105: Manaus Landfill Gas Project | C105: Landfill Gas | D105: Landfill power | E105: Brazil | F105: 5 | G105: 2014-06-30 | H105: This operation of voluntary cancellation of Certified Emission Reductions units issued by the Clean Development Mechanism is made under the “Selo Sustentabilidade - Baixo Carbono” National Greenhouse Gases Compensation Strategy conceived by the Brazilian Federal Government, following the principles of sustainable development, common but differentiated responsibilities and environmental integrity
A106: 4211 | B106: Manaus Landfill Gas Project | C106: Landfill Gas | D106: Landfill power | E106: Brazil | F106: 21.994 | G106: 2014-07-07 | H106: This voluntary cancellation is made on behalf of Ecorodovias Infraestrutura e Logistica S.A. under “Programa Amigo do Clima.” Details are disclosed at the website of Programa Amigo do Clima (www.amigodoclima.com)
A107: 4211 | B107: Manaus Landfill Gas Project | C107: Landfill Gas | D107: Landfill power | E107: Brazil | F107: 0.133 | G107: 2014-07-07 | H107: This voluntary cancellation is made on behalf of WayCarbon Soluções Ambientais e Projetos de Carbono Ltda to compensate public participation in "Campanha Cuidar Compensa" - World Environmental Day (5th of June)
A108: 4211 | B108: Manaus Landfill Gas Project | C108: Landfill Gas | D108: Landfill power | E108: Brazil | F108: 32.873 | G108: 2014-07-07 | H108: This voluntary cancellation is made on behalf of WayCarbon Soluções Ambientais e Projetos de Carbono Ltda to compensate public participation in "Campanha Cuidar Compensa" - World Environmental Day (5th of June)
A109: 2569 | B109: Reforestation as Renewable Source of Wood Supplies for Industrial Use in Brazil | C109: Reforestation | D109: Reforestation | E109: Brazil | F109: 14.173 | G109: 2014-07-24 | H109: Kyushu Electric Power Co., Inc. - a participant of the Prototype Carbon Fund (PCF), has requested IBRD as the Trustee of the PCF to cancel all tCERs from this project.
A110: 5125 | B110: Improving Kiln Efficiency of the Brick Making Industry in Bangladesh | C110: EE industry | D110: Building materials | E110: Bangladesh | F110: 0.234 | G110: 2014-07-24 | H110: The Government of Canada has withdrawn from the Kyoto Protocol and requested IBRD as Trustee of Carbon Funds to cancel all emission reductions resulting from its participation in these Funds
A111: 2569 | B111: Reforestation as Renewable Source of Wood Supplies for Industrial Use in Brazil | C111: Reforestation | D111: Reforestation | E111: Brazil | F111: 17.712 | G111: 2014-07-24 | H111: Japan International Cooperation Agency - a participant of the Prototype Carbon Fund (PCF), has requested IBRD as the Trustee of the PCF to cancel all tCERs from this project
A112: 2569 | B112: Reforestation as Renewable Source of Wood Supplies for Industrial Use in Brazil | C112: Reforestation | D112: Reforestation | E112: Brazil | F112: 17.712 | G112: 2014-07-24 | H112: The Government of Canada has withdrawn from the Kyoto Protocol and requested IBRD as Trustee of Carbon Funds to cancel all emission reductions resulting from its participation in these Funds
A113: 2569 | B113: Reforestation as Renewable Source of Wood Supplies for Industrial Use in Brazil | C113: Reforestation | D113: Reforestation | E113: Brazil | F113: 35.431 | G113: 2014-07-24 | H113: Electrabel S.A.- a participant of the Prototype Carbon Fund (PCF) has requested IBRD as the Trustee of the PCF to cancel all tCERS from this project
A114: 2569 | B114: Reforestation as Renewable Source of Wood Supplies for Industrial Use in Brazil | C114: Reforestation | D114: Reforestation | E114: Brazil | F114: 8.858 | G114: 2014-07-24 | H114: RWE AG - a participant of the Prototype Carbon Fund (PCF) has requested IBRD as the Trustee of the PCF to cancel all tCERS from this project
A115: 2569 | B115: Reforestation as Renewable Source of Wood Supplies for Industrial Use in Brazil | C115: Reforestation | D115: Reforestation | E115: Brazil | F115: 8.857 | G115: 2014-07-24 | H115: Norsk Hydro ASA, a participant of the Prototype Carbon Fund (PCF), has requested IBRD as the Trustee of the PCF to cancel all tCERs from this project
A116: 2569 | B116: Reforestation as Renewable Source of Wood Supplies for Industrial Use in Brazil | C116: Reforestation | D116: Reforestation | E116: Brazil | F116: 10.63 | G116: 2014-07-24 | H116: Fortum Corporation, a participant of the Prototype Carbon Fund (PCF), has requested IBRD as the Trustee of the PCF to cancel all tCERs from this project
A117: 2569 | B117: Reforestation as Renewable Source of Wood Supplies for Industrial Use in Brazil | C117: Reforestation | D117: Reforestation | E117: Brazil | F117: 17.712 | G117: 2014-07-24 | H117: Chubu Electric Power Co., Inc., a participant of the Prototype Carbon Fund (PCF), has requested IBRD as the Trustee of the PCF to cancel all tCERs from this project
A118: 2569 | B118: Reforestation as Renewable Source of Wood Supplies for Industrial Use in Brazil | C118: Reforestation | D118: Reforestation | E118: Brazil | F118: 8.858 | G118: 2014-07-24 | H118: BP alternative Energy International Ltd, a participant of the Prototype Carbon Fund (PCF), has requested IBRD as the Trustee of the PCF to cancel all tCERs from this project
A119: 2569 | B119: Reforestation as Renewable Source of Wood Supplies for Industrial Use in Brazil | C119: Reforestation | D119: Reforestation | E119: Brazil | F119: 8.857 | G119: 2014-07-24 | H119: GDF SUEZ SA, a participant of the Prototype Carbon Fund (PCF), has requested IBRD as the Trustee of the PCF to cancel all tCERs from this project
A120: 5125 | B120: Improving Kiln Efficiency of the Brick Making Industry in Bangladesh | C120: EE industry | D120: Building materials | E120: Bangladesh | F120: 0.04 | G120: 2014-07-24 | H120: Aalborg Portland A/S (DK) requested IBRD as Trustee of CDCF/DCF Funds to cancel all CERs from this project - Cancellation Request dated 28/05/2014
A121: 5125 | B121: Improving Kiln Efficiency of the Brick Making Industry in Bangladesh | C121: EE industry | D121: Building materials | E121: Bangladesh | F121: 0.032 | G121: 2014-07-24 | H121: Nordjysk Elhandel A/S (DK) requested IBRD as Trustee of CDCF/DCF Funds to cancel all CERs from this project - Cancellation Request dated 19/05/2014
A122: 775 | B122: West Nile Electrification Project (WNEP) | C122: Hydro | D122: Run of river | E122: Uganda | F122: 0.63 | G122: 2014-07-24 | H122: The Government of Canada has withdrawn from the Kyoto Protocol and requested IBRD as Trustee of Carbon Funds to cancel all emission reductions resulting from its participation in these Funds
A123: 268 | B123: Lages Methane Avoidance Project | C123: Biomass Energy | D123: Forest residues: sawmill waste | E123: Brazil | F123: 10.534 | G123: 2014-07-24 | H123: This operation of voluntary cancellation of Certified Emission Reductions units issued by the Clean Development Mechanism is made under the “Selo Sustentabilidade - Baixo Carbono” National Greenhouse Gases Compensation Strategy conceived by the Brazilian Federal Government
A124: 268 | B124: Lages Methane Avoidance Project | C124: Biomass Energy | D124: Forest residues: sawmill waste | E124: Brazil | F124: 94.466 | G124: 2014-07-24 | H124: This operation of voluntary cancellation of Certified Emission Reductions units issued by the Clean Development Mechanism is made under the “Selo Sustentabilidade - Baixo Carbono” National Greenhouse Gases Compensation Strategy conceived by the Brazilian Federal Government
A125: 835 | B125: Switching of fuel from Low Sulphur Waxy Residue fuel oil to natural gas at Gangnam branch Korea District Heating Corporation Project | C125: Fossil fuel switch | D125: Oil to natural gas | E125: South Korea | F125: 10 | G125: 2014-08-08 | H125: Offset for greenhouse gas emission by donators of Good Carbon Fund
A126: 795 | B126: Tugela Mill Fuel Switching Project | C126: Biomass energy | D126: Forest residues: other | E126: South Africa | F126: 40 | G126: 2014-08-15 | H126: Volutary cancellation on behalf of the British Foreign Commonwealth Office
A127: 941 | B127: Sudokwon Landfill Gas Electricity Generation Project (50MW) | C127: Landfill gas | D127: Landfill power | E127: South Korea | F127: 129.5 | G127: 2014-09-04 | H127: Carbon Neutralization for the 17th Asian Games Incheon 2014 from 19th of September to 4th of October 2014.
A128: 4585 | B128: India-FaL-G Brick and Blocks Project No.2. | C128: EE industry | D128: Building materials | E128: India | F128: 0.3 | G128: 2014-09-08 | H128: The Government of Canada has withdrawn from the Kyoto Protocol and requested IBRD as Trustee of the Carbon Funds to cancel all emission reductions resulting from its participation in these Funds
A129: 2221 | B129: Hubei Eco-Farming Biogas Project Phase I | C129: Methane avoidance | D129: Domestic manure | E129: China | F129: 1.05 | G129: 2014-09-09 | H129: The Government of Canada has withdrawn from the Kyoto Protocol and requested IBRD as Trustee of the Carbon Funds to cancel all emission reductions resulting from its participation in these Funds
A130: 2486 | B130: Conversion of SF6 to the alternative cover gas SO2 at RIMA magnesium production | C130: PFCs and SF6 | D130: SF6 | E130: Brazil | F130: 5 | G130: 2014-09-29 | H130: "Selo Sustentabilidade - Baixo Carbono" National Greenhouse Gases Compensation Strategy conceived by the Brazilian Federal Government, following the principles of sustainable development, common but differentiated responsibilities and environmental integrity
A131: 2569 | B131: Reforestation as Renewable Source of Wood Supplies for Industrial Use in Brazil | C131: Reforestation | D131: Reforestation | E131: Brazil | F131: 5 | G131: 2014-10-08 | H131: On behalf of Iniciativa Pessoas pelo Clima (P4C) this operation of voluntary cancellation of temporary Certified Emission Reductions units issued by the Clean Development Mechanism is made under the "Selo sustentabilidade - Baixo Carbono" National Greenhouse Gases Compensation Strategy conceived by the Brazilian Federal Government, following the principles of sustainable development, common but differentiated responsibilities and environment integrity.
A132: 2569 | B132: Reforestation as Renewable Source of Wood Supplies for Industrial Use in Brazil | C132: Reforestation | D132: Reforestation | E132: Brazil | F132: 5 | G132: 2014-10-08 | H132: For Plantar Carbon, like the text below.
A133: 2569 | B133: Reforestation as Renewable Source of Wood Supplies for Industrial Use in Brazil | C133: Reforestation | D133: Reforestation | E133: Brazil | F133: 17.712 | G133: 2014-10-08 | H133: Tohoku - a participant of the Prototype Carbon Fund (PCF) requested the International Bank for Reconstruction and Development (IBRD) as Trustee of the PCF to cancel emission reductions resulting from its participation from this project.
A134: 5029 | B134: Wuda Wuhushan Coal Mine Methane Power Generation Project | C134: Coal bed/mine methane | D134: Coal Mine Methane | E134: China | F134: 11.147 | G134: 2014-10-08 | H134: The Government of Canada has withdrawn from the Kyoto Protocol and requested IBRD as Trustee of Carbon Funds to cancel all emission reductions resulting from its participation in these Funds
A135: 545 | B135: Durban Landfill-gas-to-electricity project – Mariannhill and La Mercy Landfills | C135: Landfill gas | D135: Landfill power | E135: South Africa | F135: 1.847 | G135: 2014-10-08 | H135: The Government of Canada has withdrawn from the Kyoto Protocol and requested IBRD as Trustee of Carbon Funds to cancel all emission reductions resulting from its participation in these Funds
A136: 788 | B136: Hebei Jinzhou 24MW Straw-Fired Power Project | C136: Biomass energy | D136: Agricultural residues: other kinds | E136: China | F136: 3 | G136: 2014-10-13 | H136: Carbon Neutralization for the Jinju Namgang Yudeung Festival from 1 October to 12 October 2014
A137: 788 | B137: Hebei Jinzhou 24MW Straw-Fired Power Project | C137: Biomass energy | D137: Agricultural residues: other kinds | E137: China | F137: 5 | G137: 2014-10-13 | H137: Carbon Neutralization for the 17th Asian Games Incheon 2014 from 29 September to 4 October 2014
A138: 116 | B138: N2O Emission Reduction in Paulínia, SP, Brazil | C138: N2O | D138: Adipic acid | E138: Brazil | F138: 100 | G138: 2014-10-14 | H138: This operation of voluntary cancellation of certified emission reduction units issued by the Clean Development Mechanism is made under the "Selo Substentabilidade-Baixo Carbono" National Greenhouse Gases Compesation Strategy conceived by the Brazilian Federal Government, following the principles of sustainable development, common but differentiated responsibilities and environmental integrity/Ministerio do Meio Ambiente do Brasil
A139: 911 | B139: ESTRE Itapevi Landfill Gas Project (EILGP) | C139: Landfill gas | D139: Landfill power | E139: Brazil | F139: 5 | G139: 2014-10-21 | H139: This operation of voluntary cancellation of certified emission reduction units issued by the Clean Development Mechanism is made under the "Selo Substentabilidade-Baixo Carbono" National Greenhouse Gases Compesation Strategy conceived by the Brazilian Federal Government, following the principles of sustainable development, common but differentiated responsibilities and environmental integrity/Ministerio do Meio Ambiente do Brasil
A140: 545 | B140: Durban Landfill-gas-to-electricity project – Mariannhill and La Mercy Landfills | C140: Landfill gas | D140: Landfill power | E140: South Africa | F140: 1.473 | G140: 2014-10-27 | H140: Chubu Electric Power Co., Inc. - a participant of the Prototype Carbon Fund (PCF) has requested the International Bank for Reconstruction and Development (IBRD) as Trustee of the PCF to cancel emission reductions from this project.
A141: 143 | B141: UTE Barreiro S.A. Renewable Electricity Generation Project | C141: Biomass energy | D141: Forest biomass | E141: Brazil | F141: 20 | G141: 2014-10-31 | H141: This operation of voluntary cancellation of certified emission reduction units issued by the Clean Development Mechanism is made under the "Selo Substentabilidade-Baixo Carbono" National Greenhouse Gases Compesation Strategy conceived by the Brazilian Federal Government, following the principles of sustainable development, common but differentiated responsibilities and environmental integrity/Ministerio do Meio Ambiente do Brasil
A142: 242 | B142: Pesqueiro Energia Small Hydroelectric Project (PESHP) | C142: Hydro | D142: Run of river | E142: Brazil | F142: 2.6 | G142: 2014-11-03 | H142: Lojas Renner compensation of its 2013 greenhouse gases (GHG) emissions. Compensação das emissões de Gases do Efeito Estufa (GEE) de 2013 das Lojas Renner
A143: 888 | B143: Aurá Landfill Gas Project | C143: Landfill gas | D143: Landfill flaring | E143: Brazil | F143: 40 | G143: 2014-11-17 | H143: This voluntary cancellation is made under Selo Sustentabilidade-Baixo Carbono by the Brazilian Federal Gov’t-under principles of sustainable development, common differentiated responsibilities & environmental integrity for "ArcelorMittal"
A144: 888 | B144: Aurá Landfill Gas Project | C144: Landfill gas | D144: Landfill flaring | E144: Brazil | F144: 40 | G144: 2014-11-17 | H144: This voluntary cancellation is made under Selo Sustentabilidade-Baixo Carbono by the Brazilian Federal Gov’t-under principles of sustainable development, common differentiated responsibilities & environmental integrity for "GERDAU" This voluntary cancellation is made under Selo Sustentabilidade-Baixo Carbono by the Brazilian Federal Gov’t-under principles of sustainable development, common differentiated responsibilities & environmental integrity for "GERDAU"
A145: 888 | B145: Aurá Landfill Gas Project | C145: Landfill gas | D145: Landfill flaring | E145: Brazil | F145: 20 | G145: 2014-11-17 | H145: This voluntary cancellation is made under Selo Sustentabilidade-Baixo Carbono by the Brazilian Federal Gov’t-under principles of sustainable development, common differentiated responsibilities & environmental integrity for "Aperam"
A146: 888 | B146: Aurá Landfill Gas Project | C146: Landfill gas | D146: Landfill flaring | E146: Brazil | F146: 40 | G146: 2014-11-17 | H146: This voluntary cancellation is made under Selo Sustentabilidade-Baixo Carbono by the Brazilian Federal Government under principles of sustainable development, common differentiated responsibilities and environmental integrity for USIMINAS
A147: 888 | B147: Aurá Landfill Gas Project | C147: Landfill gas | D147: Landfill flaring | E147: Brazil | F147: 20 | G147: 2014-11-17 | H147: This voluntary cancellation is made under Selo Sustentabilidade-Baixo Carbono by the Brazilian Federal Government under principles of sustainable development, common differentiated responsibilities and environmental integrity for “SINOBRAS”
A148: 453 | B148: NorthWind Bangui Bay Project | C148: Wind | D148: Wind | E148: Philippines | F148: 3.422 | G148: 2014-11-27 | H148: The Government of Canada has withdrawn from the Kyoto Protocol and requested IBRD as Trustee of Carbon Funds to cancel all emission reductions resulting from its participation in these Funds
A149: 1891 | B149: Animal Manure Management System (AMMS) GHG Mitigation Project, Shandong Minhe Livestock Co. Ltd., Penglai, Shandong Province, P.R. of China | C149: Methane avoidance | D149: Manure | E149: China | F149: 1.342 | G149: 2014-11-27 | H149: The Government of Canada has withdrawn from the Kyoto Protocol and requested IBRD as Trustee of Carbon Funds to cancel all emission reductions resulting from its participation in these Funds
A150: 2569 | B150: Reforestation as Renewable Source of Wood Supplies for Industrial Use in Brazil | C150: Reforestation | D150: Reforestation | E150: Brazil | F150: 17.712 | G150: 2014-11-27 | H150: Shikoku Electric Power Company, Inc. has requested the International Bank for Reconstruction and Development (IBRD) as the Trustee of the Prototype Carbon Fund (PCF) to cancel all tCERs from this project
A151: 2569 | B151: Reforestation as Renewable Source of Wood Supplies for Industrial Use in Brazil | C151: Reforestation | D151: Reforestation | E151: Brazil | F151: 12.4 | G151: 2014-11-27 | H151: Chugoku Electric Power Company, Inc. has requested the International Bank for Reconstruction and Development (IBRD) as the Trustee of the Prototype Carbon Fund (PCF) to cancel all tCERs from this project
A152: 453 | B152: NorthWind Bangui Bay Project | C152: Wind | D152: Wind | E152: Philippines | F152: 2 | G152: 2014-11-28 | H152: The Government of Canada has withdrawn from the Kyoto Protocol and requested IBRD as Trustee of Carbon Funds to cancel all emission reductions resulting from its participation in these Funds
A153: 6797 | B153: Joburg Landfill Gas to Energy Project | C153: Landfill gas | D153: Landfill power | E153: South Africa | F153: 0.025 | G153: 2015-01-28 | H153: On behalf of the Climate Neutral Group for the Sanlam Employee Benefits Benchmark Symposium 2015 Johannesburg
A154: 6797 | B154: Joburg Landfill Gas to Energy Project | C154: Landfill gas | D154: Landfill power | E154: South Africa | F154: 0.275 | G154: 2015-01-28 | H154: The Government of Canada has withdrawn from the Kyoto Protocol and requested IBRD as Trustee of Carbon Funds to cancel all emission reductions resulting from its participation in these Funds
A155: 4734 | B155: CECIC Gansu Yumen Changma No.3 Wind Farm Project | C155: Wind | D155: Wind | E155: China | F155: 93.842 | G155: 2015-02-05 | H155: Those cancelled CP1 CERs will be transferred into VCS VERs, those VCS VER will be managed by below VCS APX account: ID 1495 Company Name Goldchina Consultancy International Co., Ltd.
A156: 2648 | B156: Amine Circulation Pumps Energy Efficiency at Hazira works of ONGC | C156: EE industry | D156: Petrochemicals | E156: India | F156: 1.418 | G156: 2015-02-06 | H156: ONGC’s initiative to offset the carbon footprint (for the period 1st April 2013 to 31st March 2014) for their five numbers of research & development centres (IDT, IEOT, IPSHEM, KDMIPE CAMPAS, IRS), one gas processing complex located in Uran, India along with carbon footprint of OMGC’s employee business related air travel for the period 1st April 2013 to 31st March 2014
A157: 2648 | B157: 51 MW wind power project of ONGC at Surajbari, Gujarat in India | C157: Wind | D157: Wind | E157: India | F157: 118.783 | G157: 2015-02-06 | H157: Same as above.
A158: 814 | B158: Waste heat recovery from Process Gas Compressors (PGCs), Mumbai high south (offshore platform) and using the recovered heat to heat process heating oil | C158: EE industry | D158: Petrochemicals | E158: India | F158: 10.508 | G158: 2015-02-06 | H158: Same as above.
A159: 847 | B159: Up-gradation of Gas Turbine 1 (GT 1) and Gas Turbine 2 (GT 2) at co-generation plant of Hazira Gas Processing Complex (HGPC) of Oil and Natural Gas Corporation Limited (ONGC) | C159: EE industry | D159: Petrochemicals | E159: India | F159: 6.636 | G159: 2015-02-06 | H159: Same as above.
A160: 795 | B160: Tugela Mill Fuel Switching Project | C160: Biomass energy | D160: Forest residues: other | E160: South Africa | F160: 0.24 | G160: 2015-02-19 | H160: We are offering Backsberg Wine Estate 50 tons of CERs who needs to cover a shortfall from their tree planting initiative in order to remain a carbon neutral wine estate. This is an initiative by Promethium to demonstrate carbon trading on the Johannesburg Stock Exchange Platform.
A161: 941 | B161: Sudokwon Landfill Gas Electricity Generation Project (50MW) | C161: Landfill gas | D161: Landfill power | E161: South Korea | F161: 0.345 | G161: 2015-02-23 | H161: Life time (90 years in average) Carbon Neutralization for Ms. JIWON HA (Mother), Mr. TAEIL KIM (Father) and EHYUN KIM (Daughter). They are one happy family
A162: 941 | B162: Sudokwon Landfill Gas Electricity Generation Project (50MW) | C162: Landfill gas | D162: Landfill power | E162: South Korea | F162: 1.155 | G162: 2015-02-23 | H162: Life time (90 years in average) Carbon Neutralization for the family member of YeSol Shin (DOB: 24/01/2011), YooSeok Shin (DOB: 16/12/2012), Mr. ByungChul Shin, Ms. YounSun Kim, the late SuHyun Shin, Ms. Jeongla Moon, Mr. Seok Geun Kim and the late BuDeok Kim, including the late OkJin Kim and Jesus
A163: 1836 | B163: Poechos II hydroelectric plant project | C163: Hydro | D163: Existing dam | E163: Peru | F163: 1 | G163: 2015-02-27 | H163: Voluntary cancellation on behalf of the Carbon Neutral Company
A164: 604 | B164: Candelaria Hydroelectric Project | C164: Hydro | D164: Run of river | E164: Guatamala | F164: 3.2 | G164: 2015-03-03 | H164: ECOCERT/Compensation of Carbon Footprint
A165: 941 | B165: Sudokwon Landfill Gas Electricity Generation Project (50MW) | C165: Landfill gas | D165: Landfill power | E165: South Korea | F165: 12.018 | G165: 2015-03-05 | H165: 12,018 CERs Cancellation for Carbon Neutralization of the 24th PyeongChang Olympic Winter Games (9-25, Feb., 2018) in order to make them low carbon events. This activity is initiated and executed by students such as YeSol Shin(Lindenbaum Kindergarten), YooSeok Shin(SamSung HanWool Kindergarten), EHyun Kim(EWoo Middle School), JungHo Ha(YoungDong High School), KyeongHo Ha(Korea Univ.), by adults such as JeongJa Moon, DeokIl Ha, YeonHee Shin, YounSun Kim and by entities such as Ecomom Korea, Ecoeye Co., Ltd.
A166: 941 | B166: Sudokwon Landfill Gas Electricity Generation Project (50MW) | C166: Landfill gas | D166: Landfill power | E166: South Korea | F166: 3.918 | G166: 2015-03-05 | H166: 3,918 CERs Cancellation for Carbon Neutralization of 12th PyeongChang Paralympic Winter Games (9~18, Mar., 2018) in order to make them low carbon events. This activity is initiated and executed by students such as YeSol Shin(Lindenbaum Kindergarten), YooSeok Shin(SamSung HanWool Kindergarten), EHyun Kim(EWoo Middle School), JungHo Ha(YoungDong High School), KyeongHo Ha(Korea Univ.), by adults such as JeongJa Moon, DeokIl Ha, YeonHee Shin, YounSun Kim and by entities such as Ecomom Korea, Ecoeye Co., Ltd.
A167: 765 | B167: Catalytic N2O destruction project in the tail gas of three Nitric Acid Plants at Hu-Chems Fine Chemical Corp. | C167: N2O | D167: Nitric acid | E167: South Korea | F167: =402.798+151.592 -> 554.39 | G167: 2015-03-12 | H167: CERs cancellation in exchange for Korean Offset Credits (KOC) to be issued by Korean Offset Program (KOP) to Hu-Chems Fine Chemical Corp. CERs are cancelled for the benefit of Hu-Chems Fine Chemical Corp.
A168: 6637 | B168: „Reduction of N2O emissions from the new nitric acid plant #5 of Hu-Chems Fine Chemical Corp.“ | C168: N2O | D168: Nitric acid | E168: South Korea | F168: 225.768 | G168: 2015-03-12 | H168: Same as above.
A169: 136 | B169: Biogas Support Program - Nepal (BSP-Nepal) Activity-1 | C169: Methane avoidance | D169: Domestic manure | E169: Nepal | F169: 0.212 | G169: 2015-03-25 | H169: The Government of Canada has withdrawn from the Kyoto Protocol and requested IBRD as Trustee of Carbon Funds to cancel all emission reductions resulting from its participation in these Funds
A170: 606 | B170: El Canadá Hydroelectric Project | C170: Hydro | D170: Run of river | E170: Guatamala | F170: 12.365 | G170: 2015-03-26 | H170: The Government of Canada has withdrawn from the Kyoto Protocol and requested IBRD as Trustee of Carbon Funds to cancel all emission reductions resulting from its participation in these Funds
A171: 2765 | B171: Installation of Solar Home Systems in Bangladesh | C171: Solar | D171: Solar PV | E171: Bangladesh | F171: 0.357 | G171: 2015-03-26 | H171: The Government of Canada has withdrawn from the Kyoto Protocol and requested IBRD as Trustee of Carbon Funds to cancel all emission reductions resulting from its participation in these Funds
A172: 2765 | B172: Installation of Solar Home Systems in Bangladesh | C172: Solar | D172: Solar PV | E172: Bangladesh | F172: =0.033+0.049+0.062 -> 0.144 | G172: 2015-03-26 | H172: Maersk Olie og Gas A/S, Nordjysk Elhandel, and Aalborg Portland requested IBRD as Trustee of the Danish Carbon Fund to cancel all credits from the installation of Solar Home Systems in Bangladesh project
A173: 941 | B173: Sudokwon Landfill Gas Electricity Generation Project (50MW) | C173: Landfill gas | D173: Landfill power | E173: South Korea | F173: 115 | G173: 2015-03-31 | H173: 115,000 CERs cancellation for certification of Carbon Neutral Product by KEITI (Korean Evironmental Industry & Technology Institute) in order to offset the carbon emissions. This activity is initiated and executed by entities such as Korea Western Power Co., Ltd., Aekyung Industrial Co., Ltd., LG Electronics Inc., Samsung Electronics Co., Ltd., Pulmuone Inc., Kwang Dong Pharm. Co., Ltd. and Coway Co., Ltd..
A174: 941 | B174: Sudokwon Landfill Gas Electricity Generation Project (50MW) | C174: Landfill gas | D174: Landfill power | E174: South Korea | F174: 15 | G174: 2015-03-31 | H174: Same as above.
A175: 489 | B175: Repowering Small Hydro Plants (SHP) in the State of São Paulo, Brazil | C175: Biomass energy | D175: Agricultural residues: rice husk | E175: Brazil | F175: 3.269 | G175: 2015-04-07 | H175: Sale to beneficiary who has used the CERs for compensation of their emissions. The Beneficiary is Carbon Compensation of Centro Administrativo Sicrendi
A176: 5415 | B176: Biogas Support Program - Nepal Activity-3 | C176: Methane avoidance | D176: Domestic manure | E176: Nepal | F176: 1.252 | G176: 2015-04-08 | H176: The Government of Canada has withdrawn from the Kyoto Protocol and requested IBRD as Trustee of the Carbon Funds to cancel all emission reductions resulting from its participation in these Funds
A177: 139 | B177: Biogas Support Program - Nepal (BSP-Nepal) Activity-2 | C177: Methane avoidance | D177: Domestic manure | E177: Nepal | F177: 0.49 | G177: 2015-04-08 | H177: Same as above.
A178: 5416 | B178: Biogas Support Program - Nepal Activity-4 | C178: Methane avoidance | D178: Domestic manure | E178: Nepal | F178: 1.276 | G178: 2015-04-08 | H178: Same as above.
A179: 835 | B179: Switching of fuel from Low Sulphur Waxy Residue fuel oil to natural gas at Gangnam branch Korea District Heating Corporation Project | C179: Fossil fuel switch | D179: Oil to natural gas | E179: South Korea | F179: =38.78+25.497 -> 64.277 | G179: 2015-04-09 | H179: Offset for greenhouse gas emission by donators of Good Carbon Fund
A180: 1713 | B180: Community-Based Renewable Energy Development in the Northern Areas and Chitral (NAC), Pakistan | C180: Hydro | D180: Run of river | E180: Pakistan | F180: =0.057+0.351 -> 0.408 | G180: 2015-04-13 | H180: The Government of Canada has withdrawn from the Kyoto Protocol and requested IBRD as Trustee of the Carbon Funds to cancel all emission reductions resulting from its participation in these Funds
A181: 904 | B181: Guangrun Hydropower Project in Hubei Province, P.R. China | C181: Hydro | D181: New dam | E181: China | F181: 0.824 | G181: 2015-04-13 | H181: Same as above.
A182: 7783 | B182: Optimisation of Kiambere Hydro Power Project | C182: Hydro | D182: Existing dam | E182: Kenya | F182: 0.198 | G182: 2015-04-13 | H182: Same as above.
A183: 7783 | B183: Optimisation of Kiambere Hydro Power Project | C183: Hydro | D183: Existing dam | E183: Kenya | F183: 0.198 | G183: 2015-04-13 | H183: Göteborg Energi AB - A participant of the Community Development Carbon Fund (CDCF) has requested IBRD as Trustee of the CDCF to cancel all emission reductions from this Project
A184: 1052 | B184: Chacabuquito Hydroelectric Power Project | C184: Hydro | D184: Run of river | E184: Chile | F184: 3.045 | G184: 2015-04-13 | H184: The Government of Canada has withdrawn from the Kyoto Protocol and requested IBRD as Trustee of the Carbon Funds to cancel all emission reductions resulting from its participation in these Funds
A185: 1052 | B185: Chacabuquito Hydroelectric Power Project | C185: Hydro | D185: Run of river | E185: Chile | F185: =2.234+5.054+8.961+1.522 -> 17.771 | G185: 2015-04-13 | H185: RWE Power AG - a participant of the Prototype Carbon Fund (PCF) requested IBRD as Trustee of the PCF to cancel all CERs generated from this project
A186: 275 | B186: Santa Ana Hydroelectric Plant | C186: Hydro | D186: Run of river | E186: Colombia | F186: =13.31+10.585+14.431+15.292 -> 53.618 | G186: 2015-04-13 | H186: Voluntary cancellation of 13,310 CERs to offset the carbon footprint of technical and administrative facilities property of Empresa de Acueducto, Alcantarillado y Aseo de Bogota ESP (EAB-ESP) and its operations of drinkable water supply and wastewater treatment in Bogota. This action is executed by the EAB-ESP in order to reach a carbon neutral condition.
A187: 275 | B187: Santa Ana Hydroelectric Plant | C187: Hydro | D187: Run of river | E187: Colombia | F187: =16.354 -> 16.354 | G187: 2015-04-14 | H187: Same as above.
A188: 707 | B188: India-FaL-G Brick and Blocks Project No.1 | C188: EE industry | D188: Building materials | E188: India | F188: 0.457 | G188: 2015-04-21 | H188: The Government of Canada has withdrawn from the Kyoto Protocol and requested IBRD as Trustee of the Carbon Funds to cancel all emission reductions resulting from its participation in these Funds
A189: 606 | B189: El Canadá Hydroelectric Project | C189: Hydro | D189: Run of river | E189: Guatamala | F189: 6.601 | G189: 2015-04-21 | H189: The Government of Canada has withdrawn from the Kyoto Protocol and requested IBRD as Trustee of the Carbon Funds to cancel all emission reductions resulting from its participation in these Funds
A190: 3404 | B190: Rwanda Electrogaz Compact Fluorescent Lamp (CFL) distribution project | C190: EE households | D190: Lighting | E190: Rwanda | F190: 0.457 | G190: 2015-05-27 | H190: The Government of Canada has withdrawn from the Kyoto Protocol and requested IBRD as Trustee of the Carbon Funds to cancel all emission reductions resulting from its participation in these Funds
A191: 85 | B191: Hapugastenne and Hulu Ganga Small Hydropower Projects. | C191: Hydro | D191: Run of river | E191: Sri Lanka | F191: 3 | G191: 2015-06-11 | H191: IATA Carbon Offset Program
A192: 4530 | B192: Efficient Fuel Wood Cooking Stoves Project in Foothills and Plains of Central Region of Nepal | C192: EE households | D192: Stoves | E192: Nepal | F192: 24.2 | G192: 2015-06-12 | H192: The International Bank for Reconstruction and Development has requested voluntary cancellation of 24,200 CERs- to maintain carbon neutrality for fiscal year 2014 emissions
A193: 3008 | B193: Nanjing Jinling Grid Connected Natural Gas Combined Cycle Power Plant Project | C193: Fossil fuel switch | D193: New natural gas plant | E193: China | F193: 53.767 | G193: 2015-06-23 | H193: Those cancelled CP1 CERs will be transferred into VCS VERs, and those VCS VERs will be managed by belowed VCS APX account: Account ID 1495 Company Name: Goldchina Consultancy International Co., Ltd.
A194: 3008 | B194: Nanjing Jinling Grid Connected Natural Gas Combined Cycle Power Plant Project | C194: Fossil fuel switch | D194: New natural gas plant | E194: China | F194: 104.444 | G194: 2015-06-24 | H194: Same as above.
A195: 6381 | B195: Ishasha 6.6 MW Small Hydropower Project | C195: Hydro | D195: Run of river | E195: Uganda | F195: 11.026 | G195: 2015-06-26 | H195: The International Bank for Reconstruction and Development has requested voluntary cancellation to maintain carbon neutrality for fiscal year 2015 emissions, including those from global facilities, employee air travel, and major meetings
A196: 1168 | B196: Enercon Wind Farm (Hindustan) Ltd in Rajasthan | C196: Wind | D196: Wind | E196: India | F196: =4.284+13.216 -> 17.5 | G196: 2015-06-30 | H196: The International Finance Corporation has requested voluntary cancellation of 3,574 Certified Emission Reductions from CDM Project 6381 – Ishasha 6.6 MW Small Hydropower Project - to maintain carbon neutrality including emissions from global facilities, employee air travel, and major meetings
A197: 6381 | B197: Ishasha 6.6 MW Small Hydropower Project | C197: Hydro | D197: Run of river | E197: Uganda | F197: 3.574 | G197: 2015-06-30 | H197: Same as 2 lines above
A198: 349 | B198: Sihwa Tidal Power Plant CDM Project | C198: Tidal | D198: Tidal | E198: South Korea | F198: =156.589+160.059+150.74 -> 467.388 | G198: 2015-07-03 | H198: To use as OFFSET in Korean Emissions Trading Scheme
A199: 7783 | B199: Optimisation of Kiambere Hydro Power Project | C199: Hydro | D199: Existing dam | E199: Kenya | F199: =0.034+0.136+0.019+0.027+0.18 -> 0.396 | G199: 2015-07-23 | H199: Danish Carbon Fund (DCF) participants Aalborg Portland, Danish Ministry of Climate, Maersk, Nordjysk Elhandel, and DONG have requested IBRD as the trustee of DCF to cancel all CERs from this Project.
A200: 1787 | B200: Valdivia biomass power plant | C200: Biomass energy | D200: Black liquor | E200: Chile | F200: 1.226 | G200: 2015-07-28 | H200: Neutralización de huella de carbono Pabellón Chileno ExpoMilán, SCX Bolsa de Clima y Arauco
A201: 4421 | B201: CECIC Urumqi Tuoli Phase I Wind Farm Project | C201: Wind | D201: Wind | E201: China | F201: 86.983 | G201: 2015-07-28 | H201: Those cancelled CP1 CERs will be transferred into VCS ERs, those VCS VER will be managed by belowed VCS APX account: Account ID 1495, Company Name Goldchina Consultancy International Co., Ltd.
... 2743 more rows

Sheet Buyers
A1: Top 20 buyers | B1: Projects | C1: Of these withdrawn from
A2: Vitol | B2: =F690 -> 309 | C2: =E690 -> 13
A3: EcoSecurities | B3: =F259 -> 305 | C3: =E259 -> 64
A4: EDF Trading | B4: =F264 -> 298 | C4: =E264 -> 11
A5: Tricorona Carbon Asset Management Sweden | B5: =F665 -> 250 | C5: =E665 -> 25
A6: Carbon Resource Management | B6: =F128 -> 215 | C6: =E128 -> 114
A7: Government of Sweden | B7: =F361 -> 196 | C7: =E361 -> 49
A8: RWE | B8: =F577 -> 177 | C8: =E577 -> 65
A9: CAMCO | B9: =F112 -> 148 | C9: =E112 -> 6
A10: Noble Carbon | B10: =F512 -> 119 | C10: =E512 -> 79
A11: Bunge Emissions Group | B11: =F107 -> 111 | C11: =E107 -> 10
A12: Climate Bridge | B12: =F178 -> 108 | C12: =E178 -> 1
A13: Mitsubishi | B13: =F490 -> 102 | C13: =E490 -> 18
A14: Arreon Carbon UK | B14: =F64 -> 101 | C14: =E64 -> 1
A15: =A337 -> Gazprom Marketing & Trading | B15: =F337 -> 98 | C15: =E337 -> 26
A16: AgCert | B16: =F47 -> 96 | C16: =E47 -> 1
A17: =+A482 -> Mercuria Energy Trading | B17: =+F482 -> 95 | C17: =+E482 -> 7
A18: Kommunalkredit | B18: =F450 -> 93 | C18: =E450 -> 14
A19: Danish Ministry of Climate & Energy | B19: =F222 -> 88 | C19: =E222 -> 19
A20: Endesa | B20: =F280 -> 81 | C20: =E280 -> 41
A21: =A229 -> Deutsche Bank | B21: =F229 -> 76 | C21: =E229 -> 25
A23: Projects rejected by DOEs or EB or withdrawn are not included.
A24: Authorized Buyers involvement in the number of project of different type | B24: Nationality | C24: Organisation type | D24: Total number of PoAs | E24: Total number projects the buyer has withdrawn from | F24: Total number of CDM projects (incl. PoAs) | G24: Afforestation | H24: Agriculture | I24: Biomass energy | J24: Cement | K24: CO2 usage | L24: Coal bed/mine methane | M24: Energy distribution | N24: EE households | O24: EE industry | P24: EE own generation | Q24: EE service | R24: EE supply side | S24: Fossil fuel switch | T24: Fugitive | U24: Geothermal | V24: HFCs | W24: Hydro | X24: Landfill gas | Y24: Methane avoidance | Z24: Mixed renewables | AA24: N2O | AB24: PFCs and SF6 | AC24: Reforestation | AD24: Solar | AE24: Tidal | AF24: Transport | AG24: Wind
A25: 33 Asset Management | B25: Netherlands | C25: Carbon market | D25: 0 | E25: 1 | F25: =SUM(G25:AG25)+D25 -> 3 | Y25: 2 | AB25: 1
A26: 3C | B26: Germany | C26: Carbon market | D26: 0 | E26: 0 | F26: =SUM(G26:AG26)+D26 -> 2 | I26: 1 | R26: 1
A27: A2A | B27: Utility | C27: Italy | D27: 0 | E27: 0 | F27: 2 | W27: 1 | AG27: 1
A28: A&T Carbon Asset Co. | B28: UK | C28: Carbon market | D28: 6 | E28: 0 | F28: 15 | Y28: 1 | Z28: 1 | AD28: 4 | AG28: 3
A29: Aalborg Portland | B29: Denmark | C29: Cement | D29: 1 | E29: 11 | F29: 28 | I29: 1 | N29: 1 | O29: 3 | P29: 2 | Q29: 3 | V29: 2 | W29: 3 | X29: 6 | Y29: 6
A30: AAP Carbon | B30: Hong Kong | C30: Carbon market | D30: 0 | E30: 0 | F30: 1 | P30: 1
A31: Aare-Tessin | B31: Switzerland | C31: Utility | D31: 0 | E31: 0 | F31: 0
A32: ABHAssociates | B32: UK | C32: Carbon market | D32: 1 | E32: 0 | F32: 1
A33: Ably Carbon | B33: France | C33: Carbon market | D33: 1 | E33: 0 | F33: 8 | K33: 1 | X33: 4 | AD33: 2
A34: ABN AMRO Bank | B34: Netherlands | C34: Bank | D34: 0 | E34: 0 | F34: 12 | I34: 3 | J34: 1 | K34: 1 | O34: 4 | Q34: 1 | R34: 1 | W34: 1
A35: Abonos Colombianos | B35: Colombia | C35: Real Estate | D35: 0 | E35: 0 | F35: 1 | AA35: 1
A36: Acciona Green Energy Developments | B36: Spain | C36: Renewable energy | D36: 0 | E36: 0 | F36: 5 | AG36: 5
A37: ACE-Asia | B37: Taiwan | C37: Electronics | D37: 0 | E37: 5 | F37: 24 | Y37: 24
A38: ACT Carbon Capital | B38: UK | C38: Carbon market | D38: 0 | E38: 0 | F38: 18 | I38: 1 | W38: 17
A39: ACT Commodities | B39: Netherlands | C39: Carbon market | D39: 0 | E39: 3 | F39: =SUM(G39:AG39)+D39 -> 18 | W39: 6 | AG39: 12
A40: ACT Financial Solutions | B40: UK | C40: Finance | D40: 0 | E40: 0 | F40: =SUM(G40:AG40)+D40 -> 3 | O40: 1 | AG40: 2
A41: Additional Energy | B41: UK | C41: Carbon market | D41: 2 | E41: 0 | F41: 2
A42: AEL Mining Services | B42: South Africa | C42: Mining | D42: 0 | E42: 0 | F42: 2 | AA42: 2
A43: AES AgriVerde | B43: US | C43: Carbon market | D43: 0 | E43: 0 | F43: 28 | I43: 1 | Y43: 27
A44: AES Carbon Exchange | B44: US | C44: Carbon market | D44: 0 | E44: 11 | F44: 15 | L44: 1 | R44: 1 | W44: 4 | X44: 3 | Y44: 5 | AG44: 1
A45: AFS Energy | B45: Netherlands | C45: Renewable energy certificates | D45: 0 | E45: 0 | F45: 1 | AG45: 1
A46: Agasco | B46: UK | C46: Biogas | D46: 0 | E46: 0 | F46: 8 | O46: 1 | T46: 1 | W46: 3 | Y46: 3
A47: AgCert | B47: Ireland | C47: Carbon market | D47: 0 | E47: 1 | F47: 96 | Y47: 96
A48: Agrinergy | B48: UK | C48: Carbon market | D48: 0 | E48: 5 | F48: 71 | I48: 27 | J48: 3 | O48: 2 | P48: 4 | S48: 2 | T48: 2 | W48: 8 | Y48: 16 | AD48: 1 | AG48: 6
A49: Agritech Marketing | B49: Japan | C49: Biomass | D49: 0 | E49: 0 | F49: 4 | I49: 3 | Y49: 1
A50: AHL Carbono | B50: Global | C50: Carbon market | D50: 0 | E50: 0 | F50: 0
A51: Air Liquide | B51: France | C51: Industrial gases | D51: 0 | E51: 0 | F51: 1 | K51: 1
A52: Allcot | B52: Switzerland | C52: Carbon market | D52: 0 | E52: 0 | F52: 11 | I52: 2 | W52: 2 | X52: 4 | Y52: 2 | AG52: 1
A53: Alimentos Euroagro | B53: UK | C53: Agriculture | D53: 0 | E53: 0 | F53: 5 | Y53: 5
A54: Allied Carbon Credit | B54: Germany | C54: Carbon market | D54: 0 | E54: 0 | F54: 0
A55: Allied Energy Capital | B55: UK | C55: Carbon market | D55: 0 | E55: 0 | F55: 0
A56: Alliance Energy Investment Co. | B56: UK | C56: Carbon market | D56: 0 | E56: 0 | F56: 2 | AG56: 2
A57: Alpha New Technology Services | B57: Germany | C57: Import & Export Consultant | D57: 0 | E57: 0 | F57: 1 | AG57: 1
A58: Alpiq | B58: Switzerland | C58: Carbon market | D58: 0 | E58: 0 | F58: =SUM(G58:AG58)+D58 -> 1 | W58: 1
A59: AMEST | B59: Italy | C59: Carbon market | D59: 0 | E59: 0 | F59: 1 | X59: 1
A60: Amsterdam Capital Trading | B60: Netherlands | C60: Carbon market | D60: 0 | E60: 5 | W60: 5 | X60: 2 | Y60: 1 | AD60: 1 | AG60: 30
A61: Arcadia | B61: Switzerland | C61: Carbon market | D61: 0 | E61: 0 | F61: 54 | I61: 1 | L61: 3 | O61: 1 | P61: 3 | T61: 1 | W61: 33 | Y61: 2 | AD61: 5 | AG61: 5
A62: Aretae | B62: UK | C62: Waste project developer | D62: 0 | E62: 0 | F62: 4 | Y62: 4
A63: AREVA | B63: France | C63: Utiity | D63: 0 | E63: 0 | F63: 0
A64: Arreon Carbon UK | B64: UK | C64: Carbon market | D64: 0 | E64: 1 | F64: 101 | I64: 4 | L64: 4 | M64: 1 | P64: 3 | S64: 3 | W64: 20 | Z64: 1 | AB64: 1 | AD64: 8 | AG64: 56
A65: Asian Development Bank | B65: Asia | C65: Development Bank | D65: 0 | E65: 13 | F65: 39 | I65: 9 | W65: 4 | X65: 7 | AD65: 11 | AG65: 8
A66: Asin Carbono | B66: Spain | C66: Carbon market | D66: 0 | E66: 0 | F66: 0
A67: Asja Ambiente Italia | B67: Italy | C67: Waste | D67: 0 | E67: 0 | F67: 10 | I67: 1 | W67: 2 | X67: 6 | AG67: 1
A68: Asuka Green Investment | B68: Japan | C68: Carbon market | D68: 0 | E68: 0 | F68: 1 | W68: 1
A69: Atmoguard | B69: Switzerland | C69: Carbon market | D69: 0 | E69: 0 | F69: 0
A70: Atmosfair | B70: Germany | C70: Carbon offset | D70: 2 | E70: 1 | F70: 16 | I70: 2 | N70: 3 | W70: 3 | Y70: 3 | AD70: 3
A71: Aufwind Schmack Asia Holding | B71: Germany | C71: Wind | D71: 1 | E71: 0 | F71: 2 | Y71: 1
A72: Azuliber 1 | B72: Spain | C72: Tiles | D72: 0 | E72: 1 | F72: 4 | V72: 2 | X72: 1 | AG72: 1
A73: BalanceCO2 | B73: Canada | C73: Carbon market | D73: 0 | E73: 0 | F73: 0
A74: Balderrie | B74: Canada | C74: Alternative energy | D74: 0 | E74: 0 | F74: 0
A75: Bakim Holding | B75: UK | C75: Carbon market | D75: 0 | E75: 0 | F75: =SUM(G75:AG75)+D75 -> 1 | W75: 1
A76: Bank of Tokyo-Mitsubishi UFJ | B76: Japan | C76: Bank | D76: 0 | E76: 0 | F76: 1 | X76: 1
A77: Baraka Global Advisors | B77: Netherlands | C77: Carbon market | D77: 0 | E77: 1 | F77: 2 | W77: 2
A78: Barclays Bank | B78: UK | C78: Bank | D78: 0 | E78: 0 | F78: 23 | I78: 1 | O78: 1 | P78: 17 | U78: 1 | W78: 1 | Y78: 2
A79: BASF | B79: Germany | C79: Electronics | D79: 1 | E79: 7 | F79: 17 | N79: 1 | O79: 4 | U79: 2 | W79: 4 | Y79: 4 | AA79: 1
A80: Bear Stearns | B80: UK | C80: Banking | D80: 0 | E80: 0 | F80: 1 | V80: 1
A81: Belektron | B81: Slovenia | C81: Carbon market | D81: 0 | E81: 0 | F81: =SUM(G81:AG81)+D81 -> 18 | I81: 1 | X81: 3 | Y81: 1 | AA81: 2 | AG81: 11
A82: Belgium DG Environment | B82: Belgium | C82: Public | D82: 0 | E82: 2 | F82: 21 | I82: 6 | O82: 1 | Q82: 3 | U82: 1 | W82: 3 | X82: 2 | Y82: 5
A83: BGC International | B83: UK | C83: Carbon market | D83: 0 | E83: 0 | F83: 1 | W83: 1
A84: BGP Engineers | B84: Netherlands | C84: Engineers | D84: 0 | E84: 0 | F84: 6 | X84: 2 | Y84: 3 | AG84: 1
A85: BHP Billiton Marketing | B85: UK | C85: Carbon market | D85: 0 | E85: 1 | F85: 6 | I85: 3 | V85: 1 | X85: 2
A86: BioCarbon Fund | B86: World Bank | C86: Forest | D86: 0 | E86: 0 | F86: 5 | G86: 1 | AC86: 4
A87: Bioenergie Brasilien | B87: Germany | C87: Bioenergy in Brazil | D87: 0 | E87: 0 | F87: 0
A88: Biogas Dona Juana | B88: Switzerland | C88: Biogas | D88: 0 | E88: 0 | F88: 2 | X88: 2
A89: Biogas Technology | B89: UK | C89: Landfill gas | D89: 0 | E89: 0 | F89: 11 | X89: 11
A90: Bioheat International | B90: Netherlands | C90: Carbon market | D90: 0 | E90: 1 | F90: 1 | I90: 1
